﻿Organisation Code,Organisation Label,Effective Date,Organisational Unit,Service Division Label,Category Internal Name,Purpose,Detailed Expenditure Code,Payment Date,Transaction Number,Irrecoverable VAT Amount,Amount,Capital Or Revenue,Beneficiary Name,Procurement Card
Http://opendatacommunities.org/id/metropolitan-district-council/leeds,Leeds City Council,31/01/2023,City Development,Highways,Captial,INTERNAL FEES,6,06/01/2023,2301-00001,0.00,1500.00,C,A C GILPIN,No
Http://opendatacommunities.org/id/metropolitan-district-council/leeds,Leeds City Council,31/01/2023,Resources,Leeds Building Services,Supplies and Services,Other Hired And Contracted Services,265,13/01/2023,2301-00002,0.00,36838.64,R,A Coole Electrical Ltd,No
Http://opendatacommunities.org/id/metropolitan-district-council/leeds,Leeds City Council,31/01/2023,Resources,Leeds Building Services,Supplies and Services,Other Hired And Contracted Services,265,13/01/2023,2301-00003,0.00,33495.77,R,A Coole Electrical Ltd,No
Http://opendatacommunities.org/id/metropolitan-district-council/leeds,Leeds City Council,31/01/2023,Resources,Leeds Building Services,Supplies and Services,Other Hired And Contracted Services,265,13/01/2023,2301-00004,0.00,14972.12,R,A Coole Electrical Ltd,No
Http://opendatacommunities.org/id/metropolitan-district-council/leeds,Leeds City Council,31/01/2023,Resources,Leeds Building Services,Supplies and Services,Other Hired And Contracted Services,265,18/01/2023,2301-00005,0.00,4618.80,R,A Coole Electrical Ltd,No
Http://opendatacommunities.org/id/metropolitan-district-council/leeds,Leeds City Council,31/01/2023,Resources,Leeds Building Services,Supplies and Services,Other Hired And Contracted Services,265,20/01/2023,2301-00006,0.00,27333.44,R,A Coole Electrical Ltd,No
Http://opendatacommunities.org/id/metropolitan-district-council/leeds,Leeds City Council,31/01/2023,Resources,Leeds Building Services,Supplies and Services,Other Hired And Contracted Services,265,20/01/2023,2301-00007,0.00,4547.18,R,A Coole Electrical Ltd,No
Http://opendatacommunities.org/id/metropolitan-district-council/leeds,Leeds City Council,31/01/2023,Communities Housing and Environment,Customer Access,Supplies and Services,Bought In Professional Services,277,06/01/2023,2301-00008,0.00,12.00,R,REDACTED COMMERCIAL CONFIDENTIALITY,No
Http://opendatacommunities.org/id/metropolitan-district-council/leeds,Leeds City Council,31/01/2023,Communities Housing and Environment,Customer Access,Supplies and Services,Bought In Professional Services,277,06/01/2023,2301-00009,0.00,18.00,R,REDACTED COMMERCIAL CONFIDENTIALITY,No
Http://opendatacommunities.org/id/metropolitan-district-council/leeds,Leeds City Council,31/01/2023,Communities Housing and Environment,Customer Access,Supplies and Services,Bought In Professional Services,277,06/01/2023,2301-00010,0.00,18.00,R,REDACTED COMMERCIAL CONFIDENTIALITY,No
Http://opendatacommunities.org/id/metropolitan-district-council/leeds,Leeds City Council,31/01/2023,Communities Housing and Environment,Customer Access,Supplies and Services,Bought In Professional Services,277,06/01/2023,2301-00011,0.00,27.00,R,REDACTED COMMERCIAL CONFIDENTIALITY,No
Http://opendatacommunities.org/id/metropolitan-district-council/leeds,Leeds City Council,31/01/2023,Communities Housing and Environment,Customer Access,Supplies and Services,Bought In Professional Services,277,18/01/2023,2301-00012,0.00,27.00,R,REDACTED COMMERCIAL CONFIDENTIALITY,No
Http://opendatacommunities.org/id/metropolitan-district-council/leeds,Leeds City Council,31/01/2023,Communities Housing and Environment,Customer Access,Supplies and Services,Bought In Professional Services,277,18/01/2023,2301-00013,0.00,18.00,R,REDACTED COMMERCIAL CONFIDENTIALITY,No
Http://opendatacommunities.org/id/metropolitan-district-council/leeds,Leeds City Council,31/01/2023,Communities Housing and Environment,Customer Access,Supplies and Services,Bought In Professional Services,277,25/01/2023,2301-00014,0.00,18.00,R,REDACTED COMMERCIAL CONFIDENTIALITY,No
Http://opendatacommunities.org/id/metropolitan-district-council/leeds,Leeds City Council,31/01/2023,Communities Housing and Environment,Customer Access,Supplies and Services,Bought In Professional Services,277,25/01/2023,2301-00015,0.00,43.20,R,REDACTED COMMERCIAL CONFIDENTIALITY,No
Http://opendatacommunities.org/id/metropolitan-district-council/leeds,Leeds City Council,31/01/2023,Communities Housing and Environment,Customer Access,Supplies and Services,Bought In Professional Services,277,25/01/2023,2301-00016,0.00,27.00,R,REDACTED COMMERCIAL CONFIDENTIALITY,No
Http://opendatacommunities.org/id/metropolitan-district-council/leeds,Leeds City Council,31/01/2023,Communities Housing and Environment,Customer Access,Supplies and Services,Bought In Professional Services,277,25/01/2023,2301-00017,0.00,18.00,R,REDACTED COMMERCIAL CONFIDENTIALITY,No
Http://opendatacommunities.org/id/metropolitan-district-council/leeds,Leeds City Council,31/01/2023,Children and Families,Social Care,Agency Payments,Services Rendered By Voluntary Sector,505,04/01/2023,2301-00018,0.00,2673.60,R,REDACTED PERSONAL DATA,No
Http://opendatacommunities.org/id/metropolitan-district-council/leeds,Leeds City Council,31/01/2023,Children and Families,Social Care,Agency Payments,Services Rendered By Voluntary Sector,505,06/01/2023,2301-00019,0.00,10554.24,R,REDACTED PERSONAL DATA,No
Http://opendatacommunities.org/id/metropolitan-district-council/leeds,Leeds City Council,31/01/2023,Children and Families,Social Care,Agency Payments,Services Rendered By Voluntary Sector,505,24/01/2023,2301-00020,0.00,102.67,R,REDACTED PERSONAL DATA,No
Http://opendatacommunities.org/id/metropolitan-district-council/leeds,Leeds City Council,31/01/2023,Children and Families,Social Care,Agency Payments,Services Rendered By Other Organisations,511,06/01/2023,2301-00021,0.00,344.16,R,REDACTED PERSONAL DATA,No
Http://opendatacommunities.org/id/metropolitan-district-council/leeds,Leeds City Council,31/01/2023,Adults and Health,Other Generic Services,Agency Payments,Fees To Carers,563,16/01/2023,2301-00022,0.00,432.00,R,REDACTED PERSONAL DATA,No
Http://opendatacommunities.org/id/metropolitan-district-council/leeds,Leeds City Council,31/01/2023,Adults and Health,Other Generic Services,Agency Payments,Fees To Carers,563,16/01/2023,2301-00023,0.00,50.40,R,REDACTED PERSONAL DATA,No
Http://opendatacommunities.org/id/metropolitan-district-council/leeds,Leeds City Council,31/01/2023,Communities Housing and Environment,Parks and Countryside,Supplies and Services,Operational Materials,205,13/01/2023,2301-00024,0.00,275.00,R,A J Garbutt,No
Http://opendatacommunities.org/id/metropolitan-district-council/leeds,Leeds City Council,31/01/2023,Resources,Corporate Property Management,Premises,Maintenance Of Buildings,101,20/01/2023,2301-00025,0.00,2854.00,R,A J H  Pump Supply & Repair Ltd,No
Http://opendatacommunities.org/id/metropolitan-district-council/leeds,Leeds City Council,31/01/2023,Resources,Leeds Building Services,Supplies and Services,Operational Materials,205,24/01/2023,2301-00026,0.00,895.00,R,A J H  Pump Supply & Repair Ltd,No
Http://opendatacommunities.org/id/metropolitan-district-council/leeds,Leeds City Council,31/01/2023,Resources,Corporate Property Management,Premises,Maintenance Of Buildings,101,26/01/2023,2301-00027,0.00,830.00,R,A J H  Pump Supply & Repair Ltd,No
Http://opendatacommunities.org/id/metropolitan-district-council/leeds,Leeds City Council,31/01/2023,Resources,Leeds Building Services,Supplies and Services,Operational Materials,205,30/01/2023,2301-00028,0.00,2763.00,R,A J H  Pump Supply & Repair Ltd,No
Http://opendatacommunities.org/id/metropolitan-district-council/leeds,Leeds City Council,31/01/2023,City Development,Libraries Arts & Heritage,Supplies and Services,Resaleable Materials,204,13/01/2023,2301-00029,0.00,142.27,R,A J PROMOTIONS,No
Http://opendatacommunities.org/id/metropolitan-district-council/leeds,Leeds City Council,31/01/2023,Children and Families,Social Care,Agency Payments,Services Rendered By Other Organisations,511,06/01/2023,2301-00030,0.00,914.17,R,REDACTED PERSONAL DATA,No
Http://opendatacommunities.org/id/metropolitan-district-council/leeds,Leeds City Council,31/01/2023,Children and Families,Social Care,Employees,Agency Staff,8,27/01/2023,2301-00031,0.00,-46.25,R,A Little Something Extra Ltd,No
Http://opendatacommunities.org/id/metropolitan-district-council/leeds,Leeds City Council,31/01/2023,Communities Housing and Environment,Customer Access,Supplies and Services,Bought In Professional Services,277,06/01/2023,2301-00032,0.00,108.00,R,A MOHAMMED,No
Http://opendatacommunities.org/id/metropolitan-district-council/leeds,Leeds City Council,31/01/2023,Communities Housing and Environment,Customer Access,Supplies and Services,Bought In Professional Services,277,06/01/2023,2301-00033,0.00,108.00,R,A MOHAMMED,No
Http://opendatacommunities.org/id/metropolitan-district-council/leeds,Leeds City Council,31/01/2023,Communities Housing and Environment,Customer Access,Supplies and Services,Bought In Professional Services,277,06/01/2023,2301-00034,0.00,36.00,R,A MOHAMMED,No
Http://opendatacommunities.org/id/metropolitan-district-council/leeds,Leeds City Council,31/01/2023,Communities Housing and Environment,Customer Access,Supplies and Services,Bought In Professional Services,277,06/01/2023,2301-00035,0.00,108.00,R,A MOHAMMED,No
Http://opendatacommunities.org/id/metropolitan-district-council/leeds,Leeds City Council,31/01/2023,Communities Housing and Environment,Customer Access,Supplies and Services,Bought In Professional Services,277,06/01/2023,2301-00036,0.00,126.00,R,A MOHAMMED,No
Http://opendatacommunities.org/id/metropolitan-district-council/leeds,Leeds City Council,31/01/2023,Communities Housing and Environment,Customer Access,Supplies and Services,Bought In Professional Services,277,11/01/2023,2301-00037,0.00,135.00,R,A MOHAMMED,No
Http://opendatacommunities.org/id/metropolitan-district-council/leeds,Leeds City Council,31/01/2023,Communities Housing and Environment,Customer Access,Supplies and Services,Bought In Professional Services,277,11/01/2023,2301-00038,0.00,108.00,R,A MOHAMMED,No
Http://opendatacommunities.org/id/metropolitan-district-council/leeds,Leeds City Council,31/01/2023,Strategic Landlord,HRA Housing Leeds,Captial,OTHER COSTS,7,24/01/2023,2301-00039,0.00,80.00,C,REDACTED PERSONAL DATA,No
Http://opendatacommunities.org/id/metropolitan-district-council/leeds,Leeds City Council,31/01/2023,Children and Families,Social Care,Agency Payments,Services Rendered By Other Organisations,511,04/01/2023,2301-00040,0.00,668.40,R,REDACTED PERSONAL DATA,No
Http://opendatacommunities.org/id/metropolitan-district-council/leeds,Leeds City Council,31/01/2023,Children and Families,Social Care,Agency Payments,Services Rendered By Other Organisations,511,06/01/2023,2301-00041,0.00,3154.80,R,REDACTED PERSONAL DATA,No
Http://opendatacommunities.org/id/metropolitan-district-council/leeds,Leeds City Council,31/01/2023,Communities Housing and Environment,Customer Access,Supplies and Services,Bought In Professional Services,277,06/01/2023,2301-00042,0.00,90.00,R,A NAMAKI,No
Http://opendatacommunities.org/id/metropolitan-district-council/leeds,Leeds City Council,31/01/2023,Communities Housing and Environment,Customer Access,Supplies and Services,Bought In Professional Services,277,06/01/2023,2301-00043,0.00,108.00,R,A NAMAKI,No
Http://opendatacommunities.org/id/metropolitan-district-council/leeds,Leeds City Council,31/01/2023,Communities Housing and Environment,Customer Access,Supplies and Services,Bought In Professional Services,277,06/01/2023,2301-00044,0.00,18.00,R,A NAMAKI,No
Http://opendatacommunities.org/id/metropolitan-district-council/leeds,Leeds City Council,31/01/2023,Communities Housing and Environment,Customer Access,Supplies and Services,Bought In Professional Services,277,06/01/2023,2301-00045,0.00,18.00,R,A NAMAKI,No
Http://opendatacommunities.org/id/metropolitan-district-council/leeds,Leeds City Council,31/01/2023,Communities Housing and Environment,Customer Access,Supplies and Services,Bought In Professional Services,277,06/01/2023,2301-00046,0.00,121.50,R,A NAMAKI,No
Http://opendatacommunities.org/id/metropolitan-district-council/leeds,Leeds City Council,31/01/2023,Communities Housing and Environment,Customer Access,Supplies and Services,Bought In Professional Services,277,11/01/2023,2301-00047,0.00,108.00,R,A NAMAKI,No
Http://opendatacommunities.org/id/metropolitan-district-council/leeds,Leeds City Council,31/01/2023,Communities Housing and Environment,Customer Access,Supplies and Services,Bought In Professional Services,277,11/01/2023,2301-00048,0.00,18.00,R,A NAMAKI,No
Http://opendatacommunities.org/id/metropolitan-district-council/leeds,Leeds City Council,31/01/2023,Communities Housing and Environment,Customer Access,Supplies and Services,Bought In Professional Services,277,11/01/2023,2301-00049,0.00,27.00,R,A NAMAKI,No
Http://opendatacommunities.org/id/metropolitan-district-council/leeds,Leeds City Council,31/01/2023,Communities Housing and Environment,Customer Access,Supplies and Services,Bought In Professional Services,277,11/01/2023,2301-00050,0.00,18.00,R,A NAMAKI,No
Http://opendatacommunities.org/id/metropolitan-district-council/leeds,Leeds City Council,31/01/2023,Communities Housing and Environment,Customer Access,Supplies and Services,Bought In Professional Services,277,11/01/2023,2301-00051,0.00,108.00,R,A NAMAKI,No
Http://opendatacommunities.org/id/metropolitan-district-council/leeds,Leeds City Council,31/01/2023,Communities Housing and Environment,Customer Access,Supplies and Services,Bought In Professional Services,277,18/01/2023,2301-00052,0.00,18.00,R,A NAMAKI,No
Http://opendatacommunities.org/id/metropolitan-district-council/leeds,Leeds City Council,31/01/2023,Communities Housing and Environment,Customer Access,Supplies and Services,Bought In Professional Services,277,18/01/2023,2301-00053,0.00,18.00,R,A NAMAKI,No
Http://opendatacommunities.org/id/metropolitan-district-council/leeds,Leeds City Council,31/01/2023,Communities Housing and Environment,Customer Access,Supplies and Services,Bought In Professional Services,277,18/01/2023,2301-00054,0.00,18.00,R,A NAMAKI,No
Http://opendatacommunities.org/id/metropolitan-district-council/leeds,Leeds City Council,31/01/2023,Communities Housing and Environment,Customer Access,Supplies and Services,Bought In Professional Services,277,25/01/2023,2301-00055,0.00,18.00,R,A NAMAKI,No
Http://opendatacommunities.org/id/metropolitan-district-council/leeds,Leeds City Council,31/01/2023,Communities Housing and Environment,Customer Access,Supplies and Services,Bought In Professional Services,277,25/01/2023,2301-00056,0.00,13.50,R,A NAMAKI,No
Http://opendatacommunities.org/id/metropolitan-district-council/leeds,Leeds City Council,31/01/2023,Communities Housing and Environment,Customer Access,Supplies and Services,Bought In Professional Services,277,25/01/2023,2301-00057,0.00,18.00,R,A NAMAKI,No
Http://opendatacommunities.org/id/metropolitan-district-council/leeds,Leeds City Council,31/01/2023,Communities Housing and Environment,Customer Access,Supplies and Services,Bought In Professional Services,277,25/01/2023,2301-00058,0.00,18.00,R,A NAMAKI,No
Http://opendatacommunities.org/id/metropolitan-district-council/leeds,Leeds City Council,31/01/2023,Communities Housing and Environment,Customer Access,Supplies and Services,Bought In Professional Services,277,25/01/2023,2301-00059,0.00,18.00,R,A NAMAKI,No
Http://opendatacommunities.org/id/metropolitan-district-council/leeds,Leeds City Council,31/01/2023,Communities Housing and Environment,Customer Access,Supplies and Services,Bought In Professional Services,277,25/01/2023,2301-00060,0.00,18.00,R,A NAMAKI,No
Http://opendatacommunities.org/id/metropolitan-district-council/leeds,Leeds City Council,31/01/2023,Communities Housing and Environment,Customer Access,Supplies and Services,Bought In Professional Services,277,25/01/2023,2301-00061,0.00,18.00,R,A NAMAKI,No
Http://opendatacommunities.org/id/metropolitan-district-council/leeds,Leeds City Council,31/01/2023,Children and Families,Social Care,Agency Payments,Services Rendered By Other Organisations,511,06/01/2023,2301-00062,0.00,286.80,R,REDACTED PERSONAL DATA,No
Http://opendatacommunities.org/id/metropolitan-district-council/leeds,Leeds City Council,31/01/2023,Communities Housing and Environment,Strategic Housing Partnership & Support,Supplies and Services,Other Hired And Contracted Services,265,31/01/2023,2301-00063,0.00,1000.00,R,A R Aspinall,No
Http://opendatacommunities.org/id/metropolitan-district-council/leeds,Leeds City Council,31/01/2023,Resources,Commercial Services,Supplies and Services,Other Hired And Contracted Services,265,06/01/2023,2301-00064,0.00,264.00,R,REDACTED PERSONAL DATA,No
Http://opendatacommunities.org/id/metropolitan-district-council/leeds,Leeds City Council,31/01/2023,Strategic Landlord,HRA Housing Leeds,Captial,OTHER COSTS,7,23/01/2023,2301-00065,0.00,249.22,C,REDACTED PERSONAL DATA,No
Http://opendatacommunities.org/id/metropolitan-district-council/leeds,Leeds City Council,31/01/2023,Resources,Shared Services,Supplies and Services,Other Hired And Contracted Services,265,05/01/2023,2301-00066,0.00,90.00,R,A Star Couriers Ltd,No
Http://opendatacommunities.org/id/metropolitan-district-council/leeds,Leeds City Council,31/01/2023,Communities Housing and Environment,Waste Management,Employees,Training & Development,70,05/01/2023,2301-00067,0.00,259.80,R,A T Nerac Ltd,No
Http://opendatacommunities.org/id/metropolitan-district-council/leeds,Leeds City Council,31/01/2023,Communities Housing and Environment,Waste Management,Employees,Training & Development,70,18/01/2023,2301-00068,0.00,211.80,R,A T Nerac Ltd,No
Http://opendatacommunities.org/id/metropolitan-district-council/leeds,Leeds City Council,31/01/2023,Communities Housing and Environment,Strategic Housing Partnership & Support,Supplies and Services,Other Hired And Contracted Services,265,18/01/2023,2301-00069,0.00,400.00,R,A Tidy Mind,No
Http://opendatacommunities.org/id/metropolitan-district-council/leeds,Leeds City Council,31/01/2023,Children and Families,Social Care,Agency Payments,Services Rendered By Other Organisations,511,06/01/2023,2301-00070,0.00,573.60,R,REDACTED PERSONAL DATA,No
Http://opendatacommunities.org/id/metropolitan-district-council/leeds,Leeds City Council,31/01/2023,Strategic Landlord,HRA Housing Leeds,Captial,OTHER COSTS,7,12/01/2023,2301-00071,0.00,80.00,C,REDACTED PERSONAL DATA,No
Http://opendatacommunities.org/id/metropolitan-district-council/leeds,Leeds City Council,31/01/2023,Resources,Leeds Building Services,Supplies and Services,Other Hired And Contracted Services,265,24/01/2023,2301-00072,0.00,2842.00,R,A1 SHEET METAL FLUES LTD,No
Http://opendatacommunities.org/id/metropolitan-district-council/leeds,Leeds City Council,31/01/2023,Resources,Leeds Building Services,Supplies and Services,Other Hired And Contracted Services,265,06/01/2023,2301-00073,0.00,673.00,R,A1 STAIR LIFT SERVICES,No
Http://opendatacommunities.org/id/metropolitan-district-council/leeds,Leeds City Council,31/01/2023,Resources,Leeds Building Services,Supplies and Services,Other Hired And Contracted Services,265,12/01/2023,2301-00074,0.00,90.00,R,A1 STAIR LIFT SERVICES,No
Http://opendatacommunities.org/id/metropolitan-district-council/leeds,Leeds City Council,31/01/2023,Communities Housing and Environment,Parks and Countryside ,Transport,External Hire -Occasional,304,07/12/2022,2301-00075,0.00,308.00,R,A1mobile.Co.Uk,Yes
Http://opendatacommunities.org/id/metropolitan-district-council/leeds,Leeds City Council,31/01/2023,City Development,Economic Development ,Supplies and Services,Subsistence,256,19/12/2022,2301-00076,0.00,83.33,R,Aagrah Leeds City,Yes
Http://opendatacommunities.org/id/metropolitan-district-council/leeds,Leeds City Council,31/01/2023,Children and Families,Social Care ,Supplies and Services,Operational Materials,205,14/12/2022,2301-00077,0.00,471.55,R,Aardvark Archery,Yes
Http://opendatacommunities.org/id/metropolitan-district-council/leeds,Leeds City Council as Accountable Body,31/01/2023,Social Services Pooled Budgets,Jcs For People With Learning Disabilitie,Supplies and Services,Other Equipment,203,06/01/2023,2301-00078,0.00,1443.00,R,AAT (GB) LTD,No
Http://opendatacommunities.org/id/metropolitan-district-council/leeds,Leeds City Council as Accountable Body,31/01/2023,Social Services Pooled Budgets,Leeds Community Equip Store Pooled Budgt,Supplies and Services,Other Equipment,203,06/01/2023,2301-00079,0.00,598.00,R,AAT (GB) LTD,No
Http://opendatacommunities.org/id/metropolitan-district-council/leeds,Leeds City Council as Accountable Body,31/01/2023,Social Services Pooled Budgets,Leeds Community Equip Store Pooled Budgt,Supplies and Services,Other Equipment,203,12/01/2023,2301-00080,0.00,1219.00,R,AAT (GB) LTD,No
Http://opendatacommunities.org/id/metropolitan-district-council/leeds,Leeds City Council,31/01/2023,City Development,Libraries Arts & Heritage ,Supplies and Services,Books & Audio-Visual Materials,206,14/12/2022,2301-00081,0.00,7.99,R,Ab* Abebooks.Uk Jmhrmk,Yes
Http://opendatacommunities.org/id/metropolitan-district-council/leeds,Leeds City Council,31/01/2023,Adults and Health,Services For Adults Under 65 Mental/Dis,Agency Payments,Home Care,568,27/01/2023,2301-00082,0.00,451.50,R,Abbeyfield The Dales Limited,No
Http://opendatacommunities.org/id/metropolitan-district-council/leeds,Leeds City Council,31/01/2023,Children and Families,Social Care,Agency Payments,Allowances,546,23/01/2023,2301-00083,0.00,734.90,R,ABBIE O MAHONY,No
Http://opendatacommunities.org/id/metropolitan-district-council/leeds,Leeds City Council,31/01/2023,Children and Families,Social Care,Agency Payments,Services Rendered By Other Organisations,511,06/01/2023,2301-00084,0.00,1720.80,R,REDACTED PERSONAL DATA,No
Http://opendatacommunities.org/id/metropolitan-district-council/leeds,Leeds City Council,31/01/2023,Communities Housing and Environment,Parks and Countryside ,Supplies and Services,Other Hired And Contracted Services,265,16/12/2022,2301-00085,0.00,1750.00,R,Abbotts Memorial Compa,Yes
Http://opendatacommunities.org/id/metropolitan-district-council/leeds,Leeds City Council,31/01/2023,Children and Families,Social Care,Agency Payments,General External Residential Placements,507,16/01/2023,2301-00086,0.00,15783.56,R,Abc Care And Education Ltd,No
Http://opendatacommunities.org/id/metropolitan-district-council/leeds,Leeds City Council,31/01/2023,Children and Families,Social Care,Agency Payments,Services Rendered By Other Organisations,511,04/01/2023,2301-00087,0.00,6015.60,R,ABC NURSERY AT LUFC,No
Http://opendatacommunities.org/id/metropolitan-district-council/leeds,Leeds City Council,31/01/2023,Children and Families,Social Care,Agency Payments,Services Rendered By Other Organisations,511,06/01/2023,2301-00088,0.00,10898.40,R,ABC NURSERY AT LUFC,No
Http://opendatacommunities.org/id/metropolitan-district-council/leeds,Leeds City Council,31/01/2023,Children and Families,Social Care,Agency Payments,Services Rendered By Voluntary Sector,505,24/01/2023,2301-00089,0.00,150.00,R,ABC NURSERY AT LUFC,No
Http://opendatacommunities.org/id/metropolitan-district-council/leeds,Leeds City Council,31/01/2023,Children and Families,Social Care,Agency Payments,Services Rendered By Voluntary Sector,505,24/01/2023,2301-00090,0.00,450.00,R,ABC NURSERY AT LUFC,No
Http://opendatacommunities.org/id/metropolitan-district-council/leeds,Leeds City Council,31/01/2023,Children and Families,Social Care,Agency Payments,Services Rendered By Voluntary Sector,505,30/01/2023,2301-00091,0.00,3360.00,R,ABC NURSERY AT LUFC,No
Http://opendatacommunities.org/id/metropolitan-district-council/leeds,Leeds City Council,31/01/2023,Children and Families,Social Care,Agency Payments,Services Rendered By Other Organisations,511,04/01/2023,2301-00092,0.00,2339.40,R,Abc@D'S Childcare,No
Http://opendatacommunities.org/id/metropolitan-district-council/leeds,Leeds City Council,31/01/2023,Children and Families,Social Care,Agency Payments,Services Rendered By Other Organisations,511,06/01/2023,2301-00093,0.00,8030.40,R,Abc@D'S Childcare,No
Http://opendatacommunities.org/id/metropolitan-district-council/leeds,Leeds City Council,31/01/2023,Children and Families,Social Care,Agency Payments,Services Rendered By Voluntary Sector,505,24/01/2023,2301-00094,0.00,201.67,R,Abc@D'S Childcare,No
Http://opendatacommunities.org/id/metropolitan-district-council/leeds,Leeds City Council,31/01/2023,Children and Families,Social Care,Agency Payments,Services Rendered By Voluntary Sector,505,30/01/2023,2301-00095,0.00,2016.00,R,Abc@D'S Childcare,No
Http://opendatacommunities.org/id/metropolitan-district-council/leeds,Leeds City Council,31/01/2023,Communities Housing and Environment,Customer Access,Supplies and Services,Bought In Professional Services,277,06/01/2023,2301-00096,0.00,25.50,R,Abdiqafar Abdullahi,No
Http://opendatacommunities.org/id/metropolitan-district-council/leeds,Leeds City Council,31/01/2023,Communities Housing and Environment,Elections Licensing and Registration,External Income,Admissions Booking Fees & Ticket Sales,933,26/01/2023,2301-00097,0.00,190.00,R,REDACTED PERSONAL DATA,No
Http://opendatacommunities.org/id/metropolitan-district-council/leeds,Leeds City Council,31/01/2023,Communities Housing and Environment,Customer Access,Supplies and Services,Bought In Professional Services,277,11/01/2023,2301-00098,0.00,18.00,R,Abdul Kalam,No
Http://opendatacommunities.org/id/metropolitan-district-council/leeds,Leeds City Council,31/01/2023,Communities Housing and Environment,Customer Access,Supplies and Services,Bought In Professional Services,277,18/01/2023,2301-00099,0.00,36.00,R,Abdul Kalam,No
Http://opendatacommunities.org/id/metropolitan-district-council/leeds,Leeds City Council,31/01/2023,Communities Housing and Environment,Customer Access,Supplies and Services,Bought In Professional Services,277,25/01/2023,2301-00100,0.00,18.00,R,Abdul Kalam,No
Http://opendatacommunities.org/id/metropolitan-district-council/leeds,Leeds City Council,31/01/2023,Communities Housing and Environment,Customer Access,Supplies and Services,Bought In Professional Services,277,06/01/2023,2301-00101,0.00,18.00,R,Abdulahad Denha,No
Http://opendatacommunities.org/id/metropolitan-district-council/leeds,Leeds City Council,31/01/2023,Communities Housing and Environment,Customer Access,Supplies and Services,Bought In Professional Services,277,06/01/2023,2301-00102,0.00,18.00,R,Abdulahad Denha,No
Http://opendatacommunities.org/id/metropolitan-district-council/leeds,Leeds City Council,31/01/2023,Communities Housing and Environment,Customer Access,Supplies and Services,Bought In Professional Services,277,11/01/2023,2301-00103,0.00,9.00,R,Abdulahad Denha,No
Http://opendatacommunities.org/id/metropolitan-district-council/leeds,Leeds City Council,31/01/2023,Communities Housing and Environment,Customer Access,Supplies and Services,Bought In Professional Services,277,11/01/2023,2301-00104,0.00,18.00,R,Abdulahad Denha,No
Http://opendatacommunities.org/id/metropolitan-district-council/leeds,Leeds City Council,31/01/2023,Communities Housing and Environment,Customer Access,Supplies and Services,Bought In Professional Services,277,11/01/2023,2301-00105,0.00,18.00,R,Abdulahad Denha,No
Http://opendatacommunities.org/id/metropolitan-district-council/leeds,Leeds City Council,31/01/2023,Communities Housing and Environment,Customer Access,Supplies and Services,Bought In Professional Services,277,11/01/2023,2301-00106,0.00,18.00,R,Abdulahad Denha,No
Http://opendatacommunities.org/id/metropolitan-district-council/leeds,Leeds City Council,31/01/2023,Communities Housing and Environment,Customer Access,Supplies and Services,Bought In Professional Services,277,11/01/2023,2301-00107,0.00,18.00,R,Abdulahad Denha,No
Http://opendatacommunities.org/id/metropolitan-district-council/leeds,Leeds City Council,31/01/2023,Communities Housing and Environment,Customer Access,Supplies and Services,Bought In Professional Services,277,11/01/2023,2301-00108,0.00,18.00,R,Abdulahad Denha,No
Http://opendatacommunities.org/id/metropolitan-district-council/leeds,Leeds City Council,31/01/2023,Communities Housing and Environment,Customer Access,Supplies and Services,Bought In Professional Services,277,18/01/2023,2301-00109,0.00,18.00,R,Abdulahad Denha,No
Http://opendatacommunities.org/id/metropolitan-district-council/leeds,Leeds City Council,31/01/2023,Communities Housing and Environment,Customer Access,Supplies and Services,Bought In Professional Services,277,18/01/2023,2301-00110,0.00,18.00,R,Abdulahad Denha,No
Http://opendatacommunities.org/id/metropolitan-district-council/leeds,Leeds City Council,31/01/2023,Communities Housing and Environment,Customer Access,Supplies and Services,Bought In Professional Services,277,25/01/2023,2301-00111,0.00,18.00,R,Abdulahad Denha,No
Http://opendatacommunities.org/id/metropolitan-district-council/leeds,Leeds City Council,31/01/2023,Communities Housing and Environment,Customer Access,Supplies and Services,Bought In Professional Services,277,25/01/2023,2301-00112,0.00,18.00,R,Abdulahad Denha,No
Http://opendatacommunities.org/id/metropolitan-district-council/leeds,Leeds City Council,31/01/2023,Communities Housing and Environment,Customer Access,Supplies and Services,Bought In Professional Services,277,25/01/2023,2301-00113,0.00,18.00,R,Abdulahad Denha,No
Http://opendatacommunities.org/id/metropolitan-district-council/leeds,Leeds City Council,31/01/2023,Communities Housing and Environment,Customer Access,Supplies and Services,Bought In Professional Services,277,18/01/2023,2301-00114,0.00,9.00,R,Abdulrahim Dastyar,No
Http://opendatacommunities.org/id/metropolitan-district-council/leeds,Leeds City Council,31/01/2023,Communities Housing and Environment,Customer Access,Supplies and Services,Bought In Professional Services,277,18/01/2023,2301-00115,0.00,18.00,R,Abdulrahim Dastyar,No
Http://opendatacommunities.org/id/metropolitan-district-council/leeds,Leeds City Council,31/01/2023,Communities Housing and Environment,Customer Access,Supplies and Services,Bought In Professional Services,277,25/01/2023,2301-00116,0.00,13.50,R,Abdulrahim Dastyar,No
Http://opendatacommunities.org/id/metropolitan-district-council/leeds,Leeds City Council,31/01/2023,Communities Housing and Environment,Customer Access,Supplies and Services,Bought In Professional Services,277,25/01/2023,2301-00117,0.00,18.00,R,Abdulrahim Dastyar,No
Http://opendatacommunities.org/id/metropolitan-district-council/leeds,Leeds City Council,31/01/2023,Children and Families,Social Care,Agency Payments,Placement Support,550,13/01/2023,2301-00118,0.00,464.00,R,Aberford Childcare Services,No
Http://opendatacommunities.org/id/metropolitan-district-council/leeds,Leeds City Council,31/01/2023,Resources,Leeds Building Services,Supplies and Services,Operational Materials,205,06/01/2023,2301-00119,0.00,390.88,R,ABI GARAGE DOORS LTD,No
Http://opendatacommunities.org/id/metropolitan-district-council/leeds,Leeds City Council,31/01/2023,Resources,Leeds Building Services,Supplies and Services,Operational Materials,205,06/01/2023,2301-00120,0.00,390.88,R,ABI GARAGE DOORS LTD,No
Http://opendatacommunities.org/id/metropolitan-district-council/leeds,Leeds City Council,31/01/2023,Resources,Leeds Building Services,Supplies and Services,Operational Materials,205,06/01/2023,2301-00121,0.00,390.88,R,ABI GARAGE DOORS LTD,No
Http://opendatacommunities.org/id/metropolitan-district-council/leeds,Leeds City Council,31/01/2023,Resources,Leeds Building Services,Supplies and Services,Operational Materials,205,06/01/2023,2301-00122,0.00,390.88,R,ABI GARAGE DOORS LTD,No
Http://opendatacommunities.org/id/metropolitan-district-council/leeds,Leeds City Council,31/01/2023,Resources,Leeds Building Services,Supplies and Services,Operational Materials,205,06/01/2023,2301-00123,0.00,390.88,R,ABI GARAGE DOORS LTD,No
Http://opendatacommunities.org/id/metropolitan-district-council/leeds,Leeds City Council,31/01/2023,Resources,Leeds Building Services,Supplies and Services,Operational Materials,205,06/01/2023,2301-00124,0.00,390.88,R,ABI GARAGE DOORS LTD,No
Http://opendatacommunities.org/id/metropolitan-district-council/leeds,Leeds City Council,31/01/2023,Resources,Leeds Building Services,Supplies and Services,Operational Materials,205,06/01/2023,2301-00125,0.00,399.20,R,ABI GARAGE DOORS LTD,No
Http://opendatacommunities.org/id/metropolitan-district-council/leeds,Leeds City Council,31/01/2023,Resources,Leeds Building Services,Supplies and Services,Operational Materials,205,06/01/2023,2301-00126,0.00,390.88,R,ABI GARAGE DOORS LTD,No
Http://opendatacommunities.org/id/metropolitan-district-council/leeds,Leeds City Council,31/01/2023,Resources,Leeds Building Services,Supplies and Services,Operational Materials,205,06/01/2023,2301-00127,0.00,65.00,R,ABI GARAGE DOORS LTD,No
Http://opendatacommunities.org/id/metropolitan-district-council/leeds,Leeds City Council,31/01/2023,Resources,Leeds Building Services,Supplies and Services,Operational Materials,205,13/01/2023,2301-00128,0.00,390.88,R,ABI GARAGE DOORS LTD,No
Http://opendatacommunities.org/id/metropolitan-district-council/leeds,Leeds City Council,31/01/2023,Resources,Leeds Building Services,Supplies and Services,Operational Materials,205,31/01/2023,2301-00129,0.00,437.20,R,ABI GARAGE DOORS LTD,No
Http://opendatacommunities.org/id/metropolitan-district-council/leeds,Leeds City Council,31/01/2023,Communities Housing and Environment,Customer Access,Supplies and Services,Bought In Professional Services,277,18/01/2023,2301-00130,0.00,9.60,R,Abida Begum,No
Http://opendatacommunities.org/id/metropolitan-district-council/leeds,Leeds City Council,31/01/2023,Children and Families,Social Care ,Appropriations,Leaving Care Allowances,634,14/12/2022,2301-00131,0.00,129.00,R,Abl Retail Ltd,Yes
Http://opendatacommunities.org/id/metropolitan-district-council/leeds,Leeds City Council,31/01/2023,Children and Families,Social Care ,Agency Payments,Section 17,551,21/12/2022,2301-00132,0.00,99.00,R,Abl Retail Ltd,Yes
Http://opendatacommunities.org/id/metropolitan-district-council/leeds,Leeds City Council,31/01/2023,Children and Families,Social Care,Agency Payments,General External Residential Placements,507,24/01/2023,2301-00133,0.00,17692.01,R,Absolute Children's Services Ltd,No
Http://opendatacommunities.org/id/metropolitan-district-council/leeds,Leeds City Council,31/01/2023,Children and Families,Social Care,Employees,Training & Development,70,06/01/2023,2301-00134,0.00,1000.00,R,AC EDUCATION,No
Http://opendatacommunities.org/id/metropolitan-district-council/leeds,Leeds City Council,31/01/2023,Children and Families,Social Care ,Appropriations,Payments To Residents,622,16/12/2022,2301-00135,0.00,28.45,R,Acccessorize Brand,Yes
Http://opendatacommunities.org/id/metropolitan-district-council/leeds,Leeds City Council,31/01/2023,Communities Housing and Environment,Strategic Housing Partnership & Support,Supplies and Services,Other Hired And Contracted Services,265,27/01/2023,2301-00136,0.00,714.38,R,Accent Foundation Ltd,No
Http://opendatacommunities.org/id/metropolitan-district-council/leeds,Leeds City Council,31/01/2023,Strategic Landlord,Housing Management,Supplies and Services,Resaleable Materials,204,06/01/2023,2301-00137,0.00,54.00,R,ACCESS LOCKSMITHS (LEEDS) LIMITED,No
Http://opendatacommunities.org/id/metropolitan-district-council/leeds,Leeds City Council,31/01/2023,Strategic Landlord,Housing Management,Supplies and Services,Resaleable Materials,204,06/01/2023,2301-00138,0.00,18.00,R,ACCESS LOCKSMITHS (LEEDS) LIMITED,No
Http://opendatacommunities.org/id/metropolitan-district-council/leeds,Leeds City Council,31/01/2023,Resources,Leeds Building Services,Supplies and Services,Operational Materials,205,09/01/2023,2301-00139,0.00,38.75,R,ACCESS LOCKSMITHS (LEEDS) LIMITED,No
Http://opendatacommunities.org/id/metropolitan-district-council/leeds,Leeds City Council,31/01/2023,Resources,Leeds Building Services,Supplies and Services,Operational Materials,205,09/01/2023,2301-00140,0.00,85.90,R,ACCESS LOCKSMITHS (LEEDS) LIMITED,No
Http://opendatacommunities.org/id/metropolitan-district-council/leeds,Leeds City Council,31/01/2023,Resources,Leeds Building Services,Supplies and Services,Operational Materials,205,09/01/2023,2301-00141,0.00,39.76,R,ACCESS LOCKSMITHS (LEEDS) LIMITED,No
Http://opendatacommunities.org/id/metropolitan-district-council/leeds,Leeds City Council,31/01/2023,Resources,Technology,Supplies and Services,Computer Software & Equipment,214,20/01/2023,2301-00142,0.00,14451.00,R,Access Uk Ltd,No
Http://opendatacommunities.org/id/metropolitan-district-council/leeds,Leeds City Council,31/01/2023,City Development,Libraries Arts & Heritage,Supplies and Services,Bought In Professional Services,277,06/01/2023,2301-00143,0.00,9642.50,R,Accessible By Design Ltd,No
Http://opendatacommunities.org/id/metropolitan-district-council/leeds,Leeds City Council,31/01/2023,Insurance,Insurance,Supplies and Services,Insurance Claims,248,25/01/2023,2301-00144,0.00,2991.63,R,Accidnet Assist,No
Http://opendatacommunities.org/id/metropolitan-district-council/leeds,Leeds City Council,31/01/2023,Insurance,Insurance,Supplies and Services,Insurance Claims,248,12/01/2023,2301-00145,0.00,5000.00,R,Accountant General Of The Senior Courts,No
Http://opendatacommunities.org/id/metropolitan-district-council/leeds,Leeds City Council,31/01/2023,Insurance,Insurance,Supplies and Services,Insurance Claims,248,19/01/2023,2301-00146,0.00,3000.00,R,Accountant General Of The Senior Courts,No
Http://opendatacommunities.org/id/metropolitan-district-council/leeds,Leeds City Council,31/01/2023,Insurance,Insurance,Supplies and Services,Insurance Claims,248,19/01/2023,2301-00147,0.00,5000.00,R,Accountant General Of The Senior Courts,No
Http://opendatacommunities.org/id/metropolitan-district-council/leeds,Leeds City Council,31/01/2023,Insurance,Insurance,Supplies and Services,Insurance Claims,248,26/01/2023,2301-00148,0.00,3000.00,R,Accountant General Of The Senior Courts,No
Http://opendatacommunities.org/id/metropolitan-district-council/leeds,Leeds City Council,31/01/2023,Insurance,Insurance,Supplies and Services,Insurance Claims,248,26/01/2023,2301-00149,0.00,5000.00,R,Accountant General Of The Senior Courts,No
Http://opendatacommunities.org/id/metropolitan-district-council/leeds,Leeds City Council,31/01/2023,Resources,Leeds Building Services,Supplies and Services,Other Hired And Contracted Services,265,13/01/2023,2301-00150,0.00,244.00,R,Ace Elevators Limited,No
Http://opendatacommunities.org/id/metropolitan-district-council/leeds,Leeds City Council,31/01/2023,Resources,Leeds Building Services,Supplies and Services,Other Hired And Contracted Services,265,13/01/2023,2301-00151,0.00,1960.00,R,Ace Elevators Limited,No
Http://opendatacommunities.org/id/metropolitan-district-council/leeds,Leeds City Council,31/01/2023,Resources,Leeds Building Services,Supplies and Services,Other Hired And Contracted Services,265,27/01/2023,2301-00152,0.00,2000.00,R,Ace Elevators Limited,No
Http://opendatacommunities.org/id/metropolitan-district-council/leeds,Leeds City Council,31/01/2023,City Development,Asset Management Services ,Supplies and Services,Licences,266,15/12/2022,2301-00153,0.00,80.00,R,Aces.Org.Uk,Yes
Http://opendatacommunities.org/id/metropolitan-district-council/leeds,Leeds City Council,31/01/2023,Strategic Landlord,HRA Council Housing Growth Programme,Captial,LAND,1,18/01/2023,2301-00154,0.00,250.00,C,Ackroyd Legal (London) LLP,No
Http://opendatacommunities.org/id/metropolitan-district-council/leeds,Leeds City Council,31/01/2023,Children and Families,Learning,Agency Payments,SEN Placements,566,18/01/2023,2301-00155,0.00,27821.66,R,ACKWORTH SCHOOL,No
Http://opendatacommunities.org/id/metropolitan-district-council/leeds,Leeds City Council,31/01/2023,Communities Housing and Environment,Parks and Countryside ,Supplies and Services,Other Hired And Contracted Services,265,13/12/2022,2301-00156,0.00,107.50,R,Acme Facilities Group,Yes
Http://opendatacommunities.org/id/metropolitan-district-council/leeds,Leeds City Council,31/01/2023,Children and Families,Social Care,Agency Payments,General External Residential Placements,507,06/01/2023,2301-00157,0.00,18434.27,R,Acorn Care & Education Ltd (Sales),No
Http://opendatacommunities.org/id/metropolitan-district-council/leeds,Leeds City Council,31/01/2023,Children and Families,Social Care,Agency Payments,General External Residential Placements,507,06/01/2023,2301-00158,0.00,14427.36,R,Acorn Care & Education Ltd (Sales),No
Http://opendatacommunities.org/id/metropolitan-district-council/leeds,Leeds City Council,31/01/2023,Children and Families,Social Care,Agency Payments,General External Residential Placements,507,06/01/2023,2301-00159,0.00,18034.20,R,Acorn Care & Education Ltd (Sales),No
Http://opendatacommunities.org/id/metropolitan-district-council/leeds,Leeds City Council,31/01/2023,Children and Families,Learning,Agency Payments,SEN Placements,566,19/01/2023,2301-00160,0.00,800.49,R,Acorn Care & Education Ltd (Sales),No
Http://opendatacommunities.org/id/metropolitan-district-council/leeds,Leeds City Council,31/01/2023,Children and Families,Learning,Agency Payments,SEN Placements,566,19/01/2023,2301-00161,0.00,12407.58,R,Acorn Care & Education Ltd (Sales),No
Http://opendatacommunities.org/id/metropolitan-district-council/leeds,Leeds City Council,31/01/2023,Children and Families,Learning,Agency Payments,SEN Placements,566,19/01/2023,2301-00162,0.00,12007.34,R,Acorn Care & Education Ltd (Sales),No
Http://opendatacommunities.org/id/metropolitan-district-council/leeds,Leeds City Council,31/01/2023,Children and Families,Learning,Agency Payments,SEN Placements,566,19/01/2023,2301-00163,0.00,12407.58,R,Acorn Care & Education Ltd (Sales),No
Http://opendatacommunities.org/id/metropolitan-district-council/leeds,Leeds City Council,31/01/2023,Children and Families,Learning,Agency Payments,SEN Placements,566,19/01/2023,2301-00164,0.00,12407.58,R,Acorn Care & Education Ltd (Sales),No
Http://opendatacommunities.org/id/metropolitan-district-council/leeds,Leeds City Council,31/01/2023,Children and Families,Learning,Agency Payments,SEN Placements,566,19/01/2023,2301-00165,0.00,12407.58,R,Acorn Care & Education Ltd (Sales),No
Http://opendatacommunities.org/id/metropolitan-district-council/leeds,Leeds City Council,31/01/2023,Children and Families,Learning,Agency Payments,SEN Placements,566,19/01/2023,2301-00166,0.00,12407.58,R,Acorn Care & Education Ltd (Sales),No
Http://opendatacommunities.org/id/metropolitan-district-council/leeds,Leeds City Council,31/01/2023,Children and Families,Learning,Agency Payments,SEN Placements,566,25/01/2023,2301-00167,0.00,21797.45,R,Acorn Care & Education Ltd (Sales),No
Http://opendatacommunities.org/id/metropolitan-district-council/leeds,Leeds City Council,31/01/2023,Children and Families,Learning,Agency Payments,SEN Placements,566,25/01/2023,2301-00168,0.00,12007.34,R,Acorn Care & Education Ltd (Sales),No
Http://opendatacommunities.org/id/metropolitan-district-council/leeds,Leeds City Council,31/01/2023,Children and Families,Social Care,Agency Payments,Services Rendered By Other Organisations,511,04/01/2023,2301-00169,0.00,668.40,R,ACORNS NURSERY,No
Http://opendatacommunities.org/id/metropolitan-district-council/leeds,Leeds City Council,31/01/2023,Children and Families,Social Care,Agency Payments,Services Rendered By Other Organisations,511,06/01/2023,2301-00170,0.00,13192.80,R,ACORNS NURSERY,No
Http://opendatacommunities.org/id/metropolitan-district-council/leeds,Leeds City Council,31/01/2023,Children and Families,Social Care,Agency Payments,Services Rendered By Voluntary Sector,505,24/01/2023,2301-00171,0.00,91.67,R,ACORNS NURSERY,No
Http://opendatacommunities.org/id/metropolitan-district-council/leeds,Leeds City Council,31/01/2023,Children and Families,Social Care,Agency Payments,Services Rendered By Voluntary Sector,505,30/01/2023,2301-00172,0.00,2352.00,R,ACORNS NURSERY,No
Http://opendatacommunities.org/id/metropolitan-district-council/leeds,Leeds City Council,31/01/2023,Children and Families,Social Care,Agency Payments,Services Rendered By Other Organisations,511,04/01/2023,2301-00173,0.00,1629.22,R,Acre Wood Day Nursery,No
Http://opendatacommunities.org/id/metropolitan-district-council/leeds,Leeds City Council,31/01/2023,Children and Families,Social Care,Agency Payments,Services Rendered By Other Organisations,511,06/01/2023,2301-00174,0.00,17208.00,R,Acre Wood Day Nursery,No
Http://opendatacommunities.org/id/metropolitan-district-council/leeds,Leeds City Council,31/01/2023,Children and Families,Social Care,Agency Payments,Services Rendered By Voluntary Sector,505,30/01/2023,2301-00175,0.00,1680.00,R,Acre Wood Day Nursery,No
Http://opendatacommunities.org/id/metropolitan-district-council/leeds,Leeds City Council,31/01/2023,Adults and Health,Services For Adults Under 65 Mental/Dis,Agency Payments,Fees - Level 4,520,20/01/2023,2301-00176,0.00,860.00,R,Action First Assessments Ltd,No
Http://opendatacommunities.org/id/metropolitan-district-council/leeds,Leeds City Council,31/01/2023,Children and Families,Social Care,Agency Payments,Services Rendered By Voluntary Sector,505,09/01/2023,2301-00177,0.00,275.00,R,Active Kids (Yeadon),No
Http://opendatacommunities.org/id/metropolitan-district-council/leeds,Leeds City Council,31/01/2023,Children and Families,Social Care,Agency Payments,Services Rendered By Voluntary Sector,505,24/01/2023,2301-00178,0.00,900.00,R,Active Kids (Yeadon),No
Http://opendatacommunities.org/id/metropolitan-district-council/leeds,Leeds City Council,31/01/2023,Children and Families,Social Care,Agency Payments,Services Rendered By Voluntary Sector,505,30/01/2023,2301-00179,0.00,1680.00,R,Active Kids (Yeadon),No
Http://opendatacommunities.org/id/metropolitan-district-council/leeds,Leeds City Council,31/01/2023,Children and Families,Social Care,Agency Payments,Services Rendered By Other Organisations,511,04/01/2023,2301-00180,0.00,1671.00,R,ACTIVE KIDS YEADON LLP,No
Http://opendatacommunities.org/id/metropolitan-district-council/leeds,Leeds City Council,31/01/2023,Children and Families,Social Care,Agency Payments,Services Rendered By Other Organisations,511,06/01/2023,2301-00181,0.00,10133.60,R,ACTIVE KIDS YEADON LLP,No
Http://opendatacommunities.org/id/metropolitan-district-council/leeds,Leeds City Council,31/01/2023,Children and Families,Social Care ,Supplies and Services,Clothing & Uniforms,241,22/12/2022,2301-00182,0.00,24.12,R,Activewearb,Yes
Http://opendatacommunities.org/id/metropolitan-district-council/leeds,Leeds City Council,31/01/2023,Communities Housing and Environment,Waste Management,Supplies and Services,Recycling & Reuse Charges,234,11/01/2023,2301-00183,0.00,12992.40,R,Acumen Waste Services Ltd,No
Http://opendatacommunities.org/id/metropolitan-district-council/leeds,Leeds City Council,31/01/2023,Communities Housing and Environment,Waste Management,Supplies and Services,Recycling & Reuse Charges,234,13/01/2023,2301-00184,0.00,4716.00,R,Acumen Waste Services Ltd,No
Http://opendatacommunities.org/id/metropolitan-district-council/leeds,Leeds City Council,31/01/2023,Resources,Shared Services,Supplies and Services,Operational Materials,205,20/01/2023,2301-00185,0.00,1497.00,R,AD3 Envelope Printers Limited,No
Http://opendatacommunities.org/id/metropolitan-district-council/leeds,Leeds City Council,31/01/2023,Children and Families,Social Care,Transport,Fuel (Non LCC Supplies),321,19/01/2023,2301-00186,0.00,20.00,R,REDACTED PERSONAL DATA,No
Http://opendatacommunities.org/id/metropolitan-district-council/leeds,Leeds City Council,31/01/2023,City Development,Markets & City Centre Management,Supplies and Services,Publication And Promotion,267,13/01/2023,2301-00187,0.00,540.00,R,Adam Hamill,No
Http://opendatacommunities.org/id/metropolitan-district-council/leeds,Leeds City Council,31/01/2023,Children and Families,Social Care,Appropriations,Leaving Care Allowances,634,06/01/2023,2301-00188,0.00,52.00,R,REDACTED PERSONAL DATA,No
Http://opendatacommunities.org/id/metropolitan-district-council/leeds,Leeds City Council,31/01/2023,Children and Families,Social Care,Agency Payments,Contact,548,13/01/2023,2301-00189,0.00,9.00,R,REDACTED PERSONAL DATA,No
Http://opendatacommunities.org/id/metropolitan-district-council/leeds,Leeds City Council,31/01/2023,Children and Families,Social Care,Agency Payments,Contact,548,20/01/2023,2301-00190,0.00,9.00,R,REDACTED PERSONAL DATA,No
Http://opendatacommunities.org/id/metropolitan-district-council/leeds,Leeds City Council,31/01/2023,Children and Families,Social Care,Agency Payments,Contact,548,27/01/2023,2301-00191,0.00,9.00,R,REDACTED PERSONAL DATA,No
Http://opendatacommunities.org/id/metropolitan-district-council/leeds,Leeds City Council,31/01/2023,Children and Families,Social Care,Agency Payments,Contact,548,27/01/2023,2301-00192,0.00,30.30,R,REDACTED PERSONAL DATA,No
Http://opendatacommunities.org/id/metropolitan-district-council/leeds,Leeds City Council,31/01/2023,Children and Families,Social Care,Agency Payments,Contact,548,31/01/2023,2301-00193,0.00,20.20,R,REDACTED PERSONAL DATA,No
Http://opendatacommunities.org/id/metropolitan-district-council/leeds,Leeds City Council,31/01/2023,Children and Families,Social Care,Agency Payments,Placement Support,550,27/01/2023,2301-00194,0.00,43.60,R,REDACTED PERSONAL DATA,No
Http://opendatacommunities.org/id/metropolitan-district-council/leeds,Leeds City Council,31/01/2023,Communities Housing and Environment,Strategic Housing Partnership & Support,Captial,CONSTRUCTION,3,19/01/2023,2301-00195,0.00,8000.00,C,Adam'S Gas Services,No
Http://opendatacommunities.org/id/metropolitan-district-council/leeds,Leeds City Council,31/01/2023,City Development,Libraries Arts & Heritage,Supplies and Services,Other Hired And Contracted Services,265,06/01/2023,2301-00196,0.00,1500.00,R,Addictive Audio,No
Http://opendatacommunities.org/id/metropolitan-district-council/leeds,Leeds City Council,31/01/2023,City Development,Libraries Arts & Heritage,Supplies and Services,Other Hired And Contracted Services,265,06/01/2023,2301-00197,0.00,1500.00,R,Addictive Audio,No
Http://opendatacommunities.org/id/metropolitan-district-council/leeds,Leeds City Council,31/01/2023,Children and Families,Social Care,Agency Payments,Services Rendered By Voluntary Sector,505,04/01/2023,2301-00198,0.00,1002.60,R,ADEL PRE SCHOOL,No
Http://opendatacommunities.org/id/metropolitan-district-council/leeds,Leeds City Council,31/01/2023,Children and Families,Social Care,Agency Payments,Services Rendered By Voluntary Sector,505,06/01/2023,2301-00199,0.00,4588.80,R,ADEL PRE SCHOOL,No
Http://opendatacommunities.org/id/metropolitan-district-council/leeds,Leeds City Council,31/01/2023,Children and Families,Social Care,Agency Payments,Services Rendered By Voluntary Sector,505,24/01/2023,2301-00200,0.00,1120.00,R,ADEL PRE SCHOOL,No
Http://opendatacommunities.org/id/metropolitan-district-council/leeds,Leeds City Council,31/01/2023,Children and Families,Social Care,Agency Payments,Services Rendered By Voluntary Sector,505,30/01/2023,2301-00201,0.00,5040.00,R,ADEL PRE SCHOOL,No
Http://opendatacommunities.org/id/metropolitan-district-council/leeds,Leeds City Council,31/01/2023,City Development,Recreation,Supplies and Services,Bought In Professional Services,277,19/01/2023,2301-00202,0.00,120.00,R,Adele Battersby,No
Http://opendatacommunities.org/id/metropolitan-district-council/leeds,Leeds City Council,31/01/2023,City Development,Recreation,Supplies and Services,Bought In Professional Services,277,19/01/2023,2301-00203,0.00,20.00,R,Adele Battersby,No
Http://opendatacommunities.org/id/metropolitan-district-council/leeds,Leeds City Council,31/01/2023,City Development,Recreation,Supplies and Services,Bought In Professional Services,277,19/01/2023,2301-00204,0.00,20.00,R,Adele Battersby,No
Http://opendatacommunities.org/id/metropolitan-district-council/leeds,Leeds City Council,31/01/2023,City Development,Recreation,Supplies and Services,Bought In Professional Services,277,27/01/2023,2301-00205,0.00,220.00,R,Adele Battersby,No
Http://opendatacommunities.org/id/metropolitan-district-council/leeds,Leeds City Council,31/01/2023,Children and Families,Social Care,Agency Payments,Services Rendered By Other Organisations,511,06/01/2023,2301-00206,0.00,1434.00,R,REDACTED PERSONAL DATA,No
Http://opendatacommunities.org/id/metropolitan-district-council/leeds,Leeds City Council,31/01/2023,Resources,Commercial Services,Supplies and Services,Other Hired And Contracted Services,265,06/01/2023,2301-00207,0.00,62.40,R,REDACTED PERSONAL DATA,No
Http://opendatacommunities.org/id/metropolitan-district-council/leeds,Leeds City Council,31/01/2023,Resources,Commercial Services,Supplies and Services,Other Hired And Contracted Services,265,26/01/2023,2301-00208,0.00,133.59,R,REDACTED PERSONAL DATA,No
Http://opendatacommunities.org/id/metropolitan-district-council/leeds,Leeds City Council,31/01/2023,Resources,Commercial Services,Supplies and Services,Other Hired And Contracted Services,265,27/01/2023,2301-00209,0.00,62.76,R,REDACTED PERSONAL DATA,No
Http://opendatacommunities.org/id/metropolitan-district-council/leeds,Leeds City Council,31/01/2023,Resources,Commercial Services,Supplies and Services,Compensation Claims,200,03/01/2023,2301-00210,0.00,960.00,R,REDACTED PERSONAL DATA,No
Http://opendatacommunities.org/id/metropolitan-district-council/leeds,Leeds City Council,31/01/2023,Resources,Leeds Building Services,Supplies and Services,Operational Materials,205,05/01/2023,2301-00211,0.00,173.34,R,ADI-Gardiner Ltd,No
Http://opendatacommunities.org/id/metropolitan-district-council/leeds,Leeds City Council,31/01/2023,Resources,Leeds Building Services,Supplies and Services,Operational Materials,205,06/01/2023,2301-00212,0.00,11.13,R,ADI-Gardiner Ltd,No
Http://opendatacommunities.org/id/metropolitan-district-council/leeds,Leeds City Council,31/01/2023,Resources,Leeds Building Services,Supplies and Services,Operational Materials,205,06/01/2023,2301-00213,0.00,24.40,R,ADI-Gardiner Ltd,No
Http://opendatacommunities.org/id/metropolitan-district-council/leeds,Leeds City Council,31/01/2023,Resources,Leeds Building Services,Supplies and Services,Operational Materials,205,06/01/2023,2301-00214,0.00,2100.30,R,ADI-Gardiner Ltd,No
Http://opendatacommunities.org/id/metropolitan-district-council/leeds,Leeds City Council,31/01/2023,Resources,Leeds Building Services,Supplies and Services,Operational Materials,205,06/01/2023,2301-00215,0.00,12.89,R,ADI-Gardiner Ltd,No
Http://opendatacommunities.org/id/metropolitan-district-council/leeds,Leeds City Council,31/01/2023,Resources,Leeds Building Services,Supplies and Services,Operational Materials,205,06/01/2023,2301-00216,0.00,20.85,R,ADI-Gardiner Ltd,No
Http://opendatacommunities.org/id/metropolitan-district-council/leeds,Leeds City Council,31/01/2023,Resources,Leeds Building Services,Supplies and Services,Operational Materials,205,06/01/2023,2301-00217,0.00,4960.31,R,ADI-Gardiner Ltd,No
Http://opendatacommunities.org/id/metropolitan-district-council/leeds,Leeds City Council,31/01/2023,Resources,Leeds Building Services,Supplies and Services,Operational Materials,205,06/01/2023,2301-00218,0.00,954.75,R,ADI-Gardiner Ltd,No
Http://opendatacommunities.org/id/metropolitan-district-council/leeds,Leeds City Council,31/01/2023,Resources,Leeds Building Services,Supplies and Services,Operational Materials,205,06/01/2023,2301-00219,0.00,5.63,R,ADI-Gardiner Ltd,No
Http://opendatacommunities.org/id/metropolitan-district-council/leeds,Leeds City Council,31/01/2023,Resources,Leeds Building Services,Supplies and Services,Operational Materials,205,06/01/2023,2301-00220,0.00,1979.37,R,ADI-Gardiner Ltd,No
Http://opendatacommunities.org/id/metropolitan-district-council/leeds,Leeds City Council,31/01/2023,Resources,Leeds Building Services,Supplies and Services,Operational Materials,205,06/01/2023,2301-00221,0.00,311.00,R,ADI-Gardiner Ltd,No
Http://opendatacommunities.org/id/metropolitan-district-council/leeds,Leeds City Council,31/01/2023,Resources,Leeds Building Services,Supplies and Services,Operational Materials,205,06/01/2023,2301-00222,0.00,751.73,R,ADI-Gardiner Ltd,No
Http://opendatacommunities.org/id/metropolitan-district-council/leeds,Leeds City Council,31/01/2023,Resources,Leeds Building Services,Supplies and Services,Operational Materials,205,06/01/2023,2301-00223,0.00,4548.00,R,ADI-Gardiner Ltd,No
Http://opendatacommunities.org/id/metropolitan-district-council/leeds,Leeds City Council,31/01/2023,Resources,Leeds Building Services,Supplies and Services,Operational Materials,205,06/01/2023,2301-00224,0.00,4845.00,R,ADI-Gardiner Ltd,No
Http://opendatacommunities.org/id/metropolitan-district-council/leeds,Leeds City Council,31/01/2023,Resources,Leeds Building Services,Supplies and Services,Operational Materials,205,06/01/2023,2301-00225,0.00,4080.00,R,ADI-Gardiner Ltd,No
Http://opendatacommunities.org/id/metropolitan-district-council/leeds,Leeds City Council,31/01/2023,Resources,Leeds Building Services,Supplies and Services,Operational Materials,205,06/01/2023,2301-00226,0.00,1011.50,R,ADI-Gardiner Ltd,No
Http://opendatacommunities.org/id/metropolitan-district-council/leeds,Leeds City Council,31/01/2023,Resources,Leeds Building Services,Supplies and Services,Operational Materials,205,06/01/2023,2301-00227,0.00,320.02,R,ADI-Gardiner Ltd,No
Http://opendatacommunities.org/id/metropolitan-district-council/leeds,Leeds City Council,31/01/2023,Resources,Leeds Building Services,Supplies and Services,Operational Materials,205,06/01/2023,2301-00228,0.00,581.77,R,ADI-Gardiner Ltd,No
Http://opendatacommunities.org/id/metropolitan-district-council/leeds,Leeds City Council,31/01/2023,Resources,Leeds Building Services,Supplies and Services,Operational Materials,205,06/01/2023,2301-00229,0.00,244.91,R,ADI-Gardiner Ltd,No
Http://opendatacommunities.org/id/metropolitan-district-council/leeds,Leeds City Council,31/01/2023,Resources,Leeds Building Services,Supplies and Services,Operational Materials,205,06/01/2023,2301-00230,0.00,25.78,R,ADI-Gardiner Ltd,No
Http://opendatacommunities.org/id/metropolitan-district-council/leeds,Leeds City Council,31/01/2023,Resources,Leeds Building Services,Supplies and Services,Operational Materials,205,06/01/2023,2301-00231,0.00,25.78,R,ADI-Gardiner Ltd,No
Http://opendatacommunities.org/id/metropolitan-district-council/leeds,Leeds City Council,31/01/2023,Resources,Leeds Building Services,Supplies and Services,Operational Materials,205,06/01/2023,2301-00232,0.00,47.90,R,ADI-Gardiner Ltd,No
Http://opendatacommunities.org/id/metropolitan-district-council/leeds,Leeds City Council,31/01/2023,Resources,Leeds Building Services,Supplies and Services,Operational Materials,205,06/01/2023,2301-00233,0.00,91.98,R,ADI-Gardiner Ltd,No
Http://opendatacommunities.org/id/metropolitan-district-council/leeds,Leeds City Council,31/01/2023,Resources,Leeds Building Services,Supplies and Services,Operational Materials,205,06/01/2023,2301-00234,0.00,19.95,R,ADI-Gardiner Ltd,No
Http://opendatacommunities.org/id/metropolitan-district-council/leeds,Leeds City Council,31/01/2023,Resources,Leeds Building Services,Supplies and Services,Operational Materials,205,06/01/2023,2301-00235,0.00,10.99,R,ADI-Gardiner Ltd,No
Http://opendatacommunities.org/id/metropolitan-district-council/leeds,Leeds City Council,31/01/2023,Resources,Leeds Building Services,Supplies and Services,Operational Materials,205,06/01/2023,2301-00236,0.00,17.23,R,ADI-Gardiner Ltd,No
Http://opendatacommunities.org/id/metropolitan-district-council/leeds,Leeds City Council,31/01/2023,Resources,Leeds Building Services,Supplies and Services,Operational Materials,205,06/01/2023,2301-00237,0.00,8.64,R,ADI-Gardiner Ltd,No
Http://opendatacommunities.org/id/metropolitan-district-council/leeds,Leeds City Council,31/01/2023,Resources,Leeds Building Services,Supplies and Services,Operational Materials,205,06/01/2023,2301-00238,0.00,22.52,R,ADI-Gardiner Ltd,No
Http://opendatacommunities.org/id/metropolitan-district-council/leeds,Leeds City Council,31/01/2023,Resources,Leeds Building Services,Supplies and Services,Operational Materials,205,06/01/2023,2301-00239,0.00,38.74,R,ADI-Gardiner Ltd,No
Http://opendatacommunities.org/id/metropolitan-district-council/leeds,Leeds City Council,31/01/2023,Resources,Leeds Building Services,Supplies and Services,Operational Materials,205,06/01/2023,2301-00240,0.00,42.80,R,ADI-Gardiner Ltd,No
Http://opendatacommunities.org/id/metropolitan-district-council/leeds,Leeds City Council,31/01/2023,Resources,Leeds Building Services,Supplies and Services,Operational Materials,205,06/01/2023,2301-00241,0.00,21.00,R,ADI-Gardiner Ltd,No
Http://opendatacommunities.org/id/metropolitan-district-council/leeds,Leeds City Council,31/01/2023,Resources,Leeds Building Services,Supplies and Services,Operational Materials,205,06/01/2023,2301-00242,0.00,12.89,R,ADI-Gardiner Ltd,No
Http://opendatacommunities.org/id/metropolitan-district-council/leeds,Leeds City Council,31/01/2023,Resources,Leeds Building Services,Supplies and Services,Operational Materials,205,06/01/2023,2301-00243,0.00,12.89,R,ADI-Gardiner Ltd,No
Http://opendatacommunities.org/id/metropolitan-district-council/leeds,Leeds City Council,31/01/2023,Resources,Leeds Building Services,Supplies and Services,Operational Materials,205,11/01/2023,2301-00244,0.00,58.98,R,ADI-Gardiner Ltd,No
Http://opendatacommunities.org/id/metropolitan-district-council/leeds,Leeds City Council,31/01/2023,Resources,Leeds Building Services,Supplies and Services,Operational Materials,205,13/01/2023,2301-00245,0.00,9.58,R,ADI-Gardiner Ltd,No
Http://opendatacommunities.org/id/metropolitan-district-council/leeds,Leeds City Council,31/01/2023,Resources,Leeds Building Services,Supplies and Services,Operational Materials,205,18/01/2023,2301-00246,0.00,25.78,R,ADI-Gardiner Ltd,No
Http://opendatacommunities.org/id/metropolitan-district-council/leeds,Leeds City Council,31/01/2023,Resources,Leeds Building Services,Supplies and Services,Operational Materials,205,20/01/2023,2301-00247,0.00,828.40,R,ADI-Gardiner Ltd,No
Http://opendatacommunities.org/id/metropolitan-district-council/leeds,Leeds City Council,31/01/2023,Resources,Leeds Building Services,Supplies and Services,Operational Materials,205,24/01/2023,2301-00248,0.00,502.22,R,ADI-Gardiner Ltd,No
Http://opendatacommunities.org/id/metropolitan-district-council/leeds,Leeds City Council,31/01/2023,Resources,Leeds Building Services,Supplies and Services,Operational Materials,205,24/01/2023,2301-00249,0.00,223.11,R,ADI-Gardiner Ltd,No
Http://opendatacommunities.org/id/metropolitan-district-council/leeds,Leeds City Council,31/01/2023,City Development,Libraries Arts & Heritage ,Supplies and Services,Publication And Promotion,267,07/12/2022,2301-00250,0.00,43.32,R,Adobe Creative Cloud,Yes
Http://opendatacommunities.org/id/metropolitan-district-council/leeds,Leeds City Council,31/01/2023,Children and Families,Social Care,Agency Payments,Independent Fostering Agencies,509,06/01/2023,2301-00251,0.00,3630.00,R,Adolescent And Childrens Trust,No
Http://opendatacommunities.org/id/metropolitan-district-council/leeds,Leeds City Council,31/01/2023,Children and Families,Social Care,Agency Payments,Independent Fostering Agencies,509,06/01/2023,2301-00252,0.00,3450.00,R,Adolescent And Childrens Trust,No
Http://opendatacommunities.org/id/metropolitan-district-council/leeds,Leeds City Council,31/01/2023,Children and Families,Social Care,Agency Payments,Independent Fostering Agencies,509,06/01/2023,2301-00253,0.00,3450.00,R,Adolescent And Childrens Trust,No
Http://opendatacommunities.org/id/metropolitan-district-council/leeds,Leeds City Council,31/01/2023,Children and Families,Social Care,Agency Payments,Independent Fostering Agencies,509,06/01/2023,2301-00254,0.00,3630.00,R,Adolescent And Childrens Trust,No
Http://opendatacommunities.org/id/metropolitan-district-council/leeds,Leeds City Council,31/01/2023,Children and Families,Social Care,Agency Payments,Independent Fostering Agencies,509,06/01/2023,2301-00255,0.00,3630.00,R,Adolescent And Childrens Trust,No
Http://opendatacommunities.org/id/metropolitan-district-council/leeds,Leeds City Council,31/01/2023,Children and Families,Social Care,Agency Payments,Independent Fostering Agencies,509,06/01/2023,2301-00256,0.00,3437.10,R,Adolescent And Childrens Trust,No
Http://opendatacommunities.org/id/metropolitan-district-council/leeds,Leeds City Council,31/01/2023,Children and Families,Social Care,Agency Payments,Independent Fostering Agencies,509,06/01/2023,2301-00257,0.00,2904.00,R,Adolescent And Childrens Trust,No
Http://opendatacommunities.org/id/metropolitan-district-council/leeds,Leeds City Council,31/01/2023,Children and Families,Social Care,Agency Payments,Independent Fostering Agencies,509,06/01/2023,2301-00258,0.00,3540.00,R,Adolescent And Childrens Trust,No
Http://opendatacommunities.org/id/metropolitan-district-council/leeds,Leeds City Council,31/01/2023,Children and Families,Social Care,Agency Payments,Independent Fostering Agencies,509,06/01/2023,2301-00259,0.00,3540.00,R,Adolescent And Childrens Trust,No
Http://opendatacommunities.org/id/metropolitan-district-council/leeds,Leeds City Council,31/01/2023,Children and Families,Social Care,Agency Payments,Independent Fostering Agencies,509,06/01/2023,2301-00260,0.00,1235.70,R,Adolescent And Childrens Trust,No
Http://opendatacommunities.org/id/metropolitan-district-council/leeds,Leeds City Council,31/01/2023,Children and Families,Social Care,Agency Payments,Independent Fostering Agencies,509,06/01/2023,2301-00261,0.00,3420.00,R,Adolescent And Childrens Trust,No
Http://opendatacommunities.org/id/metropolitan-district-council/leeds,Leeds City Council,31/01/2023,Children and Families,Social Care,Agency Payments,Independent Fostering Agencies,509,06/01/2023,2301-00262,0.00,342.00,R,Adolescent And Childrens Trust,No
Http://opendatacommunities.org/id/metropolitan-district-council/leeds,Leeds City Council,31/01/2023,Children and Families,Social Care,Agency Payments,Independent Fostering Agencies,509,06/01/2023,2301-00263,0.00,342.00,R,Adolescent And Childrens Trust,No
Http://opendatacommunities.org/id/metropolitan-district-council/leeds,Leeds City Council,31/01/2023,Children and Families,Social Care,Agency Payments,Independent Fostering Agencies,509,06/01/2023,2301-00264,0.00,3186.00,R,Adolescent And Childrens Trust,No
Http://opendatacommunities.org/id/metropolitan-district-council/leeds,Leeds City Council,31/01/2023,Children and Families,Social Care,Agency Payments,Independent Fostering Agencies,509,16/01/2023,2301-00265,0.00,3336.39,R,Adolescent And Childrens Trust,No
Http://opendatacommunities.org/id/metropolitan-district-council/leeds,Leeds City Council,31/01/2023,Children and Families,Social Care,Agency Payments,Independent Fostering Agencies,509,16/01/2023,2301-00266,0.00,3336.39,R,Adolescent And Childrens Trust,No
Http://opendatacommunities.org/id/metropolitan-district-council/leeds,Leeds City Council,31/01/2023,Adults and Health,Services For Adults Under 65 Mental/Dis,Agency Payments,Home Care,568,04/01/2023,2301-00267,0.00,132.00,R,Adopt Healthcare Ltd,No
Http://opendatacommunities.org/id/metropolitan-district-council/leeds,Leeds City Council,31/01/2023,Adults and Health,Services For Adults Under 65 Mental/Dis,Agency Payments,Home Care,568,11/01/2023,2301-00268,0.00,536.00,R,Adopt Healthcare Ltd,No
Http://opendatacommunities.org/id/metropolitan-district-council/leeds,Leeds City Council,31/01/2023,Adults and Health,Services For Adults Under 65 Mental/Dis,Agency Payments,Home Care,568,11/01/2023,2301-00269,0.00,132.00,R,Adopt Healthcare Ltd,No
Http://opendatacommunities.org/id/metropolitan-district-council/leeds,Leeds City Council,31/01/2023,Adults and Health,Services For Adults Under 65 Mental/Dis,Agency Payments,Home Care,568,13/01/2023,2301-00270,0.00,410.25,R,Adopt Healthcare Ltd,No
Http://opendatacommunities.org/id/metropolitan-district-council/leeds,Leeds City Council,31/01/2023,Adults and Health,Services For Adults Under 65 Mental/Dis,Agency Payments,Home Care,568,13/01/2023,2301-00271,0.00,668.00,R,Adopt Healthcare Ltd,No
Http://opendatacommunities.org/id/metropolitan-district-council/leeds,Leeds City Council,31/01/2023,Adults and Health,Services For Adults Under 65 Mental/Dis,Agency Payments,Home Care,568,18/01/2023,2301-00272,0.00,536.00,R,Adopt Healthcare Ltd,No
Http://opendatacommunities.org/id/metropolitan-district-council/leeds,Leeds City Council,31/01/2023,Adults and Health,Services For Adults Under 65 Mental/Dis,Agency Payments,Home Care,568,18/01/2023,2301-00273,0.00,148.50,R,Adopt Healthcare Ltd,No
Http://opendatacommunities.org/id/metropolitan-district-council/leeds,Leeds City Council,31/01/2023,Adults and Health,Services For Adults Under 65 Mental/Dis,Agency Payments,Home Care,568,26/01/2023,2301-00274,0.00,536.00,R,Adopt Healthcare Ltd,No
Http://opendatacommunities.org/id/metropolitan-district-council/leeds,Leeds City Council,31/01/2023,Adults and Health,Services For Adults Under 65 Mental/Dis,Agency Payments,Home Care,568,26/01/2023,2301-00275,0.00,132.00,R,Adopt Healthcare Ltd,No
Http://opendatacommunities.org/id/metropolitan-district-council/leeds,Leeds City Council,31/01/2023,Children and Families,Social Care,Agency Payments,Placement Support,550,13/01/2023,2301-00276,0.00,20.00,R,REDACTED PERSONAL DATA,No
Http://opendatacommunities.org/id/metropolitan-district-council/leeds,Leeds City Council,31/01/2023,Children and Families,Social Care,Agency Payments,Placement Support,550,20/01/2023,2301-00277,0.00,20.00,R,REDACTED PERSONAL DATA,No
Http://opendatacommunities.org/id/metropolitan-district-council/leeds,Leeds City Council,31/01/2023,Children and Families,Social Care,Agency Payments,Placement Support,550,27/01/2023,2301-00278,0.00,20.00,R,REDACTED PERSONAL DATA,No
Http://opendatacommunities.org/id/metropolitan-district-council/leeds,Leeds City Council as Accountable Body,31/01/2023,Social Services Pooled Budgets,Jcs For People With Learning Disabilitie,Agency Payments,Residential,580,04/01/2023,2301-00279,0.00,2609.36,R,ADRIAN HOUSE,No
Http://opendatacommunities.org/id/metropolitan-district-council/leeds,Leeds City Council,31/01/2023,Children and Families,Social Care,Agency Payments,Placement Support,550,13/01/2023,2301-00280,0.00,159.62,R,REDACTED PERSONAL DATA,No
Http://opendatacommunities.org/id/metropolitan-district-council/leeds,Leeds City Council,31/01/2023,Children and Families,Social Care,Agency Payments,Placement Support,550,24/01/2023,2301-00281,0.00,159.62,R,REDACTED PERSONAL DATA,No
Http://opendatacommunities.org/id/metropolitan-district-council/leeds,Leeds City Council,31/01/2023,Children and Families,Social Care,Agency Payments,Placement Support,550,27/01/2023,2301-00282,0.00,159.62,R,REDACTED PERSONAL DATA,No
Http://opendatacommunities.org/id/metropolitan-district-council/leeds,Leeds City Council,31/01/2023,Communities Housing and Environment,Benefits Wlefare and Poverty,Supplies and Services,Grant Related Expenditure,290,06/01/2023,2301-00283,0.00,70.00,R,REDACTED PERSONAL DATA,No
Http://opendatacommunities.org/id/metropolitan-district-council/leeds,Leeds City Council,31/01/2023,City Development,Libraries Arts & Heritage,Supplies and Services,External Audit Fees,261,12/01/2023,2301-00284,0.00,90.00,R,ADVANCE STOCKS LTD,No
Http://opendatacommunities.org/id/metropolitan-district-council/leeds,Leeds City Council,31/01/2023,City Development,Recreation,Supplies and Services,External Audit Fees,261,19/01/2023,2301-00285,0.00,135.00,R,ADVANCE STOCKS LTD,No
Http://opendatacommunities.org/id/metropolitan-district-council/leeds,Leeds City Council,31/01/2023,Adults and Health,Assessment And Care Management,Agency Payments,Home Care,568,11/01/2023,2301-00286,0.00,573.72,R,Advanced Medcare Ltd,No
Http://opendatacommunities.org/id/metropolitan-district-council/leeds,Leeds City Council,31/01/2023,Adults and Health,Services For Adults Under 65 Learn/Dis,Agency Payments,Home Care,568,11/01/2023,2301-00287,0.00,573.72,R,Advanced Medcare Ltd,No
Http://opendatacommunities.org/id/metropolitan-district-council/leeds,Leeds City Council,31/01/2023,Adults and Health,Services For Older People - 65 And Over,Agency Payments,Home Care,568,11/01/2023,2301-00288,0.00,33034.98,R,Advanced Medcare Ltd,No
Http://opendatacommunities.org/id/metropolitan-district-council/leeds,Leeds City Council,31/01/2023,Adults and Health,Services For Older People - 65 And Over,Agency Payments,HCAIT Community Support,575,11/01/2023,2301-00289,0.00,1147.44,R,Advanced Medcare Ltd,No
Http://opendatacommunities.org/id/metropolitan-district-council/leeds,Leeds City Council,31/01/2023,Adults and Health,Services For Older People Under 65 P/Dis,Agency Payments,Home Care,568,11/01/2023,2301-00290,0.00,10511.39,R,Advanced Medcare Ltd,No
Http://opendatacommunities.org/id/metropolitan-district-council/leeds,Leeds City Council,31/01/2023,Adults and Health,Services For Older People Under 65 P/Dis,Agency Payments,HCAIT Community Support,575,11/01/2023,2301-00291,0.00,245.88,R,Advanced Medcare Ltd,No
Http://opendatacommunities.org/id/metropolitan-district-council/leeds,Leeds City Council as Accountable Body,31/01/2023,Social Services Pooled Budgets,Jcs For People With Learning Disabilitie,Agency Payments,Home Care,568,11/01/2023,2301-00292,0.00,532.74,R,Advanced Medcare Ltd,No
Http://opendatacommunities.org/id/metropolitan-district-council/leeds,Leeds City Council as Accountable Body,31/01/2023,Social Services Pooled Budgets,Jcs For People With Learning Disabilitie,Agency Payments,Home Care,568,20/01/2023,2301-00293,0.00,7681.65,R,Advantage Healthcare Ltd,No
Http://opendatacommunities.org/id/metropolitan-district-council/leeds,Leeds City Council,31/01/2023,Adults and Health,Services For Adults Under 65 Mental/Dis,Agency Payments,Home Care,568,05/01/2023,2301-00294,0.00,52.50,R,Advonet,No
Http://opendatacommunities.org/id/metropolitan-district-council/leeds,Leeds City Council as Accountable Body,31/01/2023,Social Services Pooled Budgets,Jcs For People With Learning Disabilitie,Supplies and Services,Other Hired And Contracted Services,265,05/01/2023,2301-00295,0.00,60.00,R,Advonet,No
Http://opendatacommunities.org/id/metropolitan-district-council/leeds,Leeds City Council as Accountable Body,31/01/2023,Social Services Pooled Budgets,Jcs For People With Learning Disabilitie,Supplies and Services,Other Hired And Contracted Services,265,05/01/2023,2301-00296,0.00,9.90,R,Advonet,No
Http://opendatacommunities.org/id/metropolitan-district-council/leeds,Leeds City Council as Accountable Body,31/01/2023,Social Services Pooled Budgets,Jcs For People With Learning Disabilitie,Supplies and Services,Other Hired And Contracted Services,265,05/01/2023,2301-00297,0.00,22.50,R,Advonet,No
Http://opendatacommunities.org/id/metropolitan-district-council/leeds,Leeds City Council,31/01/2023,Adults and Health,Services For Older People - 65 And Over,Agency Payments,Payments To Voluntary Organisations,561,10/01/2023,2301-00298,0.00,101941.67,R,Advonet,No
Http://opendatacommunities.org/id/metropolitan-district-council/leeds,Leeds City Council,31/01/2023,Adults and Health,Services For Adults Under 65 Mental/Dis,Agency Payments,Fees - Level 4,520,18/01/2023,2301-00299,0.00,237.84,R,AE BIA Assessments Limited,No
Http://opendatacommunities.org/id/metropolitan-district-council/leeds,Leeds City Council,31/01/2023,Adults and Health,Services For Adults Under 65 Mental/Dis,Agency Payments,Fees - Level 4,520,18/01/2023,2301-00300,0.00,249.88,R,AE BIA Assessments Limited,No
Http://opendatacommunities.org/id/metropolitan-district-council/leeds,Leeds City Council,31/01/2023,City Development,Highways,Captial,OTHER COSTS,7,11/01/2023,2301-00301,0.00,83672.60,C,Aecom Limited,No
Http://opendatacommunities.org/id/metropolitan-district-council/leeds,Leeds City Council,31/01/2023,City Development,Highways,Captial,OTHER COSTS,7,13/01/2023,2301-00302,0.00,117327.08,C,Aecom Limited,No
Http://opendatacommunities.org/id/metropolitan-district-council/leeds,Leeds City Council,31/01/2023,City Development,Highways,Supplies and Services,Other Hired And Contracted Services,265,17/01/2023,2301-00303,0.00,4292.73,R,Aecom Limited,No
Http://opendatacommunities.org/id/metropolitan-district-council/leeds,Leeds City Council,31/01/2023,City Development,Highways,Captial,OTHER COSTS,7,20/01/2023,2301-00304,0.00,49719.47,C,Aecom Limited,No
Http://opendatacommunities.org/id/metropolitan-district-council/leeds,Leeds City Council,31/01/2023,Adults and Health,Services For Older People - 65 And Over,Agency Payments,Home Care,568,11/01/2023,2301-00305,0.00,58471.01,R,Aegis Care Solutions Ltd,No
Http://opendatacommunities.org/id/metropolitan-district-council/leeds,Leeds City Council,31/01/2023,Adults and Health,Services For Older People - 65 And Over,Agency Payments,HCAIT Community Support,575,11/01/2023,2301-00306,0.00,589.68,R,Aegis Care Solutions Ltd,No
Http://opendatacommunities.org/id/metropolitan-district-council/leeds,Leeds City Council,31/01/2023,Adults and Health,Services For Older People - 65 And Over,Agency Payments,HCAIT Other,577,11/01/2023,2301-00307,0.00,4576.40,R,Aegis Care Solutions Ltd,No
Http://opendatacommunities.org/id/metropolitan-district-council/leeds,Leeds City Council,31/01/2023,Adults and Health,Services For Older People Under 65 P/Dis,Agency Payments,Home Care,568,11/01/2023,2301-00308,0.00,8637.35,R,Aegis Care Solutions Ltd,No
Http://opendatacommunities.org/id/metropolitan-district-council/leeds,Leeds City Council,31/01/2023,Adults and Health,Services For Older People Under 65 P/Dis,Agency Payments,HCAIT Community Support,575,11/01/2023,2301-00309,0.00,819.60,R,Aegis Care Solutions Ltd,No
Http://opendatacommunities.org/id/metropolitan-district-council/leeds,Leeds City Council as Accountable Body,31/01/2023,Social Services Pooled Budgets,Jcs For People With Learning Disabilitie,Agency Payments,Home Care,568,11/01/2023,2301-00310,0.00,3278.40,R,Aegis Care Solutions Ltd,No
Http://opendatacommunities.org/id/metropolitan-district-council/leeds,Leeds City Council as Accountable Body,31/01/2023,Social Services Pooled Budgets,Jcs For People With Learning Disabilitie,Agency Payments,Home Care,568,23/01/2023,2301-00311,0.00,1197.00,R,Aegis Care Solutions Ltd,No
Http://opendatacommunities.org/id/metropolitan-district-council/leeds,Leeds City Council,31/01/2023,Adults and Health,Services For Older People - 65 And Over,Agency Payments,Home Care,568,25/01/2023,2301-00312,0.00,52717.68,R,Aegis Care Solutions Ltd,No
Http://opendatacommunities.org/id/metropolitan-district-council/leeds,Leeds City Council,31/01/2023,Adults and Health,Services For Older People - 65 And Over,Agency Payments,HCAIT Community Support,575,25/01/2023,2301-00313,0.00,393.30,R,Aegis Care Solutions Ltd,No
Http://opendatacommunities.org/id/metropolitan-district-council/leeds,Leeds City Council,31/01/2023,Adults and Health,Services For Older People - 65 And Over,Agency Payments,HCAIT Other,577,25/01/2023,2301-00314,0.00,3987.11,R,Aegis Care Solutions Ltd,No
Http://opendatacommunities.org/id/metropolitan-district-council/leeds,Leeds City Council,31/01/2023,Adults and Health,Services For Older People Under 65 P/Dis,Agency Payments,Home Care,568,25/01/2023,2301-00315,0.00,9933.67,R,Aegis Care Solutions Ltd,No
Http://opendatacommunities.org/id/metropolitan-district-council/leeds,Leeds City Council as Accountable Body,31/01/2023,Social Services Pooled Budgets,Jcs For People With Learning Disabilitie,Agency Payments,Home Care,568,25/01/2023,2301-00316,0.00,2704.68,R,Aegis Care Solutions Ltd,No
Http://opendatacommunities.org/id/metropolitan-district-council/leeds,Leeds City Council as Accountable Body,31/01/2023,Social Services Pooled Budgets,Jcs For People With Learning Disabilitie,Agency Payments,Day Centre,564,06/01/2023,2301-00317,0.00,24426.18,R,Affinity Trust,No
Http://opendatacommunities.org/id/metropolitan-district-council/leeds,Leeds City Council as Accountable Body,31/01/2023,Social Services Pooled Budgets,Jcs For People With Learning Disabilitie,Agency Payments,Day Centre,564,06/01/2023,2301-00318,0.00,13234.04,R,Affinity Trust,No
Http://opendatacommunities.org/id/metropolitan-district-council/leeds,Leeds City Council as Accountable Body,31/01/2023,Social Services Pooled Budgets,Jcs For People With Learning Disabilitie,Agency Payments,Day Centre,564,27/01/2023,2301-00319,0.00,27577.88,R,Affinity Trust,No
Http://opendatacommunities.org/id/metropolitan-district-council/leeds,Leeds City Council,31/01/2023,Insurance,Insurance,Supplies and Services,Insurance Claims,248,25/01/2023,2301-00320,0.00,2010.00,R,Affirm Legal,No
Http://opendatacommunities.org/id/metropolitan-district-council/leeds,Leeds City Council,31/01/2023,Communities Housing and Environment,Parks and Countryside ,Transport,Hire Of Movable Plant & Machinery,315,19/12/2022,2301-00321,0.00,3800.00,R,Afi Uplift,Yes
Http://opendatacommunities.org/id/metropolitan-district-council/leeds,Leeds City Council,31/01/2023,Resources,Commercial Services,Supplies and Services,Compensation Claims,200,06/01/2023,2301-00322,0.00,613.60,R,REDACTED PERSONAL DATA,No
Http://opendatacommunities.org/id/metropolitan-district-council/leeds,Leeds City Council,31/01/2023,Adults and Health,Social Services Support Services,Supplies and Services,Other Hired And Contracted Services,265,10/01/2023,2301-00323,0.00,100.00,R,Age Uk Leeds,No
Http://opendatacommunities.org/id/metropolitan-district-council/leeds,Leeds City Council,31/01/2023,City Development,Highways,Supplies and Services,Operational Materials,205,04/01/2023,2301-00324,0.00,101.20,R,AGGREGATE INDUSTRIES UK LTD,No
Http://opendatacommunities.org/id/metropolitan-district-council/leeds,Leeds City Council,31/01/2023,City Development,Highways,Supplies and Services,Operational Materials,205,04/01/2023,2301-00325,0.00,5912.53,R,AGGREGATE INDUSTRIES UK LTD,No
Http://opendatacommunities.org/id/metropolitan-district-council/leeds,Leeds City Council,31/01/2023,City Development,Highways,Supplies and Services,Operational Materials,205,04/01/2023,2301-00326,0.00,4072.85,R,AGGREGATE INDUSTRIES UK LTD,No
Http://opendatacommunities.org/id/metropolitan-district-council/leeds,Leeds City Council,31/01/2023,City Development,Highways,Supplies and Services,Operational Materials,205,06/01/2023,2301-00327,0.00,101.20,R,AGGREGATE INDUSTRIES UK LTD,No
Http://opendatacommunities.org/id/metropolitan-district-council/leeds,Leeds City Council,31/01/2023,City Development,Highways,Supplies and Services,Operational Materials,205,06/01/2023,2301-00328,0.00,2759.74,R,AGGREGATE INDUSTRIES UK LTD,No
Http://opendatacommunities.org/id/metropolitan-district-council/leeds,Leeds City Council,31/01/2023,City Development,Highways,Supplies and Services,Operational Materials,205,06/01/2023,2301-00329,0.00,3438.98,R,AGGREGATE INDUSTRIES UK LTD,No
Http://opendatacommunities.org/id/metropolitan-district-council/leeds,Leeds City Council,31/01/2023,City Development,Highways,Supplies and Services,Operational Materials,205,06/01/2023,2301-00330,0.00,6549.64,R,AGGREGATE INDUSTRIES UK LTD,No
Http://opendatacommunities.org/id/metropolitan-district-council/leeds,Leeds City Council,31/01/2023,City Development,Highways,Supplies and Services,Operational Materials,205,11/01/2023,2301-00331,0.00,6546.25,R,AGGREGATE INDUSTRIES UK LTD,No
Http://opendatacommunities.org/id/metropolitan-district-council/leeds,Leeds City Council,31/01/2023,City Development,Highways,Supplies and Services,Operational Materials,205,12/01/2023,2301-00332,0.00,4079.80,R,AGGREGATE INDUSTRIES UK LTD,No
Http://opendatacommunities.org/id/metropolitan-district-council/leeds,Leeds City Council,31/01/2023,City Development,Highways,Supplies and Services,Operational Materials,205,12/01/2023,2301-00333,0.00,4142.40,R,AGGREGATE INDUSTRIES UK LTD,No
Http://opendatacommunities.org/id/metropolitan-district-council/leeds,Leeds City Council,31/01/2023,City Development,Highways,Supplies and Services,Operational Materials,205,13/01/2023,2301-00334,0.00,4147.97,R,AGGREGATE INDUSTRIES UK LTD,No
Http://opendatacommunities.org/id/metropolitan-district-council/leeds,Leeds City Council,31/01/2023,City Development,Highways,Supplies and Services,Operational Materials,205,13/01/2023,2301-00335,0.00,6520.77,R,AGGREGATE INDUSTRIES UK LTD,No
Http://opendatacommunities.org/id/metropolitan-district-council/leeds,Leeds City Council,31/01/2023,City Development,Highways,Supplies and Services,Operational Materials,205,18/01/2023,2301-00336,0.00,6595.53,R,AGGREGATE INDUSTRIES UK LTD,No
Http://opendatacommunities.org/id/metropolitan-district-council/leeds,Leeds City Council,31/01/2023,City Development,Highways,Supplies and Services,Operational Materials,205,18/01/2023,2301-00337,0.00,100.69,R,AGGREGATE INDUSTRIES UK LTD,No
Http://opendatacommunities.org/id/metropolitan-district-council/leeds,Leeds City Council,31/01/2023,City Development,Highways,Supplies and Services,Operational Materials,205,18/01/2023,2301-00338,0.00,100.80,R,AGGREGATE INDUSTRIES UK LTD,No
Http://opendatacommunities.org/id/metropolitan-district-council/leeds,Leeds City Council,31/01/2023,Children and Families,Social Care,Appropriations,Leaving Care Allowances,634,10/01/2023,2301-00339,0.00,20.00,R,REDACTED PERSONAL DATA,No
Http://opendatacommunities.org/id/metropolitan-district-council/leeds,Leeds City Council,31/01/2023,Children and Families,Social Care,Appropriations,Leaving Care Allowances,634,16/01/2023,2301-00340,0.00,20.00,R,REDACTED PERSONAL DATA,No
Http://opendatacommunities.org/id/metropolitan-district-council/leeds,Leeds City Council,31/01/2023,Communities Housing and Environment,Customer Access,Supplies and Services,Bought In Professional Services,277,18/01/2023,2301-00341,0.00,9.00,R,Agnieszka J Collier,No
Http://opendatacommunities.org/id/metropolitan-district-council/leeds,Leeds City Council,31/01/2023,Communities Housing and Environment,Customer Access,Supplies and Services,Bought In Professional Services,277,25/01/2023,2301-00342,0.00,283.52,R,Agnieszka J Collier,No
Http://opendatacommunities.org/id/metropolitan-district-council/leeds,Leeds City Council,31/01/2023,Communities Housing and Environment,Customer Access,Supplies and Services,Bought In Professional Services,277,25/01/2023,2301-00343,0.00,18.00,R,Agnieszka J Collier,No
Http://opendatacommunities.org/id/metropolitan-district-council/leeds,Leeds City Council,31/01/2023,Communities Housing and Environment,Customer Access,Supplies and Services,Bought In Professional Services,277,25/01/2023,2301-00344,0.00,18.00,R,Agnieszka J Collier,No
Http://opendatacommunities.org/id/metropolitan-district-council/leeds,Leeds City Council,31/01/2023,Communities Housing and Environment,Customer Access,Supplies and Services,Bought In Professional Services,277,25/01/2023,2301-00345,0.00,18.00,R,Agnieszka J Collier,No
Http://opendatacommunities.org/id/metropolitan-district-council/leeds,Leeds City Council,31/01/2023,Communities Housing and Environment,Customer Access,Supplies and Services,Bought In Professional Services,277,25/01/2023,2301-00346,0.00,18.00,R,Agnieszka J Collier,No
Http://opendatacommunities.org/id/metropolitan-district-council/leeds,Leeds City Council,31/01/2023,City Development,Employment & Skills,Supplies and Services,Other Hired And Contracted Services,265,20/01/2023,2301-00347,0.00,6000.00,R,Ahead Partnership Ltd,No
Http://opendatacommunities.org/id/metropolitan-district-council/leeds,Leeds City Council,31/01/2023,Communities Housing and Environment,Customer Access,Supplies and Services,Bought In Professional Services,277,11/01/2023,2301-00348,0.00,97.50,R,Ahmed T. Al-Hamdi,No
Http://opendatacommunities.org/id/metropolitan-district-council/leeds,Leeds City Council as Accountable Body,31/01/2023,Social Services Pooled Budgets,Leeds Community Equip Store Pooled Budgt,Supplies and Services,Other Equipment,203,19/01/2023,2301-00349,0.00,740.00,R,AIDAPT BATHROOMS LTD,No
Http://opendatacommunities.org/id/metropolitan-district-council/leeds,Leeds City Council as Accountable Body,31/01/2023,Social Services Pooled Budgets,Leeds Community Equip Store Pooled Budgt,Supplies and Services,Other Equipment,203,20/01/2023,2301-00350,0.00,625.00,R,AIDAPT BATHROOMS LTD,No
Http://opendatacommunities.org/id/metropolitan-district-council/leeds,Leeds City Council as Accountable Body,31/01/2023,Social Services Pooled Budgets,Leeds Community Equip Store Pooled Budgt,Supplies and Services,Other Equipment,203,20/01/2023,2301-00351,0.00,650.00,R,AIDAPT BATHROOMS LTD,No
Http://opendatacommunities.org/id/metropolitan-district-council/leeds,Leeds City Council,31/01/2023,Resources,Leeds Building Services,Supplies and Services,Operational Furniture And Equipment,203,06/01/2023,2301-00352,0.00,1296.30,R,Air Conditioning Accessories,No
Http://opendatacommunities.org/id/metropolitan-district-council/leeds,Leeds City Council,31/01/2023,Resources,Leeds Building Services,Supplies and Services,Operational Furniture And Equipment,203,11/01/2023,2301-00353,0.00,531.28,R,Air Conditioning Accessories,No
Http://opendatacommunities.org/id/metropolitan-district-council/leeds,Leeds City Council,31/01/2023,Resources,Commercial Services ,Supplies and Services,Operational Materials,205,21/12/2022,2301-00354,0.00,312.50,R,Air Force Pneumatics And,Yes
Http://opendatacommunities.org/id/metropolitan-district-council/leeds,Leeds City Council,31/01/2023,Strategic Landlord,Property and Contracts ,Premises,General Maintenance,104,09/12/2022,2301-00355,0.00,795.20,R,Airbnb * Hma34kkpjm,Yes
Http://opendatacommunities.org/id/metropolitan-district-council/leeds,Leeds City Council,31/01/2023,Resources,Human Resources,Employees,Occupational Health,85,26/01/2023,2301-00356,0.00,70.00,R,Aire Valley Surgery,No
Http://opendatacommunities.org/id/metropolitan-district-council/leeds,Leeds City Council,31/01/2023,Children and Families,Social Care,Supplies and Services,Operational Furniture And Equipment,203,19/01/2023,2301-00357,0.00,4805.00,R,AIREDALE CATERING EQUIPMENT LTD,No
Http://opendatacommunities.org/id/metropolitan-district-council/leeds,Leeds City Council,31/01/2023,Children and Families,Social Care,Supplies and Services,Operational Furniture And Equipment,203,19/01/2023,2301-00358,0.00,4805.00,R,AIREDALE CATERING EQUIPMENT LTD,No
Http://opendatacommunities.org/id/metropolitan-district-council/leeds,Leeds City Council,31/01/2023,Communities Housing and Environment,Parks and Countryside,Supplies and Services,Other Hired And Contracted Services,265,20/01/2023,2301-00359,0.00,1800.00,R,Airedon Limited,No
Http://opendatacommunities.org/id/metropolitan-district-council/leeds,Leeds City Council,31/01/2023,Children and Families,Social Care ,Agency Payments,Section 17,551,30/11/2022,2301-00360,0.00,24.45,R,Airpay 44454571-Amber Car,Yes
Http://opendatacommunities.org/id/metropolitan-district-council/leeds,Leeds City Council,31/01/2023,Children and Families,Social Care ,Agency Payments,Contact,548,09/12/2022,2301-00361,0.00,47.85,R,Airpay 44592594-Amber Car,Yes
Http://opendatacommunities.org/id/metropolitan-district-council/leeds,Leeds City Council,31/01/2023,Children and Families,Social Care ,Agency Payments, Direct Work,549,13/12/2022,2301-00362,0.00,15.45,R,Airpay 44649728-Amber Car,Yes
Http://opendatacommunities.org/id/metropolitan-district-council/leeds,Leeds City Council,31/01/2023,Children and Families,Social Care ,Agency Payments, Direct Work,549,13/12/2022,2301-00363,0.00,12.85,R,Airpay 44653334-Amber Car,Yes
Http://opendatacommunities.org/id/metropolitan-district-council/leeds,Leeds City Council,31/01/2023,Children and Families,Social Care ,Agency Payments,Placement Support,550,14/12/2022,2301-00364,0.00,43.55,R,Airpay 44657524-Amber Car,Yes
Http://opendatacommunities.org/id/metropolitan-district-council/leeds,Leeds City Council,31/01/2023,Children and Families,Social Care ,Agency Payments,Placement Support,550,15/12/2022,2301-00365,0.00,24.25,R,Airpay 44669416-Amber Car,Yes
Http://opendatacommunities.org/id/metropolitan-district-council/leeds,Leeds City Council,31/01/2023,Children and Families,Social Care ,Transport,Public Transport Expenses,310,15/12/2022,2301-00366,0.00,18.85,R,Airpay 44676851-Amber Car,Yes
Http://opendatacommunities.org/id/metropolitan-district-council/leeds,Leeds City Council,31/01/2023,Children and Families,Social Care ,Agency Payments,Placement Support,550,16/12/2022,2301-00367,0.00,19.55,R,Airpay 44692957-Amber Car,Yes
Http://opendatacommunities.org/id/metropolitan-district-council/leeds,Leeds City Council,31/01/2023,Children and Families,Social Care ,Agency Payments,Placement Support,550,16/12/2022,2301-00368,0.00,20.15,R,Airpay 44693150-Amber Car,Yes
Http://opendatacommunities.org/id/metropolitan-district-council/leeds,Leeds City Council,31/01/2023,Adults and Health,Services For Adults Under 65 Learn/Dis ,Transport,Public Transport Expenses,310,19/12/2022,2301-00369,0.00,4.95,R,Airpay 44750189-Amber Car,Yes
Http://opendatacommunities.org/id/metropolitan-district-council/leeds,Leeds City Council,31/01/2023,Adults and Health,Services For Adults Under 65 Learn/Dis ,Transport,Public Transport Expenses,310,19/12/2022,2301-00370,0.00,8.15,R,Airpay 44750204-Amber Car,Yes
Http://opendatacommunities.org/id/metropolitan-district-council/leeds,Leeds City Council,31/01/2023,Children and Families,Social Care ,Agency Payments,Section 17,551,20/12/2022,2301-00371,0.00,7.55,R,Airpay 44768160-Amber Car,Yes
Http://opendatacommunities.org/id/metropolitan-district-council/leeds,Leeds City Council,31/01/2023,City Development,Recreation ,Supplies and Services,Operational Furniture And Equipment,203,20/12/2022,2301-00372,0.00,833.33,R,Airquee Ltd,Yes
Http://opendatacommunities.org/id/metropolitan-district-council/leeds,Leeds City Council,31/01/2023,City Development,Recreation ,Supplies and Services,Operational Furniture And Equipment,203,20/12/2022,2301-00373,0.00,61.67,R,Airquee Ltd,Yes
Http://opendatacommunities.org/id/metropolitan-district-council/leeds,Leeds City Council,31/01/2023,Adults and Health,Services For Adults Under 65 Mental/Dis,Agency Payments,Fees - Level 4,520,20/01/2023,2301-00374,0.00,175.00,R,AIT Mitra Limited,No
Http://opendatacommunities.org/id/metropolitan-district-council/leeds,Leeds City Council,31/01/2023,Adults and Health,Services For Adults Under 65 Mental/Dis,Agency Payments,Fees - Level 4,520,24/01/2023,2301-00375,0.00,175.00,R,AIT Mitra Limited,No
Http://opendatacommunities.org/id/metropolitan-district-council/leeds,Leeds City Council,31/01/2023,Resources,Leeds Building Services,Supplies and Services,Operational Furniture And Equipment,203,04/01/2023,2301-00376,0.00,55.71,R,AJM FIXINGS & POWER TOOLS LTD,No
Http://opendatacommunities.org/id/metropolitan-district-council/leeds,Leeds City Council,31/01/2023,Resources,Leeds Building Services,Supplies and Services,Operational Furniture And Equipment,203,04/01/2023,2301-00377,0.00,50.78,R,AJM FIXINGS & POWER TOOLS LTD,No
Http://opendatacommunities.org/id/metropolitan-district-council/leeds,Leeds City Council,31/01/2023,Resources,Leeds Building Services,Supplies and Services,Operational Furniture And Equipment,203,04/01/2023,2301-00378,0.00,1337.16,R,AJM FIXINGS & POWER TOOLS LTD,No
Http://opendatacommunities.org/id/metropolitan-district-council/leeds,Leeds City Council,31/01/2023,Resources,Leeds Building Services,Supplies and Services,Operational Furniture And Equipment,203,06/01/2023,2301-00379,0.00,250.00,R,AJM FIXINGS & POWER TOOLS LTD,No
Http://opendatacommunities.org/id/metropolitan-district-council/leeds,Leeds City Council,31/01/2023,Resources,Leeds Building Services,Supplies and Services,Operational Furniture And Equipment,203,06/01/2023,2301-00380,0.00,231.94,R,AJM FIXINGS & POWER TOOLS LTD,No
Http://opendatacommunities.org/id/metropolitan-district-council/leeds,Leeds City Council,31/01/2023,Resources,Leeds Building Services,Premises,Cleaning Maintenance & Toiletries,127,06/01/2023,2301-00381,0.00,488.80,R,AJM FIXINGS & POWER TOOLS LTD,No
Http://opendatacommunities.org/id/metropolitan-district-council/leeds,Leeds City Council,31/01/2023,Resources,Leeds Building Services,Supplies and Services,Operational Furniture And Equipment,203,06/01/2023,2301-00382,0.00,84.00,R,AJM FIXINGS & POWER TOOLS LTD,No
Http://opendatacommunities.org/id/metropolitan-district-council/leeds,Leeds City Council,31/01/2023,Resources,Leeds Building Services,Supplies and Services,Operational Furniture And Equipment,203,06/01/2023,2301-00383,0.00,169.04,R,AJM FIXINGS & POWER TOOLS LTD,No
Http://opendatacommunities.org/id/metropolitan-district-council/leeds,Leeds City Council,31/01/2023,Resources,Leeds Building Services,Supplies and Services,Operational Furniture And Equipment,203,06/01/2023,2301-00384,0.00,63.99,R,AJM FIXINGS & POWER TOOLS LTD,No
Http://opendatacommunities.org/id/metropolitan-district-council/leeds,Leeds City Council,31/01/2023,Resources,Leeds Building Services,Premises,Cleaning Maintenance & Toiletries,127,06/01/2023,2301-00385,0.00,229.80,R,AJM FIXINGS & POWER TOOLS LTD,No
Http://opendatacommunities.org/id/metropolitan-district-council/leeds,Leeds City Council,31/01/2023,Resources,Leeds Building Services,Supplies and Services,Operational Furniture And Equipment,203,06/01/2023,2301-00386,0.00,213.16,R,AJM FIXINGS & POWER TOOLS LTD,No
Http://opendatacommunities.org/id/metropolitan-district-council/leeds,Leeds City Council,31/01/2023,Resources,Leeds Building Services,Supplies and Services,Operational Furniture And Equipment,203,06/01/2023,2301-00387,0.00,70.08,R,AJM FIXINGS & POWER TOOLS LTD,No
Http://opendatacommunities.org/id/metropolitan-district-council/leeds,Leeds City Council,31/01/2023,Resources,Leeds Building Services,Supplies and Services,Operational Furniture And Equipment,203,06/01/2023,2301-00388,0.00,37.74,R,AJM FIXINGS & POWER TOOLS LTD,No
Http://opendatacommunities.org/id/metropolitan-district-council/leeds,Leeds City Council,31/01/2023,Resources,Leeds Building Services,Supplies and Services,Operational Furniture And Equipment,203,06/01/2023,2301-00389,0.00,43.00,R,AJM FIXINGS & POWER TOOLS LTD,No
Http://opendatacommunities.org/id/metropolitan-district-council/leeds,Leeds City Council,31/01/2023,Resources,Leeds Building Services,Premises,Cleaning Maintenance & Toiletries,127,06/01/2023,2301-00390,0.00,237.90,R,AJM FIXINGS & POWER TOOLS LTD,No
Http://opendatacommunities.org/id/metropolitan-district-council/leeds,Leeds City Council,31/01/2023,Resources,Leeds Building Services,Premises,Cleaning Maintenance & Toiletries,127,06/01/2023,2301-00391,0.00,94.00,R,AJM FIXINGS & POWER TOOLS LTD,No
Http://opendatacommunities.org/id/metropolitan-district-council/leeds,Leeds City Council,31/01/2023,Resources,Leeds Building Services,Supplies and Services,Operational Furniture And Equipment,203,10/01/2023,2301-00392,0.00,223.12,R,AJM FIXINGS & POWER TOOLS LTD,No
Http://opendatacommunities.org/id/metropolitan-district-council/leeds,Leeds City Council,31/01/2023,Resources,Leeds Building Services,Supplies and Services,Operational Furniture And Equipment,203,10/01/2023,2301-00393,0.00,11.75,R,AJM FIXINGS & POWER TOOLS LTD,No
Http://opendatacommunities.org/id/metropolitan-district-council/leeds,Leeds City Council,31/01/2023,Resources,Leeds Building Services,Premises,Cleaning Maintenance & Toiletries,127,10/01/2023,2301-00394,0.00,303.25,R,AJM FIXINGS & POWER TOOLS LTD,No
Http://opendatacommunities.org/id/metropolitan-district-council/leeds,Leeds City Council,31/01/2023,Resources,Leeds Building Services,Premises,Cleaning Maintenance & Toiletries,127,11/01/2023,2301-00395,0.00,1587.96,R,AJM FIXINGS & POWER TOOLS LTD,No
Http://opendatacommunities.org/id/metropolitan-district-council/leeds,Leeds City Council,31/01/2023,Resources,Leeds Building Services,Supplies and Services,Operational Furniture And Equipment,203,11/01/2023,2301-00396,0.00,1314.79,R,AJM FIXINGS & POWER TOOLS LTD,No
Http://opendatacommunities.org/id/metropolitan-district-council/leeds,Leeds City Council,31/01/2023,Resources,Leeds Building Services,Supplies and Services,Operational Furniture And Equipment,203,11/01/2023,2301-00397,0.00,40.26,R,AJM FIXINGS & POWER TOOLS LTD,No
Http://opendatacommunities.org/id/metropolitan-district-council/leeds,Leeds City Council,31/01/2023,Resources,Leeds Building Services,Premises,Cleaning Maintenance & Toiletries,127,12/01/2023,2301-00398,0.00,190.00,R,AJM FIXINGS & POWER TOOLS LTD,No
Http://opendatacommunities.org/id/metropolitan-district-council/leeds,Leeds City Council,31/01/2023,Resources,Leeds Building Services,Supplies and Services,Operational Furniture And Equipment,203,12/01/2023,2301-00399,0.00,1418.50,R,AJM FIXINGS & POWER TOOLS LTD,No
Http://opendatacommunities.org/id/metropolitan-district-council/leeds,Leeds City Council,31/01/2023,Resources,Leeds Building Services,Premises,Cleaning Maintenance & Toiletries,127,12/01/2023,2301-00400,0.00,238.80,R,AJM FIXINGS & POWER TOOLS LTD,No
Http://opendatacommunities.org/id/metropolitan-district-council/leeds,Leeds City Council,31/01/2023,Resources,Leeds Building Services,Supplies and Services,Operational Furniture And Equipment,203,12/01/2023,2301-00401,0.00,115.50,R,AJM FIXINGS & POWER TOOLS LTD,No
Http://opendatacommunities.org/id/metropolitan-district-council/leeds,Leeds City Council,31/01/2023,Resources,Leeds Building Services,Premises,Cleaning Maintenance & Toiletries,127,12/01/2023,2301-00402,0.00,27.75,R,AJM FIXINGS & POWER TOOLS LTD,No
Http://opendatacommunities.org/id/metropolitan-district-council/leeds,Leeds City Council,31/01/2023,Resources,Leeds Building Services,Supplies and Services,Operational Furniture And Equipment,203,12/01/2023,2301-00403,0.00,38.93,R,AJM FIXINGS & POWER TOOLS LTD,No
Http://opendatacommunities.org/id/metropolitan-district-council/leeds,Leeds City Council,31/01/2023,Resources,Leeds Building Services,Supplies and Services,Operational Furniture And Equipment,203,13/01/2023,2301-00404,0.00,259.00,R,AJM FIXINGS & POWER TOOLS LTD,No
Http://opendatacommunities.org/id/metropolitan-district-council/leeds,Leeds City Council,31/01/2023,Resources,Leeds Building Services,Supplies and Services,Operational Furniture And Equipment,203,13/01/2023,2301-00405,0.00,99.00,R,AJM FIXINGS & POWER TOOLS LTD,No
Http://opendatacommunities.org/id/metropolitan-district-council/leeds,Leeds City Council,31/01/2023,Resources,Leeds Building Services,Premises,Cleaning Maintenance & Toiletries,127,13/01/2023,2301-00406,0.00,796.00,R,AJM FIXINGS & POWER TOOLS LTD,No
Http://opendatacommunities.org/id/metropolitan-district-council/leeds,Leeds City Council,31/01/2023,Resources,Leeds Building Services,Supplies and Services,Operational Furniture And Equipment,203,13/01/2023,2301-00407,0.00,359.16,R,AJM FIXINGS & POWER TOOLS LTD,No
Http://opendatacommunities.org/id/metropolitan-district-council/leeds,Leeds City Council,31/01/2023,Resources,Leeds Building Services,Supplies and Services,Operational Furniture And Equipment,203,17/01/2023,2301-00408,0.00,784.00,R,AJM FIXINGS & POWER TOOLS LTD,No
Http://opendatacommunities.org/id/metropolitan-district-council/leeds,Leeds City Council,31/01/2023,Resources,Leeds Building Services,Supplies and Services,Operational Furniture And Equipment,203,18/01/2023,2301-00409,0.00,1675.00,R,AJM FIXINGS & POWER TOOLS LTD,No
Http://opendatacommunities.org/id/metropolitan-district-council/leeds,Leeds City Council,31/01/2023,Resources,Leeds Building Services,Supplies and Services,Operational Furniture And Equipment,203,18/01/2023,2301-00410,0.00,84.00,R,AJM FIXINGS & POWER TOOLS LTD,No
Http://opendatacommunities.org/id/metropolitan-district-council/leeds,Leeds City Council,31/01/2023,Resources,Leeds Building Services,Supplies and Services,Operational Furniture And Equipment,203,20/01/2023,2301-00411,0.00,82.50,R,AJM FIXINGS & POWER TOOLS LTD,No
Http://opendatacommunities.org/id/metropolitan-district-council/leeds,Leeds City Council,31/01/2023,Resources,Leeds Building Services,Supplies and Services,Operational Furniture And Equipment,203,20/01/2023,2301-00412,0.00,359.16,R,AJM FIXINGS & POWER TOOLS LTD,No
Http://opendatacommunities.org/id/metropolitan-district-council/leeds,Leeds City Council,31/01/2023,Resources,Leeds Building Services,Supplies and Services,Operational Furniture And Equipment,203,20/01/2023,2301-00413,0.00,229.99,R,AJM FIXINGS & POWER TOOLS LTD,No
Http://opendatacommunities.org/id/metropolitan-district-council/leeds,Leeds City Council,31/01/2023,Resources,Leeds Building Services,Premises,Cleaning Maintenance & Toiletries,127,20/01/2023,2301-00414,0.00,529.70,R,AJM FIXINGS & POWER TOOLS LTD,No
Http://opendatacommunities.org/id/metropolitan-district-council/leeds,Leeds City Council,31/01/2023,Resources,Leeds Building Services,Premises,Cleaning Maintenance & Toiletries,127,20/01/2023,2301-00415,0.00,25.00,R,AJM FIXINGS & POWER TOOLS LTD,No
Http://opendatacommunities.org/id/metropolitan-district-council/leeds,Leeds City Council,31/01/2023,Resources,Leeds Building Services,Premises,Cleaning Maintenance & Toiletries,127,20/01/2023,2301-00416,0.00,105.94,R,AJM FIXINGS & POWER TOOLS LTD,No
Http://opendatacommunities.org/id/metropolitan-district-council/leeds,Leeds City Council,31/01/2023,Resources,Leeds Building Services,Premises,Cleaning Maintenance & Toiletries,127,20/01/2023,2301-00417,0.00,115.97,R,AJM FIXINGS & POWER TOOLS LTD,No
Http://opendatacommunities.org/id/metropolitan-district-council/leeds,Leeds City Council,31/01/2023,Resources,Leeds Building Services,Supplies and Services,Operational Furniture And Equipment,203,24/01/2023,2301-00418,0.00,980.08,R,AJM FIXINGS & POWER TOOLS LTD,No
Http://opendatacommunities.org/id/metropolitan-district-council/leeds,Leeds City Council,31/01/2023,Resources,Leeds Building Services,Supplies and Services,Operational Furniture And Equipment,203,24/01/2023,2301-00419,0.00,111.20,R,AJM FIXINGS & POWER TOOLS LTD,No
Http://opendatacommunities.org/id/metropolitan-district-council/leeds,Leeds City Council,31/01/2023,Resources,Leeds Building Services,Premises,Cleaning Maintenance & Toiletries,127,24/01/2023,2301-00420,0.00,215.00,R,AJM FIXINGS & POWER TOOLS LTD,No
Http://opendatacommunities.org/id/metropolitan-district-council/leeds,Leeds City Council,31/01/2023,Communities Housing and Environment,Strategic Housing Partnership & Support,Captial,CONSTRUCTION,3,26/01/2023,2301-00421,0.00,5000.00,C,AKR Construction Ltd,No
Http://opendatacommunities.org/id/metropolitan-district-council/leeds,Leeds City Council,31/01/2023,Communities Housing and Environment,Strategic Housing Partnership & Support,Captial,CONSTRUCTION,3,26/01/2023,2301-00422,0.00,4650.00,C,AKR Construction Ltd,No
Http://opendatacommunities.org/id/metropolitan-district-council/leeds,Leeds City Council,31/01/2023,Resources,Commercial Services,Supplies and Services,Compensation Claims,200,03/01/2023,2301-00423,0.00,1770.00,R,REDACTED PERSONAL DATA,No
Http://opendatacommunities.org/id/metropolitan-district-council/leeds,Leeds City Council,31/01/2023,Insurance,Insurance,Supplies and Services,Insurance Claims,248,24/01/2023,2301-00424,0.00,1963.20,R,REDACTED PERSONAL DATA,No
Http://opendatacommunities.org/id/metropolitan-district-council/leeds,Leeds City Council,31/01/2023,Communities Housing and Environment,Communities,Supplies and Services,Computer Software & Equipment,214,13/01/2023,2301-00425,0.00,1228.33,R,Alcium Software Ltd,No
Http://opendatacommunities.org/id/metropolitan-district-council/leeds,Leeds City Council,31/01/2023,Children and Families,Social Care ,Agency Payments,Section 17,551,02/12/2022,2301-00426,0.00,23.20,R,Aldi,Yes
Http://opendatacommunities.org/id/metropolitan-district-council/leeds,Leeds City Council,31/01/2023,Children and Families,Social Care ,Supplies and Services,Food & Drink,231,08/12/2022,2301-00427,0.00,22.47,R,Aldi,Yes
Http://opendatacommunities.org/id/metropolitan-district-council/leeds,Leeds City Council,31/01/2023,Children and Families,Social Care ,Appropriations,Leaving Care Allowances,634,17/12/2022,2301-00428,0.00,18.57,R,Aldi,Yes
Http://opendatacommunities.org/id/metropolitan-district-council/leeds,Leeds City Council,31/01/2023,Adults and Health,Public Health ,Supplies and Services,Operational Materials,205,19/12/2022,2301-00429,0.00,141.51,R,Aldi,Yes
Http://opendatacommunities.org/id/metropolitan-district-council/leeds,Leeds City Council,31/01/2023,Children and Families,Social Care ,Supplies and Services,Food & Drink,231,20/12/2022,2301-00430,0.00,20.47,R,Aldi,Yes
Http://opendatacommunities.org/id/metropolitan-district-council/leeds,Leeds City Council,31/01/2023,Children and Families,Social Care ,Agency Payments, Direct Work,549,22/12/2022,2301-00431,0.00,0.79,R,Aldi,Yes
Http://opendatacommunities.org/id/metropolitan-district-council/leeds,Leeds City Council,31/01/2023,Children and Families,Social Care ,Agency Payments,Placement Support,550,22/12/2022,2301-00432,0.00,6.50,R,Aldi,Yes
Http://opendatacommunities.org/id/metropolitan-district-council/leeds,Leeds City Council,31/01/2023,Children and Families,Social Care ,Supplies and Services,Food & Drink,231,08/12/2022,2301-00433,0.00,9.71,R,Aldi 40 779,Yes
Http://opendatacommunities.org/id/metropolitan-district-council/leeds,Leeds City Council,31/01/2023,Adults and Health,Services For Older People - 65 And Over ,Supplies and Services,General Amenity For Clients/Residents,285,08/12/2022,2301-00434,0.00,25.49,R,Aldi 49 779,Yes
Http://opendatacommunities.org/id/metropolitan-district-council/leeds,Leeds City Council,31/01/2023,Communities Housing and Environment,Customer Access ,Supplies and Services,Grant Related Expenditure,290,18/12/2022,2301-00435,0.00,43.15,R,Aldi 49 779,Yes
Http://opendatacommunities.org/id/metropolitan-district-council/leeds,Leeds City Council,31/01/2023,Children and Families,Social Care ,Supplies and Services,Food & Drink,231,21/12/2022,2301-00436,0.00,18.27,R,Aldi 49 779,Yes
Http://opendatacommunities.org/id/metropolitan-district-council/leeds,Leeds City Council,31/01/2023,Children and Families,Social Care ,Agency Payments,Placement Support,550,02/12/2022,2301-00437,0.00,42.49,R,Aldi 71 779,Yes
Http://opendatacommunities.org/id/metropolitan-district-council/leeds,Leeds City Council,31/01/2023,Children and Families,Social Care ,Agency Payments,Section 17,551,05/12/2022,2301-00438,0.00,21.27,R,Aldi 71 779,Yes
Http://opendatacommunities.org/id/metropolitan-district-council/leeds,Leeds City Council,31/01/2023,Children and Families,Social Care ,Agency Payments,Section 17,551,12/12/2022,2301-00439,0.00,15.00,R,Aldi 71 779,Yes
Http://opendatacommunities.org/id/metropolitan-district-council/leeds,Leeds City Council,31/01/2023,Children and Families,Social Care ,Agency Payments,Section 17,551,12/12/2022,2301-00440,0.00,7.91,R,Aldi 71 779,Yes
Http://opendatacommunities.org/id/metropolitan-district-council/leeds,Leeds City Council,31/01/2023,Children and Families,Social Care ,Appropriations,Leaving Care Allowances,634,14/12/2022,2301-00441,0.00,19.18,R,Aldi 71 779,Yes
Http://opendatacommunities.org/id/metropolitan-district-council/leeds,Leeds City Council,31/01/2023,Children and Families,Social Care ,Agency Payments,Section 17,551,16/12/2022,2301-00442,0.00,21.02,R,Aldi 71 779,Yes
Http://opendatacommunities.org/id/metropolitan-district-council/leeds,Leeds City Council,31/01/2023,Communities Housing and Environment,Customer Access ,Supplies and Services,Food & Drink,231,03/12/2022,2301-00443,0.00,7.45,R,Aldi 779148,Yes
Http://opendatacommunities.org/id/metropolitan-district-council/leeds,Leeds City Council,31/01/2023,Children and Families,Social Care ,Supplies and Services,Food & Drink,231,07/12/2022,2301-00444,0.00,19.99,R,Aldi 85 779,Yes
Http://opendatacommunities.org/id/metropolitan-district-council/leeds,Leeds City Council,31/01/2023,Children and Families,Social Care ,Supplies and Services,Food & Drink,231,08/12/2022,2301-00445,0.00,6.17,R,Aldi 85 779,Yes
Http://opendatacommunities.org/id/metropolitan-district-council/leeds,Leeds City Council,31/01/2023,Children and Families,Social Care ,Agency Payments,Section 17,551,12/12/2022,2301-00446,0.00,42.28,R,Aldi 85 779,Yes
Http://opendatacommunities.org/id/metropolitan-district-council/leeds,Leeds City Council,31/01/2023,Children and Families,Social Care ,Supplies and Services,Food & Drink,231,14/12/2022,2301-00447,0.00,1.75,R,Aldi 85 779,Yes
Http://opendatacommunities.org/id/metropolitan-district-council/leeds,Leeds City Council,31/01/2023,Children and Families,Social Care ,Supplies and Services,Food & Drink,231,16/12/2022,2301-00448,0.00,22.01,R,Aldi 85 779,Yes
Http://opendatacommunities.org/id/metropolitan-district-council/leeds,Leeds City Council,31/01/2023,Resources,Commercial Services ,Supplies and Services,Food & Drink,231,17/12/2022,2301-00449,0.00,48.90,R,Aldi 85 779,Yes
Http://opendatacommunities.org/id/metropolitan-district-council/leeds,Leeds City Council,31/01/2023,Children and Families,Social Care ,Supplies and Services,Food & Drink,231,19/12/2022,2301-00450,0.00,19.69,R,Aldi 85 779,Yes
Http://opendatacommunities.org/id/metropolitan-district-council/leeds,Leeds City Council,31/01/2023,Children and Families,Social Care ,Supplies and Services,Food & Drink,231,23/12/2022,2301-00451,0.00,50.24,R,Aldi 85 779,Yes
Http://opendatacommunities.org/id/metropolitan-district-council/leeds,Leeds City Council,31/01/2023,Adults and Health,Services For Older People Under 65 P/Dis ,Supplies and Services,Food & Drink,231,30/11/2022,2301-00452,0.00,15.42,R,Aldi 88 779,Yes
Http://opendatacommunities.org/id/metropolitan-district-council/leeds,Leeds City Council,31/01/2023,Children and Families,Social Care ,Supplies and Services,Food & Drink,231,05/12/2022,2301-00453,0.00,207.67,R,Aldi 89 779,Yes
Http://opendatacommunities.org/id/metropolitan-district-council/leeds,Leeds City Council,31/01/2023,Children and Families,Social Care ,Supplies and Services,Food & Drink,231,12/12/2022,2301-00454,0.00,166.75,R,Aldi 89 779,Yes
Http://opendatacommunities.org/id/metropolitan-district-council/leeds,Leeds City Council,31/01/2023,Children and Families,Social Care ,Supplies and Services,Food & Drink,231,23/12/2022,2301-00455,0.00,33.33,R,Aldi 89 779,Yes
Http://opendatacommunities.org/id/metropolitan-district-council/leeds,Leeds City Council,31/01/2023,Children and Families,Social Care ,Supplies and Services,Teaching Materials,202,01/12/2022,2301-00456,0.00,11.22,R,Aldi Stores,Yes
Http://opendatacommunities.org/id/metropolitan-district-council/leeds,Leeds City Council,31/01/2023,Children and Families,Social Care ,Agency Payments,Allowances,546,05/12/2022,2301-00457,0.00,20.00,R,Aldi Stores,Yes
Http://opendatacommunities.org/id/metropolitan-district-council/leeds,Leeds City Council,31/01/2023,Adults and Health,Other Generic Services ,Supplies and Services,Food & Drink,231,13/12/2022,2301-00458,0.00,21.15,R,Aldi Stores,Yes
Http://opendatacommunities.org/id/metropolitan-district-council/leeds,Leeds City Council,31/01/2023,Children and Families,Social Care ,Supplies and Services,Food & Drink,231,14/12/2022,2301-00459,0.00,69.34,R,Aldi Stores,Yes
Http://opendatacommunities.org/id/metropolitan-district-council/leeds,Leeds City Council,31/01/2023,Children and Families,Social Care ,Appropriations,Leaving Care Allowances,634,23/12/2022,2301-00460,0.00,23.32,R,Aldi Stores,Yes
Http://opendatacommunities.org/id/metropolitan-district-council/leeds,Leeds City Council,31/01/2023,Communities Housing and Environment,Customer Access,Supplies and Services,Bought In Professional Services,277,18/01/2023,2301-00461,0.00,18.00,R,Alena Zueva,No
Http://opendatacommunities.org/id/metropolitan-district-council/leeds,Leeds City Council,31/01/2023,Resources,Commercial Services,Supplies and Services,Other Hired And Contracted Services,265,05/01/2023,2301-00462,0.00,475.89,R,ALEX WAGG,No
Http://opendatacommunities.org/id/metropolitan-district-council/leeds,Leeds City Council,31/01/2023,Resources,Commercial Services,Supplies and Services,Other Hired And Contracted Services,265,05/01/2023,2301-00463,0.00,280.00,R,ALEX WAGG,No
Http://opendatacommunities.org/id/metropolitan-district-council/leeds,Leeds City Council,31/01/2023,Resources,Commercial Services,Supplies and Services,Other Hired And Contracted Services,265,13/01/2023,2301-00464,0.00,160.00,R,ALEX WAGG,No
Http://opendatacommunities.org/id/metropolitan-district-council/leeds,Leeds City Council,31/01/2023,Resources,Commercial Services,Supplies and Services,Other Hired And Contracted Services,265,13/01/2023,2301-00465,0.00,100.00,R,ALEX WAGG,No
Http://opendatacommunities.org/id/metropolitan-district-council/leeds,Leeds City Council,31/01/2023,Resources,Commercial Services,Supplies and Services,Other Hired And Contracted Services,265,13/01/2023,2301-00466,0.00,140.00,R,ALEX WAGG,No
Http://opendatacommunities.org/id/metropolitan-district-council/leeds,Leeds City Council,31/01/2023,Resources,Commercial Services,Supplies and Services,Other Hired And Contracted Services,265,20/01/2023,2301-00467,0.00,70.00,R,ALEX WAGG,No
Http://opendatacommunities.org/id/metropolitan-district-council/leeds,Leeds City Council,31/01/2023,Resources,Commercial Services,Supplies and Services,Other Hired And Contracted Services,265,20/01/2023,2301-00468,0.00,70.00,R,ALEX WAGG,No
Http://opendatacommunities.org/id/metropolitan-district-council/leeds,Leeds City Council,31/01/2023,Resources,Commercial Services,Supplies and Services,Other Hired And Contracted Services,265,20/01/2023,2301-00469,0.00,140.00,R,ALEX WAGG,No
Http://opendatacommunities.org/id/metropolitan-district-council/leeds,Leeds City Council,31/01/2023,Children and Families,Social Care,Transport,Public Transport Expenses,310,10/01/2023,2301-00470,0.00,17.60,R,REDACTED PERSONAL DATA,No
Http://opendatacommunities.org/id/metropolitan-district-council/leeds,Leeds City Council,31/01/2023,Children and Families,Social Care,Supplies and Services,General Amenity For Clients/Residents,285,24/01/2023,2301-00471,0.00,90.08,R,REDACTED PERSONAL DATA,No
Http://opendatacommunities.org/id/metropolitan-district-council/leeds,Leeds City Council,31/01/2023,Children and Families,Social Care,Transport,Public Transport Expenses,310,24/01/2023,2301-00472,0.00,14.80,R,REDACTED PERSONAL DATA,No
Http://opendatacommunities.org/id/metropolitan-district-council/leeds,Leeds City Council,31/01/2023,Communities Housing and Environment,Customer Access,Supplies and Services,Bought In Professional Services,277,06/01/2023,2301-00473,0.00,9.00,R,Alexandra Costenco,No
Http://opendatacommunities.org/id/metropolitan-district-council/leeds,Leeds City Council,31/01/2023,Adults and Health,Services For Older People - 65 And Over ,Supplies and Services,Clothing & Uniforms,241,05/12/2022,2301-00474,0.00,54.66,R,Alexandra Website,Yes
Http://opendatacommunities.org/id/metropolitan-district-council/leeds,Leeds City Council,31/01/2023,Adults and Health,Services For Older People - 65 And Over ,Supplies and Services,Clothing & Uniforms,241,06/12/2022,2301-00475,0.00,303.60,R,Alexandra Website,Yes
Http://opendatacommunities.org/id/metropolitan-district-council/leeds,Leeds City Council,31/01/2023,Resources,Commercial Services,Supplies and Services,Compensation Claims,200,03/01/2023,2301-00476,0.00,1669.20,R,REDACTED PERSONAL DATA,No
Http://opendatacommunities.org/id/metropolitan-district-council/leeds,Leeds City Council,31/01/2023,City Development,Recreation,External Income,Sporting & Other Recreational Fees,928,06/01/2023,2301-00477,0.00,89.90,R,REDACTED PERSONAL DATA,No
Http://opendatacommunities.org/id/metropolitan-district-council/leeds,Leeds City Council,31/01/2023,Resources,Leeds Building Services,Supplies and Services,Other Hired And Contracted Services,265,13/01/2023,2301-00478,0.00,2940.00,R,Alfred Bagnall & Sons (Leeds) Ltd,No
Http://opendatacommunities.org/id/metropolitan-district-council/leeds,Leeds City Council,31/01/2023,Resources,Leeds Building Services,Supplies and Services,Other Hired And Contracted Services,265,13/01/2023,2301-00479,0.00,500.00,R,Alfred Bagnall & Sons (Leeds) Ltd,No
Http://opendatacommunities.org/id/metropolitan-district-council/leeds,Leeds City Council,31/01/2023,Resources,Leeds Building Services,Supplies and Services,Other Hired And Contracted Services,265,20/01/2023,2301-00480,0.00,150.00,R,Alfred Bagnall & Sons (Leeds) Ltd,No
Http://opendatacommunities.org/id/metropolitan-district-council/leeds,Leeds City Council,31/01/2023,Communities Housing and Environment,Parks and Countryside,Transport,Hire Of Movable Plant & Machinery,315,18/01/2023,2301-00481,0.00,151.11,R,ALGECO UK LIMITED,No
Http://opendatacommunities.org/id/metropolitan-district-council/leeds,Leeds City Council,31/01/2023,Communities Housing and Environment,Parks and Countryside,Transport,Hire Of Movable Plant & Machinery,315,18/01/2023,2301-00482,0.00,158.30,R,ALGECO UK LIMITED,No
Http://opendatacommunities.org/id/metropolitan-district-council/leeds,Leeds City Council,31/01/2023,Children and Families,Social Care,Appropriations,Leaving Care Allowances,634,04/01/2023,2301-00483,0.00,102.10,R,REDACTED PERSONAL DATA,No
Http://opendatacommunities.org/id/metropolitan-district-council/leeds,Leeds City Council,31/01/2023,Communities Housing and Environment,Customer Access,Supplies and Services,Bought In Professional Services,277,06/01/2023,2301-00484,0.00,18.00,R,Ali Pourakaberian,No
Http://opendatacommunities.org/id/metropolitan-district-council/leeds,Leeds City Council,31/01/2023,Communities Housing and Environment,Customer Access,Supplies and Services,Bought In Professional Services,277,11/01/2023,2301-00485,0.00,34.50,R,Ali Pourakaberian,No
Http://opendatacommunities.org/id/metropolitan-district-council/leeds,Leeds City Council,31/01/2023,Communities Housing and Environment,Customer Access,Supplies and Services,Bought In Professional Services,277,11/01/2023,2301-00486,0.00,13.50,R,Ali Pourakaberian,No
Http://opendatacommunities.org/id/metropolitan-district-council/leeds,Leeds City Council,31/01/2023,Communities Housing and Environment,Customer Access,Supplies and Services,Bought In Professional Services,277,18/01/2023,2301-00487,0.00,27.00,R,Ali Pourakaberian,No
Http://opendatacommunities.org/id/metropolitan-district-council/leeds,Leeds City Council,31/01/2023,Communities Housing and Environment,Customer Access,Supplies and Services,Bought In Professional Services,277,18/01/2023,2301-00488,0.00,18.00,R,Ali Pourakaberian,No
Http://opendatacommunities.org/id/metropolitan-district-council/leeds,Leeds City Council,31/01/2023,Communities Housing and Environment,Customer Access,Supplies and Services,Bought In Professional Services,277,25/01/2023,2301-00489,0.00,13.50,R,Ali Pourakaberian,No
Http://opendatacommunities.org/id/metropolitan-district-council/leeds,Leeds City Council,31/01/2023,City Development,Libraries Arts & Heritage,Supplies and Services,Other Hired And Contracted Services,265,12/01/2023,2301-00490,0.00,90.00,R,Alice Jones,No
Http://opendatacommunities.org/id/metropolitan-district-council/leeds,Leeds City Council,31/01/2023,City Development,Recreation,Supplies and Services,Bought In Professional Services,277,10/01/2023,2301-00491,0.00,60.00,R,Alice M Richardson,No
Http://opendatacommunities.org/id/metropolitan-district-council/leeds,Leeds City Council,31/01/2023,City Development,Recreation,Supplies and Services,Bought In Professional Services,277,27/01/2023,2301-00492,0.00,60.00,R,Alice M Richardson,No
Http://opendatacommunities.org/id/metropolitan-district-council/leeds,Leeds City Council,31/01/2023,Children and Families,Social Care,Agency Payments,Contact,548,13/01/2023,2301-00493,0.00,10.40,R,REDACTED PERSONAL DATA,No
Http://opendatacommunities.org/id/metropolitan-district-council/leeds,Leeds City Council,31/01/2023,Children and Families,Social Care,Agency Payments,Contact,548,20/01/2023,2301-00494,0.00,10.40,R,REDACTED PERSONAL DATA,No
Http://opendatacommunities.org/id/metropolitan-district-council/leeds,Leeds City Council,31/01/2023,Children and Families,Social Care,Agency Payments,Allowances,546,26/01/2023,2301-00495,0.00,100.00,R,REDACTED PERSONAL DATA,No
Http://opendatacommunities.org/id/metropolitan-district-council/leeds,Leeds City Council,31/01/2023,Children and Families,Social Care,Agency Payments,Contact,548,27/01/2023,2301-00496,0.00,10.40,R,REDACTED PERSONAL DATA,No
Http://opendatacommunities.org/id/metropolitan-district-council/leeds,Leeds City Council,31/01/2023,Children and Families,Social Care,Agency Payments,Contact,548,09/01/2023,2301-00497,0.00,32.00,R,REDACTED PERSONAL DATA,No
Http://opendatacommunities.org/id/metropolitan-district-council/leeds,Leeds City Council,31/01/2023,Children and Families,Social Care,Agency Payments,Contact,548,26/01/2023,2301-00498,0.00,32.00,R,REDACTED PERSONAL DATA,No
Http://opendatacommunities.org/id/metropolitan-district-council/leeds,Leeds City Council,31/01/2023,Children and Families,Social Care,Agency Payments,Contact,548,30/01/2023,2301-00499,0.00,16.00,R,REDACTED PERSONAL DATA,No
Http://opendatacommunities.org/id/metropolitan-district-council/leeds,Leeds City Council,31/01/2023,Children and Families,Social Care,Agency Payments,Contact,548,30/01/2023,2301-00500,0.00,16.00,R,REDACTED PERSONAL DATA,No
Http://opendatacommunities.org/id/metropolitan-district-council/leeds,Leeds City Council,31/01/2023,Children and Families,Social Care,Agency Payments,Services Rendered By Other Organisations,511,06/01/2023,2301-00501,0.00,860.40,R,REDACTED PERSONAL DATA,No
Http://opendatacommunities.org/id/metropolitan-district-council/leeds,Leeds City Council,31/01/2023,Communities Housing and Environment,Customer Access,Supplies and Services,Other Hired And Contracted Services,265,24/01/2023,2301-00502,0.00,245.00,R,Alison Helen Wesley,No
Http://opendatacommunities.org/id/metropolitan-district-council/leeds,Leeds City Council,31/01/2023,Strategic Landlord,Property and Contracts,Internal Recharges,Legal Disbursements,411,26/01/2023,2301-00503,0.00,1500.00,R,Alison Law Solicitors,No
Http://opendatacommunities.org/id/metropolitan-district-council/leeds,Leeds City Council,31/01/2023,Resources,Commercial Services,Supplies and Services,Other Hired And Contracted Services,265,26/01/2023,2301-00504,0.00,235.20,R,REDACTED PERSONAL DATA,No
Http://opendatacommunities.org/id/metropolitan-district-council/leeds,Leeds City Council,31/01/2023,Children and Families,Social Care,Agency Payments,Education Fees/Bursary,565,10/01/2023,2301-00505,0.00,200.00,R,REDACTED PERSONAL DATA,No
Http://opendatacommunities.org/id/metropolitan-district-council/leeds,Leeds City Council,31/01/2023,Children and Families,Social Care,Agency Payments,Services Rendered By Other Organisations,511,04/01/2023,2301-00506,0.00,2005.20,R,All Stars Childcare,No
Http://opendatacommunities.org/id/metropolitan-district-council/leeds,Leeds City Council,31/01/2023,Children and Families,Social Care,Agency Payments,Services Rendered By Other Organisations,511,06/01/2023,2301-00507,0.00,14053.20,R,All Stars Childcare,No
Http://opendatacommunities.org/id/metropolitan-district-council/leeds,Leeds City Council,31/01/2023,Resources,Human Resources,Employees,Occupational Health,85,12/01/2023,2301-00508,0.00,30.00,R,Allerton Medical Centre,No
Http://opendatacommunities.org/id/metropolitan-district-council/leeds,Leeds City Council,31/01/2023,Resources,Finance,Supplies and Services,Bank Charges,263,05/01/2023,2301-00509,0.00,100.00,R,ALLIANCE & LEICESTER COMMERCIAL BANK,No
Http://opendatacommunities.org/id/metropolitan-district-council/leeds,Leeds City Council,31/01/2023,Resources,Finance,Supplies and Services,Bank Charges,263,05/01/2023,2301-00510,0.00,227.97,R,ALLIANCE & LEICESTER COMMERCIAL BANK,No
Http://opendatacommunities.org/id/metropolitan-district-council/leeds,Leeds City Council,31/01/2023,Resources,Commercial Services,Transport,Vehicle Spares,345,06/01/2023,2301-00511,0.00,319.77,R,Alliance Automotive UK CV LTD,No
Http://opendatacommunities.org/id/metropolitan-district-council/leeds,Leeds City Council,31/01/2023,Resources,Commercial Services,Transport,Vehicle Spares,345,06/01/2023,2301-00512,0.00,825.79,R,Alliance Automotive UK CV LTD,No
Http://opendatacommunities.org/id/metropolitan-district-council/leeds,Leeds City Council,31/01/2023,Resources,Commercial Services,Transport,Vehicle Spares,345,06/01/2023,2301-00513,0.00,1056.87,R,Alliance Automotive UK CV LTD,No
Http://opendatacommunities.org/id/metropolitan-district-council/leeds,Leeds City Council,31/01/2023,Resources,Commercial Services,Transport,Vehicle Spares,345,06/01/2023,2301-00514,0.00,310.03,R,Alliance Automotive UK CV LTD,No
Http://opendatacommunities.org/id/metropolitan-district-council/leeds,Leeds City Council,31/01/2023,Resources,Commercial Services,Transport,Vehicle Spares,345,06/01/2023,2301-00515,0.00,171.43,R,Alliance Automotive UK CV LTD,No
Http://opendatacommunities.org/id/metropolitan-district-council/leeds,Leeds City Council,31/01/2023,Resources,Commercial Services,Transport,Vehicle Spares,345,06/01/2023,2301-00516,0.00,889.94,R,Alliance Automotive UK CV LTD,No
Http://opendatacommunities.org/id/metropolitan-district-council/leeds,Leeds City Council,31/01/2023,Resources,Commercial Services,Transport,Vehicle Spares,345,06/01/2023,2301-00517,0.00,544.50,R,Alliance Automotive UK CV LTD,No
Http://opendatacommunities.org/id/metropolitan-district-council/leeds,Leeds City Council,31/01/2023,Resources,Commercial Services,Transport,Vehicle Spares,345,09/01/2023,2301-00518,0.00,733.08,R,Alliance Automotive UK CV LTD,No
Http://opendatacommunities.org/id/metropolitan-district-council/leeds,Leeds City Council,31/01/2023,Resources,Commercial Services,Transport,Vehicle Spares,345,09/01/2023,2301-00519,0.00,451.51,R,Alliance Automotive UK CV LTD,No
Http://opendatacommunities.org/id/metropolitan-district-council/leeds,Leeds City Council,31/01/2023,Resources,Commercial Services,Transport,Vehicle Spares,345,09/01/2023,2301-00520,0.00,577.49,R,Alliance Automotive UK CV LTD,No
Http://opendatacommunities.org/id/metropolitan-district-council/leeds,Leeds City Council,31/01/2023,Resources,Commercial Services,Transport,Vehicle Spares,345,09/01/2023,2301-00521,0.00,64.85,R,Alliance Automotive UK CV LTD,No
Http://opendatacommunities.org/id/metropolitan-district-council/leeds,Leeds City Council,31/01/2023,Resources,Commercial Services,Transport,Vehicle Spares,345,09/01/2023,2301-00522,0.00,735.81,R,Alliance Automotive UK CV LTD,No
Http://opendatacommunities.org/id/metropolitan-district-council/leeds,Leeds City Council,31/01/2023,Resources,Commercial Services,Transport,Vehicle Spares,345,09/01/2023,2301-00523,0.00,414.22,R,Alliance Automotive UK CV LTD,No
Http://opendatacommunities.org/id/metropolitan-district-council/leeds,Leeds City Council,31/01/2023,Resources,Commercial Services,Transport,Vehicle Spares,345,09/01/2023,2301-00524,0.00,58.40,R,Alliance Automotive UK CV LTD,No
Http://opendatacommunities.org/id/metropolitan-district-council/leeds,Leeds City Council,31/01/2023,Resources,Commercial Services,Transport,Vehicle Spares,345,09/01/2023,2301-00525,0.00,768.05,R,Alliance Automotive UK CV LTD,No
Http://opendatacommunities.org/id/metropolitan-district-council/leeds,Leeds City Council,31/01/2023,Resources,Commercial Services,Transport,Vehicle Spares,345,09/01/2023,2301-00526,0.00,177.61,R,Alliance Automotive UK CV LTD,No
Http://opendatacommunities.org/id/metropolitan-district-council/leeds,Leeds City Council,31/01/2023,Resources,Commercial Services,Transport,Vehicle Spares,345,09/01/2023,2301-00527,0.00,693.22,R,Alliance Automotive UK CV LTD,No
Http://opendatacommunities.org/id/metropolitan-district-council/leeds,Leeds City Council,31/01/2023,Resources,Commercial Services,Transport,Vehicle Spares,345,09/01/2023,2301-00528,0.00,187.11,R,Alliance Automotive UK CV LTD,No
Http://opendatacommunities.org/id/metropolitan-district-council/leeds,Leeds City Council,31/01/2023,Resources,Commercial Services,Transport,Vehicle Spares,345,09/01/2023,2301-00529,0.00,29.21,R,Alliance Automotive UK CV LTD,No
Http://opendatacommunities.org/id/metropolitan-district-council/leeds,Leeds City Council,31/01/2023,Resources,Commercial Services,Transport,Vehicle Spares,345,09/01/2023,2301-00530,0.00,45.82,R,Alliance Automotive UK CV LTD,No
Http://opendatacommunities.org/id/metropolitan-district-council/leeds,Leeds City Council,31/01/2023,Resources,Commercial Services,Transport,Vehicle Spares,345,09/01/2023,2301-00531,0.00,438.93,R,Alliance Automotive UK CV LTD,No
Http://opendatacommunities.org/id/metropolitan-district-council/leeds,Leeds City Council,31/01/2023,Resources,Commercial Services,Transport,Vehicle Spares,345,09/01/2023,2301-00532,0.00,356.21,R,Alliance Automotive UK CV LTD,No
Http://opendatacommunities.org/id/metropolitan-district-council/leeds,Leeds City Council,31/01/2023,Resources,Commercial Services,Transport,Vehicle Spares,345,09/01/2023,2301-00533,0.00,463.28,R,Alliance Automotive UK CV LTD,No
Http://opendatacommunities.org/id/metropolitan-district-council/leeds,Leeds City Council,31/01/2023,Resources,Commercial Services,Transport,Vehicle Spares,345,09/01/2023,2301-00534,0.00,779.14,R,Alliance Automotive UK CV LTD,No
Http://opendatacommunities.org/id/metropolitan-district-council/leeds,Leeds City Council,31/01/2023,Resources,Commercial Services,Transport,Vehicle Spares,345,09/01/2023,2301-00535,0.00,256.41,R,Alliance Automotive UK CV LTD,No
Http://opendatacommunities.org/id/metropolitan-district-council/leeds,Leeds City Council,31/01/2023,Resources,Commercial Services,Transport,Vehicle Spares,345,13/01/2023,2301-00536,0.00,-89.06,R,Alliance Automotive UK CV LTD,No
Http://opendatacommunities.org/id/metropolitan-district-council/leeds,Leeds City Council,31/01/2023,Resources,Commercial Services,Transport,Vehicle Spares,345,13/01/2023,2301-00537,0.00,4.01,R,Alliance Automotive UK CV LTD,No
Http://opendatacommunities.org/id/metropolitan-district-council/leeds,Leeds City Council,31/01/2023,Resources,Commercial Services,Transport,Vehicle Spares,345,13/01/2023,2301-00538,0.00,4.01,R,Alliance Automotive UK CV LTD,No
Http://opendatacommunities.org/id/metropolitan-district-council/leeds,Leeds City Council,31/01/2023,Resources,Commercial Services,Transport,Vehicle Spares,345,13/01/2023,2301-00539,0.00,4.01,R,Alliance Automotive UK CV LTD,No
Http://opendatacommunities.org/id/metropolitan-district-council/leeds,Leeds City Council,31/01/2023,Resources,Commercial Services,Transport,Vehicle Spares,345,13/01/2023,2301-00540,0.00,6.28,R,Alliance Automotive UK CV LTD,No
Http://opendatacommunities.org/id/metropolitan-district-council/leeds,Leeds City Council,31/01/2023,Resources,Commercial Services,Transport,Vehicle Spares,345,13/01/2023,2301-00541,0.00,225.53,R,Alliance Automotive UK CV LTD,No
Http://opendatacommunities.org/id/metropolitan-district-council/leeds,Leeds City Council,31/01/2023,Resources,Commercial Services,Transport,Vehicle Spares,345,13/01/2023,2301-00542,0.00,188.40,R,Alliance Automotive UK CV LTD,No
Http://opendatacommunities.org/id/metropolitan-district-council/leeds,Leeds City Council,31/01/2023,Resources,Commercial Services,Transport,Vehicle Spares,345,13/01/2023,2301-00543,0.00,49.36,R,Alliance Automotive UK CV LTD,No
Http://opendatacommunities.org/id/metropolitan-district-council/leeds,Leeds City Council,31/01/2023,Resources,Commercial Services,Transport,Vehicle Spares,345,13/01/2023,2301-00544,0.00,68.31,R,Alliance Automotive UK CV LTD,No
Http://opendatacommunities.org/id/metropolitan-district-council/leeds,Leeds City Council,31/01/2023,Resources,Commercial Services,Transport,Vehicle Spares,345,13/01/2023,2301-00545,0.00,89.06,R,Alliance Automotive UK CV LTD,No
Http://opendatacommunities.org/id/metropolitan-district-council/leeds,Leeds City Council,31/01/2023,Resources,Commercial Services,Transport,Vehicle Spares,345,13/01/2023,2301-00546,0.00,1465.07,R,Alliance Automotive UK CV LTD,No
Http://opendatacommunities.org/id/metropolitan-district-council/leeds,Leeds City Council,31/01/2023,Resources,Commercial Services,Transport,Vehicle Spares,345,13/01/2023,2301-00547,0.00,12.56,R,Alliance Automotive UK CV LTD,No
Http://opendatacommunities.org/id/metropolitan-district-council/leeds,Leeds City Council,31/01/2023,Resources,Commercial Services,Transport,Vehicle Spares,345,13/01/2023,2301-00548,0.00,97.03,R,Alliance Automotive UK CV LTD,No
Http://opendatacommunities.org/id/metropolitan-district-council/leeds,Leeds City Council,31/01/2023,Resources,Commercial Services,Transport,Vehicle Spares,345,13/01/2023,2301-00549,0.00,19.26,R,Alliance Automotive UK CV LTD,No
Http://opendatacommunities.org/id/metropolitan-district-council/leeds,Leeds City Council,31/01/2023,Resources,Commercial Services,Transport,Vehicle Spares,345,13/01/2023,2301-00550,0.00,763.72,R,Alliance Automotive UK CV LTD,No
Http://opendatacommunities.org/id/metropolitan-district-council/leeds,Leeds City Council,31/01/2023,Resources,Commercial Services,Transport,Vehicle Spares,345,13/01/2023,2301-00551,0.00,47.77,R,Alliance Automotive UK CV LTD,No
Http://opendatacommunities.org/id/metropolitan-district-council/leeds,Leeds City Council,31/01/2023,Resources,Commercial Services,Transport,Vehicle Spares,345,13/01/2023,2301-00552,0.00,95.57,R,Alliance Automotive UK CV LTD,No
Http://opendatacommunities.org/id/metropolitan-district-council/leeds,Leeds City Council,31/01/2023,Resources,Commercial Services,Transport,Vehicle Spares,345,13/01/2023,2301-00553,0.00,350.46,R,Alliance Automotive UK CV LTD,No
Http://opendatacommunities.org/id/metropolitan-district-council/leeds,Leeds City Council,31/01/2023,Resources,Commercial Services,Transport,Vehicle Spares,345,13/01/2023,2301-00554,0.00,237.11,R,Alliance Automotive UK CV LTD,No
Http://opendatacommunities.org/id/metropolitan-district-council/leeds,Leeds City Council,31/01/2023,Resources,Commercial Services,Transport,Vehicle Spares,345,13/01/2023,2301-00555,0.00,69.26,R,Alliance Automotive UK CV LTD,No
Http://opendatacommunities.org/id/metropolitan-district-council/leeds,Leeds City Council,31/01/2023,Resources,Commercial Services,Transport,Vehicle Spares,345,13/01/2023,2301-00556,0.00,267.30,R,Alliance Automotive UK CV LTD,No
Http://opendatacommunities.org/id/metropolitan-district-council/leeds,Leeds City Council,31/01/2023,Resources,Commercial Services,Transport,Vehicle Spares,345,13/01/2023,2301-00557,0.00,236.30,R,Alliance Automotive UK CV LTD,No
Http://opendatacommunities.org/id/metropolitan-district-council/leeds,Leeds City Council,31/01/2023,Resources,Commercial Services,Transport,Vehicle Spares,345,13/01/2023,2301-00558,0.00,274.73,R,Alliance Automotive UK CV LTD,No
Http://opendatacommunities.org/id/metropolitan-district-council/leeds,Leeds City Council,31/01/2023,Resources,Commercial Services,Transport,Vehicle Spares,345,13/01/2023,2301-00559,0.00,128.03,R,Alliance Automotive UK CV LTD,No
Http://opendatacommunities.org/id/metropolitan-district-council/leeds,Leeds City Council,31/01/2023,Resources,Commercial Services,Transport,Vehicle Spares,345,13/01/2023,2301-00560,0.00,372.22,R,Alliance Automotive UK CV LTD,No
Http://opendatacommunities.org/id/metropolitan-district-council/leeds,Leeds City Council,31/01/2023,Resources,Commercial Services,Transport,Vehicle Spares,345,13/01/2023,2301-00561,0.00,39.11,R,Alliance Automotive UK CV LTD,No
Http://opendatacommunities.org/id/metropolitan-district-council/leeds,Leeds City Council,31/01/2023,Resources,Commercial Services,Transport,Vehicle Spares,345,13/01/2023,2301-00562,0.00,4.21,R,Alliance Automotive UK CV LTD,No
Http://opendatacommunities.org/id/metropolitan-district-council/leeds,Leeds City Council,31/01/2023,Resources,Commercial Services,Transport,Vehicle Spares,345,13/01/2023,2301-00563,0.00,29.21,R,Alliance Automotive UK CV LTD,No
Http://opendatacommunities.org/id/metropolitan-district-council/leeds,Leeds City Council,31/01/2023,Resources,Commercial Services,Transport,Vehicle Spares,345,13/01/2023,2301-00564,0.00,531.40,R,Alliance Automotive UK CV LTD,No
Http://opendatacommunities.org/id/metropolitan-district-council/leeds,Leeds City Council,31/01/2023,Resources,Commercial Services,Transport,Vehicle Spares,345,13/01/2023,2301-00565,0.00,90.29,R,Alliance Automotive UK CV LTD,No
Http://opendatacommunities.org/id/metropolitan-district-council/leeds,Leeds City Council,31/01/2023,Resources,Commercial Services,Transport,Vehicle Spares,345,13/01/2023,2301-00566,0.00,75.49,R,Alliance Automotive UK CV LTD,No
Http://opendatacommunities.org/id/metropolitan-district-council/leeds,Leeds City Council,31/01/2023,Resources,Commercial Services,Transport,Vehicle Spares,345,13/01/2023,2301-00567,0.00,589.05,R,Alliance Automotive UK CV LTD,No
Http://opendatacommunities.org/id/metropolitan-district-council/leeds,Leeds City Council,31/01/2023,Resources,Commercial Services,Transport,Vehicle Spares,345,13/01/2023,2301-00568,0.00,227.30,R,Alliance Automotive UK CV LTD,No
Http://opendatacommunities.org/id/metropolitan-district-council/leeds,Leeds City Council,31/01/2023,Resources,Commercial Services,Transport,Vehicle Spares,345,13/01/2023,2301-00569,0.00,89.06,R,Alliance Automotive UK CV LTD,No
Http://opendatacommunities.org/id/metropolitan-district-council/leeds,Leeds City Council,31/01/2023,Resources,Commercial Services,Transport,Vehicle Spares,345,13/01/2023,2301-00570,0.00,1181.23,R,Alliance Automotive UK CV LTD,No
Http://opendatacommunities.org/id/metropolitan-district-council/leeds,Leeds City Council,31/01/2023,Resources,Commercial Services,Transport,Vehicle Spares,345,13/01/2023,2301-00571,0.00,157.91,R,Alliance Automotive UK CV LTD,No
Http://opendatacommunities.org/id/metropolitan-district-council/leeds,Leeds City Council,31/01/2023,Resources,Commercial Services,Transport,Vehicle Spares,345,13/01/2023,2301-00572,0.00,39.56,R,Alliance Automotive UK CV LTD,No
Http://opendatacommunities.org/id/metropolitan-district-council/leeds,Leeds City Council,31/01/2023,Resources,Commercial Services,Transport,Vehicle Spares,345,13/01/2023,2301-00573,0.00,187.61,R,Alliance Automotive UK CV LTD,No
Http://opendatacommunities.org/id/metropolitan-district-council/leeds,Leeds City Council,31/01/2023,Resources,Commercial Services,Transport,Vehicle Spares,345,13/01/2023,2301-00574,0.00,790.02,R,Alliance Automotive UK CV LTD,No
Http://opendatacommunities.org/id/metropolitan-district-council/leeds,Leeds City Council,31/01/2023,Resources,Commercial Services,Transport,Vehicle Spares,345,13/01/2023,2301-00575,0.00,52.63,R,Alliance Automotive UK CV LTD,No
Http://opendatacommunities.org/id/metropolitan-district-council/leeds,Leeds City Council,31/01/2023,Resources,Commercial Services,Transport,Vehicle Spares,345,13/01/2023,2301-00576,0.00,153.18,R,Alliance Automotive UK CV LTD,No
Http://opendatacommunities.org/id/metropolitan-district-council/leeds,Leeds City Council,31/01/2023,Resources,Commercial Services,Transport,Vehicle Spares,345,13/01/2023,2301-00577,0.00,1195.53,R,Alliance Automotive UK CV LTD,No
Http://opendatacommunities.org/id/metropolitan-district-council/leeds,Leeds City Council,31/01/2023,Resources,Commercial Services,Transport,Vehicle Spares,345,13/01/2023,2301-00578,0.00,368.96,R,Alliance Automotive UK CV LTD,No
Http://opendatacommunities.org/id/metropolitan-district-council/leeds,Leeds City Council,31/01/2023,Resources,Commercial Services,Transport,Vehicle Spares,345,13/01/2023,2301-00579,0.00,360.39,R,Alliance Automotive UK CV LTD,No
Http://opendatacommunities.org/id/metropolitan-district-council/leeds,Leeds City Council,31/01/2023,Resources,Commercial Services,Transport,Vehicle Spares,345,13/01/2023,2301-00580,0.00,187.11,R,Alliance Automotive UK CV LTD,No
Http://opendatacommunities.org/id/metropolitan-district-council/leeds,Leeds City Council,31/01/2023,Resources,Commercial Services,Transport,Vehicle Spares,345,13/01/2023,2301-00581,0.00,493.02,R,Alliance Automotive UK CV LTD,No
Http://opendatacommunities.org/id/metropolitan-district-council/leeds,Leeds City Council,31/01/2023,Resources,Commercial Services,Transport,Vehicle Spares,345,13/01/2023,2301-00582,0.00,97.32,R,Alliance Automotive UK CV LTD,No
Http://opendatacommunities.org/id/metropolitan-district-council/leeds,Leeds City Council,31/01/2023,Resources,Commercial Services,Transport,Vehicle Spares,345,13/01/2023,2301-00583,0.00,194.03,R,Alliance Automotive UK CV LTD,No
Http://opendatacommunities.org/id/metropolitan-district-council/leeds,Leeds City Council,31/01/2023,Resources,Commercial Services,Transport,Vehicle Spares,345,13/01/2023,2301-00584,0.00,27.18,R,Alliance Automotive UK CV LTD,No
Http://opendatacommunities.org/id/metropolitan-district-council/leeds,Leeds City Council,31/01/2023,Resources,Commercial Services,Transport,Vehicle Spares,345,13/01/2023,2301-00585,0.00,39.53,R,Alliance Automotive UK CV LTD,No
Http://opendatacommunities.org/id/metropolitan-district-council/leeds,Leeds City Council,31/01/2023,Resources,Commercial Services,Transport,Vehicle Spares,345,13/01/2023,2301-00586,0.00,82.73,R,Alliance Automotive UK CV LTD,No
Http://opendatacommunities.org/id/metropolitan-district-council/leeds,Leeds City Council,31/01/2023,Resources,Commercial Services,Transport,Vehicle Spares,345,13/01/2023,2301-00587,0.00,296.73,R,Alliance Automotive UK CV LTD,No
Http://opendatacommunities.org/id/metropolitan-district-council/leeds,Leeds City Council,31/01/2023,Resources,Commercial Services,Transport,Vehicle Spares,345,13/01/2023,2301-00588,0.00,95.34,R,Alliance Automotive UK CV LTD,No
Http://opendatacommunities.org/id/metropolitan-district-council/leeds,Leeds City Council,31/01/2023,Resources,Commercial Services,Transport,Vehicle Spares,345,19/01/2023,2301-00589,0.00,841.50,R,Alliance Automotive UK CV LTD,No
Http://opendatacommunities.org/id/metropolitan-district-council/leeds,Leeds City Council,31/01/2023,Resources,Commercial Services,Transport,Vehicle Spares,345,19/01/2023,2301-00590,0.00,322.67,R,Alliance Automotive UK CV LTD,No
Http://opendatacommunities.org/id/metropolitan-district-council/leeds,Leeds City Council,31/01/2023,Resources,Commercial Services,Transport,Vehicle Spares,345,19/01/2023,2301-00591,0.00,409.27,R,Alliance Automotive UK CV LTD,No
Http://opendatacommunities.org/id/metropolitan-district-council/leeds,Leeds City Council,31/01/2023,Resources,Commercial Services,Transport,Vehicle Spares,345,19/01/2023,2301-00592,0.00,116.82,R,Alliance Automotive UK CV LTD,No
Http://opendatacommunities.org/id/metropolitan-district-council/leeds,Leeds City Council,31/01/2023,Resources,Commercial Services,Transport,Vehicle Spares,345,19/01/2023,2301-00593,0.00,1174.88,R,Alliance Automotive UK CV LTD,No
Http://opendatacommunities.org/id/metropolitan-district-council/leeds,Leeds City Council,31/01/2023,Resources,Commercial Services,Transport,Vehicle Spares,345,19/01/2023,2301-00594,0.00,11.88,R,Alliance Automotive UK CV LTD,No
Http://opendatacommunities.org/id/metropolitan-district-council/leeds,Leeds City Council,31/01/2023,Resources,Commercial Services,Transport,Vehicle Spares,345,19/01/2023,2301-00595,0.00,7815.06,R,Alliance Automotive UK CV LTD,No
Http://opendatacommunities.org/id/metropolitan-district-council/leeds,Leeds City Council,31/01/2023,Resources,Commercial Services,Transport,Vehicle Spares,345,19/01/2023,2301-00596,0.00,838.97,R,Alliance Automotive UK CV LTD,No
Http://opendatacommunities.org/id/metropolitan-district-council/leeds,Leeds City Council,31/01/2023,Resources,Commercial Services,Transport,Vehicle Spares,345,19/01/2023,2301-00597,0.00,156.62,R,Alliance Automotive UK CV LTD,No
Http://opendatacommunities.org/id/metropolitan-district-council/leeds,Leeds City Council,31/01/2023,Resources,Commercial Services,Transport,Vehicle Spares,345,19/01/2023,2301-00598,0.00,279.48,R,Alliance Automotive UK CV LTD,No
Http://opendatacommunities.org/id/metropolitan-district-council/leeds,Leeds City Council,31/01/2023,Resources,Commercial Services,Transport,Vehicle Spares,345,19/01/2023,2301-00599,0.00,19.67,R,Alliance Automotive UK CV LTD,No
Http://opendatacommunities.org/id/metropolitan-district-council/leeds,Leeds City Council,31/01/2023,Resources,Commercial Services,Transport,Vehicle Spares,345,19/01/2023,2301-00600,0.00,3.96,R,Alliance Automotive UK CV LTD,No
Http://opendatacommunities.org/id/metropolitan-district-council/leeds,Leeds City Council,31/01/2023,Resources,Commercial Services,Transport,Vehicle Spares,345,19/01/2023,2301-00601,0.00,13.09,R,Alliance Automotive UK CV LTD,No
Http://opendatacommunities.org/id/metropolitan-district-council/leeds,Leeds City Council,31/01/2023,Resources,Commercial Services,Transport,Vehicle Spares,345,19/01/2023,2301-00602,0.00,25.25,R,Alliance Automotive UK CV LTD,No
Http://opendatacommunities.org/id/metropolitan-district-council/leeds,Leeds City Council,31/01/2023,Resources,Commercial Services,Transport,Vehicle Spares,345,19/01/2023,2301-00603,0.00,16.34,R,Alliance Automotive UK CV LTD,No
Http://opendatacommunities.org/id/metropolitan-district-council/leeds,Leeds City Council,31/01/2023,Resources,Commercial Services,Transport,Vehicle Spares,345,19/01/2023,2301-00604,0.00,25.41,R,Alliance Automotive UK CV LTD,No
Http://opendatacommunities.org/id/metropolitan-district-council/leeds,Leeds City Council,31/01/2023,Resources,Commercial Services,Transport,Vehicle Spares,345,19/01/2023,2301-00605,0.00,178.11,R,Alliance Automotive UK CV LTD,No
Http://opendatacommunities.org/id/metropolitan-district-council/leeds,Leeds City Council,31/01/2023,Resources,Commercial Services,Transport,Vehicle Spares,345,19/01/2023,2301-00606,0.00,98.19,R,Alliance Automotive UK CV LTD,No
Http://opendatacommunities.org/id/metropolitan-district-council/leeds,Leeds City Council,31/01/2023,Resources,Commercial Services,Transport,Vehicle Spares,345,19/01/2023,2301-00607,0.00,187.61,R,Alliance Automotive UK CV LTD,No
Http://opendatacommunities.org/id/metropolitan-district-council/leeds,Leeds City Council,31/01/2023,Resources,Commercial Services,Transport,Vehicle Spares,345,19/01/2023,2301-00608,0.00,10.48,R,Alliance Automotive UK CV LTD,No
Http://opendatacommunities.org/id/metropolitan-district-council/leeds,Leeds City Council,31/01/2023,Resources,Commercial Services,Transport,Vehicle Spares,345,19/01/2023,2301-00609,0.00,235.72,R,Alliance Automotive UK CV LTD,No
Http://opendatacommunities.org/id/metropolitan-district-council/leeds,Leeds City Council,31/01/2023,Resources,Commercial Services,Transport,Vehicle Spares,345,19/01/2023,2301-00610,0.00,1135.98,R,Alliance Automotive UK CV LTD,No
Http://opendatacommunities.org/id/metropolitan-district-council/leeds,Leeds City Council,31/01/2023,Resources,Commercial Services,Transport,Vehicle Spares,345,19/01/2023,2301-00611,0.00,69.27,R,Alliance Automotive UK CV LTD,No
Http://opendatacommunities.org/id/metropolitan-district-council/leeds,Leeds City Council,31/01/2023,Resources,Commercial Services,Transport,Vehicle Spares,345,19/01/2023,2301-00612,0.00,187.00,R,Alliance Automotive UK CV LTD,No
Http://opendatacommunities.org/id/metropolitan-district-council/leeds,Leeds City Council,31/01/2023,Resources,Commercial Services,Transport,Vehicle Spares,345,19/01/2023,2301-00613,0.00,62.42,R,Alliance Automotive UK CV LTD,No
Http://opendatacommunities.org/id/metropolitan-district-council/leeds,Leeds City Council,31/01/2023,Resources,Commercial Services,Transport,Vehicle Spares,345,20/01/2023,2301-00614,0.00,-533.61,R,Alliance Automotive UK CV LTD,No
Http://opendatacommunities.org/id/metropolitan-district-council/leeds,Leeds City Council,31/01/2023,Resources,Commercial Services,Transport,Vehicle Spares,345,20/01/2023,2301-00615,0.00,-74.25,R,Alliance Automotive UK CV LTD,No
Http://opendatacommunities.org/id/metropolitan-district-council/leeds,Leeds City Council,31/01/2023,Resources,Commercial Services,Transport,Vehicle Spares,345,20/01/2023,2301-00616,0.00,673.21,R,Alliance Automotive UK CV LTD,No
Http://opendatacommunities.org/id/metropolitan-district-council/leeds,Leeds City Council,31/01/2023,Resources,Commercial Services,Transport,Vehicle Spares,345,20/01/2023,2301-00617,0.00,17.41,R,Alliance Automotive UK CV LTD,No
Http://opendatacommunities.org/id/metropolitan-district-council/leeds,Leeds City Council,31/01/2023,Resources,Commercial Services,Transport,Vehicle Spares,345,20/01/2023,2301-00618,0.00,217.68,R,Alliance Automotive UK CV LTD,No
Http://opendatacommunities.org/id/metropolitan-district-council/leeds,Leeds City Council,31/01/2023,Resources,Commercial Services,Transport,Vehicle Spares,345,20/01/2023,2301-00619,0.00,489.51,R,Alliance Automotive UK CV LTD,No
Http://opendatacommunities.org/id/metropolitan-district-council/leeds,Leeds City Council,31/01/2023,Resources,Commercial Services,Transport,Vehicle Spares,345,20/01/2023,2301-00620,0.00,104.25,R,Alliance Automotive UK CV LTD,No
Http://opendatacommunities.org/id/metropolitan-district-council/leeds,Leeds City Council,31/01/2023,Resources,Commercial Services,Transport,Vehicle Spares,345,20/01/2023,2301-00621,0.00,569.94,R,Alliance Automotive UK CV LTD,No
Http://opendatacommunities.org/id/metropolitan-district-council/leeds,Leeds City Council,31/01/2023,Resources,Commercial Services,Transport,Vehicle Spares,345,20/01/2023,2301-00622,0.00,20.28,R,Alliance Automotive UK CV LTD,No
Http://opendatacommunities.org/id/metropolitan-district-council/leeds,Leeds City Council,31/01/2023,Resources,Commercial Services,Transport,Vehicle Spares,345,20/01/2023,2301-00623,0.00,32.91,R,Alliance Automotive UK CV LTD,No
Http://opendatacommunities.org/id/metropolitan-district-council/leeds,Leeds City Council,31/01/2023,Resources,Commercial Services,Transport,Vehicle Spares,345,20/01/2023,2301-00624,0.00,167.81,R,Alliance Automotive UK CV LTD,No
Http://opendatacommunities.org/id/metropolitan-district-council/leeds,Leeds City Council,31/01/2023,Resources,Commercial Services,Transport,Vehicle Spares,345,20/01/2023,2301-00625,0.00,7200.18,R,Alliance Automotive UK CV LTD,No
Http://opendatacommunities.org/id/metropolitan-district-council/leeds,Leeds City Council,31/01/2023,Resources,Commercial Services,Transport,Vehicle Spares,345,20/01/2023,2301-00626,0.00,153.28,R,Alliance Automotive UK CV LTD,No
Http://opendatacommunities.org/id/metropolitan-district-council/leeds,Leeds City Council,31/01/2023,Resources,Commercial Services,Transport,Vehicle Spares,345,20/01/2023,2301-00627,0.00,1071.18,R,Alliance Automotive UK CV LTD,No
Http://opendatacommunities.org/id/metropolitan-district-council/leeds,Leeds City Council,31/01/2023,Resources,Commercial Services,Transport,Vehicle Spares,345,20/01/2023,2301-00628,0.00,1376.10,R,Alliance Automotive UK CV LTD,No
Http://opendatacommunities.org/id/metropolitan-district-council/leeds,Leeds City Council,31/01/2023,Resources,Commercial Services,Transport,Vehicle Spares,345,20/01/2023,2301-00629,0.00,393.27,R,Alliance Automotive UK CV LTD,No
Http://opendatacommunities.org/id/metropolitan-district-council/leeds,Leeds City Council,31/01/2023,Resources,Commercial Services,Transport,Vehicle Spares,345,20/01/2023,2301-00630,0.00,75.24,R,Alliance Automotive UK CV LTD,No
Http://opendatacommunities.org/id/metropolitan-district-council/leeds,Leeds City Council,31/01/2023,Resources,Commercial Services,Transport,Vehicle Spares,345,20/01/2023,2301-00631,0.00,533.61,R,Alliance Automotive UK CV LTD,No
Http://opendatacommunities.org/id/metropolitan-district-council/leeds,Leeds City Council,31/01/2023,Resources,Commercial Services,Transport,Vehicle Spares,345,20/01/2023,2301-00632,0.00,71.25,R,Alliance Automotive UK CV LTD,No
Http://opendatacommunities.org/id/metropolitan-district-council/leeds,Leeds City Council,31/01/2023,Resources,Commercial Services,Transport,Vehicle Spares,345,20/01/2023,2301-00633,0.00,155.22,R,Alliance Automotive UK CV LTD,No
Http://opendatacommunities.org/id/metropolitan-district-council/leeds,Leeds City Council,31/01/2023,Resources,Commercial Services,Transport,Vehicle Spares,345,20/01/2023,2301-00634,0.00,18.92,R,Alliance Automotive UK CV LTD,No
Http://opendatacommunities.org/id/metropolitan-district-council/leeds,Leeds City Council,31/01/2023,Resources,Commercial Services,Transport,Vehicle Spares,345,20/01/2023,2301-00635,0.00,1135.98,R,Alliance Automotive UK CV LTD,No
Http://opendatacommunities.org/id/metropolitan-district-council/leeds,Leeds City Council,31/01/2023,Resources,Commercial Services,Transport,Vehicle Spares,345,20/01/2023,2301-00636,0.00,27.23,R,Alliance Automotive UK CV LTD,No
Http://opendatacommunities.org/id/metropolitan-district-council/leeds,Leeds City Council,31/01/2023,Resources,Commercial Services,Transport,Vehicle Spares,345,20/01/2023,2301-00637,0.00,256.41,R,Alliance Automotive UK CV LTD,No
Http://opendatacommunities.org/id/metropolitan-district-council/leeds,Leeds City Council,31/01/2023,Resources,Commercial Services,Transport,Vehicle Spares,345,20/01/2023,2301-00638,0.00,145.56,R,Alliance Automotive UK CV LTD,No
Http://opendatacommunities.org/id/metropolitan-district-council/leeds,Leeds City Council,31/01/2023,Resources,Commercial Services,Transport,Vehicle Spares,345,20/01/2023,2301-00639,0.00,1135.98,R,Alliance Automotive UK CV LTD,No
Http://opendatacommunities.org/id/metropolitan-district-council/leeds,Leeds City Council,31/01/2023,Resources,Commercial Services,Transport,Vehicle Spares,345,20/01/2023,2301-00640,0.00,4.27,R,Alliance Automotive UK CV LTD,No
Http://opendatacommunities.org/id/metropolitan-district-council/leeds,Leeds City Council,31/01/2023,Resources,Commercial Services,Transport,Vehicle Spares,345,20/01/2023,2301-00641,0.00,19.77,R,Alliance Automotive UK CV LTD,No
Http://opendatacommunities.org/id/metropolitan-district-council/leeds,Leeds City Council,31/01/2023,Resources,Commercial Services,Transport,Vehicle Spares,345,26/01/2023,2301-00642,0.00,37.58,R,Alliance Automotive UK CV LTD,No
Http://opendatacommunities.org/id/metropolitan-district-council/leeds,Leeds City Council,31/01/2023,Resources,Commercial Services,Transport,Vehicle Spares,345,26/01/2023,2301-00643,0.00,58.91,R,Alliance Automotive UK CV LTD,No
Http://opendatacommunities.org/id/metropolitan-district-council/leeds,Leeds City Council,31/01/2023,Resources,Commercial Services,Transport,Vehicle Spares,345,26/01/2023,2301-00644,0.00,-213.84,R,Alliance Automotive UK CV LTD,No
Http://opendatacommunities.org/id/metropolitan-district-council/leeds,Leeds City Council,31/01/2023,Resources,Commercial Services,Transport,Vehicle Spares,345,26/01/2023,2301-00645,0.00,220.62,R,Alliance Automotive UK CV LTD,No
Http://opendatacommunities.org/id/metropolitan-district-council/leeds,Leeds City Council,31/01/2023,Resources,Commercial Services,Transport,Vehicle Spares,345,26/01/2023,2301-00646,0.00,922.37,R,Alliance Automotive UK CV LTD,No
Http://opendatacommunities.org/id/metropolitan-district-council/leeds,Leeds City Council,31/01/2023,Resources,Commercial Services,Transport,Vehicle Spares,345,26/01/2023,2301-00647,0.00,135.59,R,Alliance Automotive UK CV LTD,No
Http://opendatacommunities.org/id/metropolitan-district-council/leeds,Leeds City Council,31/01/2023,Resources,Commercial Services,Transport,Vehicle Spares,345,26/01/2023,2301-00648,0.00,216.81,R,Alliance Automotive UK CV LTD,No
Http://opendatacommunities.org/id/metropolitan-district-council/leeds,Leeds City Council,31/01/2023,Resources,Commercial Services,Transport,Vehicle Spares,345,26/01/2023,2301-00649,0.00,43.55,R,Alliance Automotive UK CV LTD,No
Http://opendatacommunities.org/id/metropolitan-district-council/leeds,Leeds City Council,31/01/2023,Resources,Commercial Services,Transport,Vehicle Spares,345,26/01/2023,2301-00650,0.00,167.89,R,Alliance Automotive UK CV LTD,No
Http://opendatacommunities.org/id/metropolitan-district-council/leeds,Leeds City Council,31/01/2023,Resources,Commercial Services,Transport,Vehicle Spares,345,26/01/2023,2301-00651,0.00,105.10,R,Alliance Automotive UK CV LTD,No
Http://opendatacommunities.org/id/metropolitan-district-council/leeds,Leeds City Council,31/01/2023,Resources,Commercial Services,Transport,Vehicle Spares,345,26/01/2023,2301-00652,0.00,493.02,R,Alliance Automotive UK CV LTD,No
Http://opendatacommunities.org/id/metropolitan-district-council/leeds,Leeds City Council,31/01/2023,Resources,Commercial Services,Transport,Vehicle Spares,345,26/01/2023,2301-00653,0.00,266.81,R,Alliance Automotive UK CV LTD,No
Http://opendatacommunities.org/id/metropolitan-district-council/leeds,Leeds City Council,31/01/2023,Resources,Commercial Services,Transport,Vehicle Spares,345,26/01/2023,2301-00654,0.00,258.89,R,Alliance Automotive UK CV LTD,No
Http://opendatacommunities.org/id/metropolitan-district-council/leeds,Leeds City Council,31/01/2023,Resources,Commercial Services,Transport,Vehicle Spares,345,26/01/2023,2301-00655,0.00,117.08,R,Alliance Automotive UK CV LTD,No
Http://opendatacommunities.org/id/metropolitan-district-council/leeds,Leeds City Council,31/01/2023,Resources,Commercial Services,Transport,Vehicle Spares,345,26/01/2023,2301-00656,0.00,285.31,R,Alliance Automotive UK CV LTD,No
Http://opendatacommunities.org/id/metropolitan-district-council/leeds,Leeds City Council,31/01/2023,Resources,Commercial Services,Transport,Vehicle Spares,345,26/01/2023,2301-00657,0.00,506.90,R,Alliance Automotive UK CV LTD,No
Http://opendatacommunities.org/id/metropolitan-district-council/leeds,Leeds City Council,31/01/2023,Resources,Commercial Services,Transport,Vehicle Spares,345,26/01/2023,2301-00658,0.00,19.31,R,Alliance Automotive UK CV LTD,No
Http://opendatacommunities.org/id/metropolitan-district-council/leeds,Leeds City Council,31/01/2023,Resources,Commercial Services,Transport,Vehicle Spares,345,26/01/2023,2301-00659,0.00,1174.88,R,Alliance Automotive UK CV LTD,No
Http://opendatacommunities.org/id/metropolitan-district-council/leeds,Leeds City Council,31/01/2023,Resources,Commercial Services,Transport,Vehicle Spares,345,26/01/2023,2301-00660,0.00,59.29,R,Alliance Automotive UK CV LTD,No
Http://opendatacommunities.org/id/metropolitan-district-council/leeds,Leeds City Council,31/01/2023,Resources,Commercial Services,Transport,Vehicle Spares,345,26/01/2023,2301-00661,0.00,88.61,R,Alliance Automotive UK CV LTD,No
Http://opendatacommunities.org/id/metropolitan-district-council/leeds,Leeds City Council,31/01/2023,Resources,Commercial Services,Transport,Vehicle Spares,345,26/01/2023,2301-00662,0.00,253.20,R,Alliance Automotive UK CV LTD,No
Http://opendatacommunities.org/id/metropolitan-district-council/leeds,Leeds City Council,31/01/2023,Resources,Commercial Services,Transport,Vehicle Spares,345,26/01/2023,2301-00663,0.00,613.09,R,Alliance Automotive UK CV LTD,No
Http://opendatacommunities.org/id/metropolitan-district-council/leeds,Leeds City Council,31/01/2023,Resources,Commercial Services,Transport,Vehicle Spares,345,26/01/2023,2301-00664,0.00,74.21,R,Alliance Automotive UK CV LTD,No
Http://opendatacommunities.org/id/metropolitan-district-council/leeds,Leeds City Council,31/01/2023,Resources,Commercial Services,Transport,Vehicle Spares,345,26/01/2023,2301-00665,0.00,419.86,R,Alliance Automotive UK CV LTD,No
Http://opendatacommunities.org/id/metropolitan-district-council/leeds,Leeds City Council,31/01/2023,Resources,Commercial Services,Transport,Vehicle Spares,345,26/01/2023,2301-00666,0.00,153.17,R,Alliance Automotive UK CV LTD,No
Http://opendatacommunities.org/id/metropolitan-district-council/leeds,Leeds City Council,31/01/2023,Resources,Commercial Services,Transport,Vehicle Spares,345,26/01/2023,2301-00667,0.00,870.22,R,Alliance Automotive UK CV LTD,No
Http://opendatacommunities.org/id/metropolitan-district-council/leeds,Leeds City Council,31/01/2023,Resources,Commercial Services,Transport,Vehicle Spares,345,26/01/2023,2301-00668,0.00,295.02,R,Alliance Automotive UK CV LTD,No
Http://opendatacommunities.org/id/metropolitan-district-council/leeds,Leeds City Council,31/01/2023,Resources,Commercial Services,Transport,Vehicle Spares,345,26/01/2023,2301-00669,0.00,677.66,R,Alliance Automotive UK CV LTD,No
Http://opendatacommunities.org/id/metropolitan-district-council/leeds,Leeds City Council,31/01/2023,Resources,Commercial Services,Transport,Vehicle Spares,345,26/01/2023,2301-00670,0.00,157.41,R,Alliance Automotive UK CV LTD,No
Http://opendatacommunities.org/id/metropolitan-district-council/leeds,Leeds City Council,31/01/2023,Resources,Commercial Services,Transport,Vehicle Spares,345,26/01/2023,2301-00671,0.00,1066.73,R,Alliance Automotive UK CV LTD,No
Http://opendatacommunities.org/id/metropolitan-district-council/leeds,Leeds City Council,31/01/2023,Resources,Commercial Services,Transport,Vehicle Spares,345,27/01/2023,2301-00672,0.00,354.42,R,Alliance Automotive UK CV LTD,No
Http://opendatacommunities.org/id/metropolitan-district-council/leeds,Leeds City Council,31/01/2023,Resources,Commercial Services,Transport,Vehicle Spares,345,27/01/2023,2301-00673,0.00,183.52,R,Alliance Automotive UK CV LTD,No
Http://opendatacommunities.org/id/metropolitan-district-council/leeds,Leeds City Council,31/01/2023,Resources,Commercial Services,Transport,Vehicle Spares,345,27/01/2023,2301-00674,0.00,121.62,R,Alliance Automotive UK CV LTD,No
Http://opendatacommunities.org/id/metropolitan-district-council/leeds,Leeds City Council,31/01/2023,Resources,Commercial Services,Transport,Vehicle Spares,345,27/01/2023,2301-00675,0.00,20.79,R,Alliance Automotive UK CV LTD,No
Http://opendatacommunities.org/id/metropolitan-district-council/leeds,Leeds City Council,31/01/2023,Resources,Commercial Services,Transport,Vehicle Spares,345,27/01/2023,2301-00676,0.00,38.65,R,Alliance Automotive UK CV LTD,No
Http://opendatacommunities.org/id/metropolitan-district-council/leeds,Leeds City Council,31/01/2023,Resources,Commercial Services,Transport,Vehicle Spares,345,27/01/2023,2301-00677,0.00,10.28,R,Alliance Automotive UK CV LTD,No
Http://opendatacommunities.org/id/metropolitan-district-council/leeds,Leeds City Council,31/01/2023,Resources,Commercial Services,Transport,Vehicle Spares,345,27/01/2023,2301-00678,0.00,10.28,R,Alliance Automotive UK CV LTD,No
Http://opendatacommunities.org/id/metropolitan-district-council/leeds,Leeds City Council,31/01/2023,Resources,Commercial Services,Transport,Vehicle Spares,345,27/01/2023,2301-00679,0.00,74.18,R,Alliance Automotive UK CV LTD,No
Http://opendatacommunities.org/id/metropolitan-district-council/leeds,Leeds City Council,31/01/2023,Resources,Commercial Services,Transport,Vehicle Spares,345,27/01/2023,2301-00680,0.00,465.30,R,Alliance Automotive UK CV LTD,No
Http://opendatacommunities.org/id/metropolitan-district-council/leeds,Leeds City Council,31/01/2023,Resources,Commercial Services,Transport,Vehicle Spares,345,27/01/2023,2301-00681,0.00,465.30,R,Alliance Automotive UK CV LTD,No
Http://opendatacommunities.org/id/metropolitan-district-council/leeds,Leeds City Council,31/01/2023,Resources,Commercial Services,Transport,Vehicle Spares,345,27/01/2023,2301-00682,0.00,11.77,R,Alliance Automotive UK CV LTD,No
Http://opendatacommunities.org/id/metropolitan-district-council/leeds,Leeds City Council,31/01/2023,Resources,Commercial Services,Transport,Vehicle Spares,345,27/01/2023,2301-00683,0.00,549.22,R,Alliance Automotive UK CV LTD,No
Http://opendatacommunities.org/id/metropolitan-district-council/leeds,Leeds City Council,31/01/2023,Resources,Commercial Services,Transport,Vehicle Spares,345,27/01/2023,2301-00684,0.00,31.57,R,Alliance Automotive UK CV LTD,No
Http://opendatacommunities.org/id/metropolitan-district-council/leeds,Leeds City Council,31/01/2023,Resources,Commercial Services,Transport,Vehicle Spares,345,27/01/2023,2301-00685,0.00,372.76,R,Alliance Automotive UK CV LTD,No
Http://opendatacommunities.org/id/metropolitan-district-council/leeds,Leeds City Council,31/01/2023,Resources,Commercial Services,Transport,Vehicle Spares,345,27/01/2023,2301-00686,0.00,89.82,R,Alliance Automotive UK CV LTD,No
Http://opendatacommunities.org/id/metropolitan-district-council/leeds,Leeds City Council,31/01/2023,Resources,Commercial Services,Transport,Vehicle Spares,345,27/01/2023,2301-00687,0.00,16.46,R,Alliance Automotive UK CV LTD,No
Http://opendatacommunities.org/id/metropolitan-district-council/leeds,Leeds City Council,31/01/2023,Resources,Commercial Services,Transport,Vehicle Spares,345,27/01/2023,2301-00688,0.00,52.28,R,Alliance Automotive UK CV LTD,No
Http://opendatacommunities.org/id/metropolitan-district-council/leeds,Leeds City Council,31/01/2023,Resources,Commercial Services,Transport,Vehicle Spares,345,27/01/2023,2301-00689,0.00,85.56,R,Alliance Automotive UK CV LTD,No
Http://opendatacommunities.org/id/metropolitan-district-council/leeds,Leeds City Council,31/01/2023,Resources,Commercial Services,Transport,Vehicle Spares,345,27/01/2023,2301-00690,0.00,20.25,R,Alliance Automotive UK CV LTD,No
Http://opendatacommunities.org/id/metropolitan-district-council/leeds,Leeds City Council,31/01/2023,Resources,Commercial Services,Transport,Vehicle Spares,345,27/01/2023,2301-00691,0.00,104.69,R,Alliance Automotive UK CV LTD,No
Http://opendatacommunities.org/id/metropolitan-district-council/leeds,Leeds City Council,31/01/2023,Resources,Commercial Services,Transport,Vehicle Spares,345,27/01/2023,2301-00692,0.00,674.19,R,Alliance Automotive UK CV LTD,No
Http://opendatacommunities.org/id/metropolitan-district-council/leeds,Leeds City Council,31/01/2023,Resources,Commercial Services,Transport,Vehicle Spares,345,27/01/2023,2301-00693,0.00,68.05,R,Alliance Automotive UK CV LTD,No
Http://opendatacommunities.org/id/metropolitan-district-council/leeds,Leeds City Council,31/01/2023,Resources,Commercial Services,Transport,Vehicle Spares,345,27/01/2023,2301-00694,0.00,73.84,R,Alliance Automotive UK CV LTD,No
Http://opendatacommunities.org/id/metropolitan-district-council/leeds,Leeds City Council,31/01/2023,Resources,Commercial Services,Transport,Vehicle Spares,345,27/01/2023,2301-00695,0.00,345.36,R,Alliance Automotive UK CV LTD,No
Http://opendatacommunities.org/id/metropolitan-district-council/leeds,Leeds City Council,31/01/2023,Resources,Commercial Services,Transport,Vehicle Spares,345,27/01/2023,2301-00696,0.00,52.97,R,Alliance Automotive UK CV LTD,No
Http://opendatacommunities.org/id/metropolitan-district-council/leeds,Leeds City Council,31/01/2023,Resources,Commercial Services,Transport,Vehicle Spares,345,27/01/2023,2301-00697,0.00,52.97,R,Alliance Automotive UK CV LTD,No
Http://opendatacommunities.org/id/metropolitan-district-council/leeds,Leeds City Council,31/01/2023,Resources,Commercial Services,Transport,Vehicle Spares,345,27/01/2023,2301-00698,0.00,493.02,R,Alliance Automotive UK CV LTD,No
Http://opendatacommunities.org/id/metropolitan-district-council/leeds,Leeds City Council,31/01/2023,Resources,Commercial Services,Transport,Vehicle Spares,345,27/01/2023,2301-00699,0.00,2524.50,R,Alliance Automotive UK CV LTD,No
Http://opendatacommunities.org/id/metropolitan-district-council/leeds,Leeds City Council,31/01/2023,Resources,Commercial Services,Transport,Vehicle Spares,345,27/01/2023,2301-00700,0.00,82.17,R,Alliance Automotive UK CV LTD,No
Http://opendatacommunities.org/id/metropolitan-district-council/leeds,Leeds City Council,31/01/2023,Resources,Commercial Services,Transport,Vehicle Spares,345,27/01/2023,2301-00701,0.00,10.44,R,Alliance Automotive UK CV LTD,No
Http://opendatacommunities.org/id/metropolitan-district-council/leeds,Leeds City Council,31/01/2023,Resources,Commercial Services,Transport,Vehicle Spares,345,27/01/2023,2301-00702,0.00,6.92,R,Alliance Automotive UK CV LTD,No
Http://opendatacommunities.org/id/metropolitan-district-council/leeds,Leeds City Council,31/01/2023,Resources,Commercial Services,Transport,Vehicle Spares,345,27/01/2023,2301-00703,0.00,371.14,R,Alliance Automotive UK CV LTD,No
Http://opendatacommunities.org/id/metropolitan-district-council/leeds,Leeds City Council,31/01/2023,Resources,Commercial Services,Supplies and Services,Operational Materials,205,04/01/2023,2301-00704,0.00,301.62,R,ALLIANCE DISPOSABLES LTD,No
Http://opendatacommunities.org/id/metropolitan-district-council/leeds,Leeds City Council,31/01/2023,Resources,Commercial Services,Supplies and Services,Operational Materials,205,06/01/2023,2301-00705,0.00,114.28,R,ALLIANCE DISPOSABLES LTD,No
Http://opendatacommunities.org/id/metropolitan-district-council/leeds,Leeds City Council,31/01/2023,Resources,Commercial Services,Supplies and Services,Operational Materials,205,06/01/2023,2301-00706,0.00,255.24,R,ALLIANCE DISPOSABLES LTD,No
Http://opendatacommunities.org/id/metropolitan-district-council/leeds,Leeds City Council,31/01/2023,Resources,Commercial Services,Supplies and Services,Operational Materials,205,13/01/2023,2301-00707,0.00,228.56,R,ALLIANCE DISPOSABLES LTD,No
Http://opendatacommunities.org/id/metropolitan-district-council/leeds,Leeds City Council,31/01/2023,Resources,Commercial Services,Supplies and Services,Operational Materials,205,13/01/2023,2301-00708,0.00,114.28,R,ALLIANCE DISPOSABLES LTD,No
Http://opendatacommunities.org/id/metropolitan-district-council/leeds,Leeds City Council,31/01/2023,Resources,Commercial Services,Supplies and Services,Operational Materials,205,13/01/2023,2301-00709,0.00,594.89,R,ALLIANCE DISPOSABLES LTD,No
Http://opendatacommunities.org/id/metropolitan-district-council/leeds,Leeds City Council,31/01/2023,Resources,Commercial Services,Supplies and Services,Operational Materials,205,13/01/2023,2301-00710,0.00,57.14,R,ALLIANCE DISPOSABLES LTD,No
Http://opendatacommunities.org/id/metropolitan-district-council/leeds,Leeds City Council,31/01/2023,Resources,Commercial Services,Supplies and Services,Operational Materials,205,18/01/2023,2301-00711,0.00,26.57,R,ALLIANCE DISPOSABLES LTD,No
Http://opendatacommunities.org/id/metropolitan-district-council/leeds,Leeds City Council,31/01/2023,City Development,Recreation,Supplies and Services,Publication And Promotion,267,13/01/2023,2301-00712,0.00,269.00,R,Alliance Leisure Service Ltd,No
Http://opendatacommunities.org/id/metropolitan-district-council/leeds,Leeds City Council,31/01/2023,City Development,Recreation,Supplies and Services,Publication And Promotion,267,13/01/2023,2301-00713,0.00,844.75,R,Alliance Leisure Service Ltd,No
Http://opendatacommunities.org/id/metropolitan-district-council/leeds,Leeds City Council,31/01/2023,Adults and Health,Services For Adults Under 65 Mental/Dis,Agency Payments,Home Care,568,11/01/2023,2301-00714,0.00,1506.03,R,Allied Healthcare,No
Http://opendatacommunities.org/id/metropolitan-district-council/leeds,Leeds City Council,31/01/2023,Adults and Health,Services For Older People - 65 And Over,Agency Payments,Home Care,568,11/01/2023,2301-00715,0.00,35029.33,R,Allied Healthcare,No
Http://opendatacommunities.org/id/metropolitan-district-council/leeds,Leeds City Council,31/01/2023,Adults and Health,Services For Older People - 65 And Over,Agency Payments,HCAIT Community Support,575,11/01/2023,2301-00716,0.00,245.88,R,Allied Healthcare,No
Http://opendatacommunities.org/id/metropolitan-district-council/leeds,Leeds City Council,31/01/2023,Adults and Health,Services For Older People - 65 And Over,Agency Payments,HCAIT Other,577,11/01/2023,2301-00717,0.00,1517.84,R,Allied Healthcare,No
Http://opendatacommunities.org/id/metropolitan-district-council/leeds,Leeds City Council,31/01/2023,Adults and Health,Services For Older People Under 65 P/Dis,Agency Payments,Home Care,568,11/01/2023,2301-00718,0.00,5983.12,R,Allied Healthcare,No
Http://opendatacommunities.org/id/metropolitan-district-council/leeds,Leeds City Council,31/01/2023,Adults and Health,Services For Older People Under 65 P/Dis,Agency Payments,HCAIT Community Support,575,11/01/2023,2301-00719,0.00,3442.32,R,Allied Healthcare,No
Http://opendatacommunities.org/id/metropolitan-district-council/leeds,Leeds City Council,31/01/2023,Adults and Health,Services For Older People - 65 And Over,Agency Payments,Home Care,568,11/01/2023,2301-00720,0.00,1828.80,R,Allied Healthcare,No
Http://opendatacommunities.org/id/metropolitan-district-council/leeds,Leeds City Council,31/01/2023,Adults and Health,Services For Older People Under 65 P/Dis,Agency Payments,Home Care,568,11/01/2023,2301-00721,0.00,609.60,R,Allied Healthcare,No
Http://opendatacommunities.org/id/metropolitan-district-council/leeds,Leeds City Council,31/01/2023,Adults and Health,Services For Older People - 65 And Over,Agency Payments,Home Care,568,11/01/2023,2301-00722,0.00,66.68,R,Allied Healthcare,No
Http://opendatacommunities.org/id/metropolitan-district-council/leeds,Leeds City Council as Accountable Body,31/01/2023,Social Services Pooled Budgets,Jcs For People With Learning Disabilitie,Agency Payments,Home Care,568,12/01/2023,2301-00723,0.00,9671.28,R,Allied Healthcare,No
Http://opendatacommunities.org/id/metropolitan-district-council/leeds,Leeds City Council,31/01/2023,Adults and Health,Services For Older People - 65 And Over,Agency Payments,Home Care,568,25/01/2023,2301-00724,0.00,1771.65,R,Allied Healthcare,No
Http://opendatacommunities.org/id/metropolitan-district-council/leeds,Leeds City Council,31/01/2023,Adults and Health,Services For Older People Under 65 P/Dis,Agency Payments,Home Care,568,25/01/2023,2301-00725,0.00,609.60,R,Allied Healthcare,No
Http://opendatacommunities.org/id/metropolitan-district-council/leeds,Leeds City Council,31/01/2023,Adults and Health,Services For Older People - 65 And Over,Agency Payments,Home Care,568,25/01/2023,2301-00726,0.00,133.35,R,Allied Healthcare,No
Http://opendatacommunities.org/id/metropolitan-district-council/leeds,Leeds City Council,31/01/2023,Children and Families,Social Care,Agency Payments,Services Rendered By Other Organisations,511,06/01/2023,2301-00727,0.00,1147.20,R,REDACTED PERSONAL DATA,No
Http://opendatacommunities.org/id/metropolitan-district-council/leeds,Leeds City Council,31/01/2023,Children and Families,Social Care,Appropriations,Leaving Care Allowances,634,06/01/2023,2301-00728,0.00,50.00,R,Allpay,No
Http://opendatacommunities.org/id/metropolitan-district-council/leeds,Leeds City Council,31/01/2023,Children and Families,Social Care,Appropriations,Leaving Care Allowances,634,06/01/2023,2301-00729,0.00,200.00,R,Allpay,No
Http://opendatacommunities.org/id/metropolitan-district-council/leeds,Leeds City Council,31/01/2023,Children and Families,Social Care,Appropriations,Leaving Care Allowances,634,06/01/2023,2301-00730,0.00,60.00,R,Allpay,No
Http://opendatacommunities.org/id/metropolitan-district-council/leeds,Leeds City Council,31/01/2023,Children and Families,Social Care,Appropriations,Leaving Care Allowances,634,06/01/2023,2301-00731,0.00,110.00,R,Allpay,No
Http://opendatacommunities.org/id/metropolitan-district-council/leeds,Leeds City Council,31/01/2023,Children and Families,Social Care,Agency Payments,Placement Support,550,06/01/2023,2301-00732,0.00,500.00,R,Allpay,No
Http://opendatacommunities.org/id/metropolitan-district-council/leeds,Leeds City Council,31/01/2023,Children and Families,Social Care,Appropriations,Leaving Care Allowances,634,06/01/2023,2301-00733,0.00,50.00,R,Allpay,No
Http://opendatacommunities.org/id/metropolitan-district-council/leeds,Leeds City Council,31/01/2023,Children and Families,Social Care,Agency Payments,Contact,548,06/01/2023,2301-00734,0.00,95.00,R,Allpay,No
Http://opendatacommunities.org/id/metropolitan-district-council/leeds,Leeds City Council,31/01/2023,Children and Families,Social Care,Agency Payments,Placement Support,550,06/01/2023,2301-00735,0.00,274.00,R,Allpay,No
Http://opendatacommunities.org/id/metropolitan-district-council/leeds,Leeds City Council,31/01/2023,Children and Families,Social Care,Agency Payments,Section 17,551,06/01/2023,2301-00736,0.00,715.47,R,Allpay,No
Http://opendatacommunities.org/id/metropolitan-district-council/leeds,Leeds City Council,31/01/2023,Children and Families,Social Care,Appropriations,16 Plus Top Up Allowance,625,06/01/2023,2301-00737,0.00,340.00,R,Allpay,No
Http://opendatacommunities.org/id/metropolitan-district-council/leeds,Leeds City Council,31/01/2023,Children and Families,Social Care,Appropriations,Leaving Care Allowances,634,06/01/2023,2301-00738,0.00,2953.95,R,Allpay,No
Http://opendatacommunities.org/id/metropolitan-district-council/leeds,Leeds City Council,31/01/2023,Children and Families,Social Care,Appropriations,Leaving Care Allowances,634,06/01/2023,2301-00739,0.00,185.00,R,Allpay,No
Http://opendatacommunities.org/id/metropolitan-district-council/leeds,Leeds City Council,31/01/2023,Children and Families,Social Care,Appropriations,Leaving Care Allowances,634,06/01/2023,2301-00740,0.00,250.00,R,Allpay,No
Http://opendatacommunities.org/id/metropolitan-district-council/leeds,Leeds City Council,31/01/2023,Children and Families,Social Care,Appropriations,Leaving Care Grants,635,06/01/2023,2301-00741,0.00,130.00,R,Allpay,No
Http://opendatacommunities.org/id/metropolitan-district-council/leeds,Leeds City Council,31/01/2023,Children and Families,Social Care,Agency Payments,Section 17,551,06/01/2023,2301-00742,0.00,100.00,R,Allpay,No
Http://opendatacommunities.org/id/metropolitan-district-council/leeds,Leeds City Council,31/01/2023,Children and Families,Social Care,Appropriations,Leaving Care Allowances,634,06/01/2023,2301-00743,0.00,612.60,R,Allpay,No
Http://opendatacommunities.org/id/metropolitan-district-council/leeds,Leeds City Council,31/01/2023,Children and Families,Social Care,Appropriations,Leaving Care Allowances,634,06/01/2023,2301-00744,0.00,61.05,R,Allpay,No
Http://opendatacommunities.org/id/metropolitan-district-council/leeds,Leeds City Council,31/01/2023,Children and Families,Social Care,Appropriations,Leaving Care Allowances,634,09/01/2023,2301-00745,0.00,210.00,R,Allpay,No
Http://opendatacommunities.org/id/metropolitan-district-council/leeds,Leeds City Council,31/01/2023,Children and Families,Social Care,Agency Payments,Section 17,551,09/01/2023,2301-00746,0.00,40.00,R,Allpay,No
Http://opendatacommunities.org/id/metropolitan-district-council/leeds,Leeds City Council,31/01/2023,Children and Families,Social Care,Agency Payments,Section 17,551,09/01/2023,2301-00747,0.00,50.00,R,Allpay,No
Http://opendatacommunities.org/id/metropolitan-district-council/leeds,Leeds City Council,31/01/2023,Children and Families,Social Care,Appropriations,Leaving Care Allowances,634,09/01/2023,2301-00748,0.00,50.00,R,Allpay,No
Http://opendatacommunities.org/id/metropolitan-district-council/leeds,Leeds City Council,31/01/2023,Children and Families,Social Care,Agency Payments,Section 17,551,09/01/2023,2301-00749,0.00,50.00,R,Allpay,No
Http://opendatacommunities.org/id/metropolitan-district-council/leeds,Leeds City Council,31/01/2023,Children and Families,Social Care,Appropriations,Leaving Care Allowances,634,09/01/2023,2301-00750,0.00,246.44,R,Allpay,No
Http://opendatacommunities.org/id/metropolitan-district-council/leeds,Leeds City Council,31/01/2023,Children and Families,Social Care,Appropriations,Leaving Care Allowances,634,10/01/2023,2301-00751,0.00,61.05,R,Allpay,No
Http://opendatacommunities.org/id/metropolitan-district-council/leeds,Leeds City Council,31/01/2023,Children and Families,Social Care,Agency Payments,Allowances,546,10/01/2023,2301-00752,0.00,100.00,R,Allpay,No
Http://opendatacommunities.org/id/metropolitan-district-council/leeds,Leeds City Council,31/01/2023,Children and Families,Social Care,Appropriations,Leaving Care Allowances,634,10/01/2023,2301-00753,0.00,35.00,R,Allpay,No
Http://opendatacommunities.org/id/metropolitan-district-council/leeds,Leeds City Council,31/01/2023,Children and Families,Social Care,Agency Payments,Section 17,551,10/01/2023,2301-00754,0.00,257.78,R,Allpay,No
Http://opendatacommunities.org/id/metropolitan-district-council/leeds,Leeds City Council,31/01/2023,Children and Families,Social Care,Agency Payments,Section 17,551,10/01/2023,2301-00755,0.00,65.00,R,Allpay,No
Http://opendatacommunities.org/id/metropolitan-district-council/leeds,Leeds City Council,31/01/2023,Children and Families,Social Care,Appropriations,Fines And Compensation Orders,623,10/01/2023,2301-00756,0.00,60.00,R,Allpay,No
Http://opendatacommunities.org/id/metropolitan-district-council/leeds,Leeds City Council,31/01/2023,Children and Families,Social Care,Agency Payments,Section 17,551,11/01/2023,2301-00757,0.00,50.00,R,Allpay,No
Http://opendatacommunities.org/id/metropolitan-district-council/leeds,Leeds City Council,31/01/2023,Children and Families,Social Care,Agency Payments,Contact,548,11/01/2023,2301-00758,0.00,95.00,R,Allpay,No
Http://opendatacommunities.org/id/metropolitan-district-council/leeds,Leeds City Council,31/01/2023,Children and Families,Social Care,Agency Payments,Placement Support,550,11/01/2023,2301-00759,0.00,274.00,R,Allpay,No
Http://opendatacommunities.org/id/metropolitan-district-council/leeds,Leeds City Council,31/01/2023,Children and Families,Social Care,Agency Payments,Section 17,551,11/01/2023,2301-00760,0.00,700.16,R,Allpay,No
Http://opendatacommunities.org/id/metropolitan-district-council/leeds,Leeds City Council,31/01/2023,Children and Families,Social Care,Appropriations,16 Plus Top Up Allowance,625,11/01/2023,2301-00761,0.00,340.00,R,Allpay,No
Http://opendatacommunities.org/id/metropolitan-district-council/leeds,Leeds City Council,31/01/2023,Children and Families,Social Care,Appropriations,Leaving Care Allowances,634,11/01/2023,2301-00762,0.00,2940.00,R,Allpay,No
Http://opendatacommunities.org/id/metropolitan-district-council/leeds,Leeds City Council,31/01/2023,Children and Families,Social Care,Agency Payments,Allowances,546,11/01/2023,2301-00763,0.00,100.00,R,Allpay,No
Http://opendatacommunities.org/id/metropolitan-district-council/leeds,Leeds City Council,31/01/2023,Children and Families,Social Care,Appropriations,Leaving Care Allowances,634,11/01/2023,2301-00764,0.00,60.00,R,Allpay,No
Http://opendatacommunities.org/id/metropolitan-district-council/leeds,Leeds City Council,31/01/2023,Children and Families,Social Care,Agency Payments,Contact,548,11/01/2023,2301-00765,0.00,80.00,R,Allpay,No
Http://opendatacommunities.org/id/metropolitan-district-council/leeds,Leeds City Council,31/01/2023,Children and Families,Social Care,Appropriations,Leaving Care Allowances,634,12/01/2023,2301-00766,0.00,35.00,R,Allpay,No
Http://opendatacommunities.org/id/metropolitan-district-council/leeds,Leeds City Council,31/01/2023,Children and Families,Social Care,Agency Payments,Allowances,546,12/01/2023,2301-00767,0.00,50.00,R,Allpay,No
Http://opendatacommunities.org/id/metropolitan-district-council/leeds,Leeds City Council,31/01/2023,Children and Families,Social Care,Appropriations,Leaving Care Allowances,634,12/01/2023,2301-00768,0.00,70.00,R,Allpay,No
Http://opendatacommunities.org/id/metropolitan-district-council/leeds,Leeds City Council,31/01/2023,Children and Families,Social Care,Appropriations,16 Plus Top Up Allowance,625,12/01/2023,2301-00769,0.00,20.00,R,Allpay,No
Http://opendatacommunities.org/id/metropolitan-district-council/leeds,Leeds City Council,31/01/2023,Children and Families,Social Care,Agency Payments,Section 17,551,12/01/2023,2301-00770,0.00,127.70,R,Allpay,No
Http://opendatacommunities.org/id/metropolitan-district-council/leeds,Leeds City Council,31/01/2023,Children and Families,Social Care,Appropriations,Leaving Care Allowances,634,12/01/2023,2301-00771,0.00,60.00,R,Allpay,No
Http://opendatacommunities.org/id/metropolitan-district-council/leeds,Leeds City Council,31/01/2023,Children and Families,Social Care,Appropriations,Leaving Care Allowances,634,13/01/2023,2301-00772,0.00,20.00,R,Allpay,No
Http://opendatacommunities.org/id/metropolitan-district-council/leeds,Leeds City Council,31/01/2023,Children and Families,Social Care,Appropriations,Leaving Care Allowances,634,13/01/2023,2301-00773,0.00,50.00,R,Allpay,No
Http://opendatacommunities.org/id/metropolitan-district-council/leeds,Leeds City Council,31/01/2023,Children and Families,Social Care,Agency Payments,Allowances,546,13/01/2023,2301-00774,0.00,60.00,R,Allpay,No
Http://opendatacommunities.org/id/metropolitan-district-council/leeds,Leeds City Council,31/01/2023,Children and Families,Social Care,Agency Payments,Section 17,551,16/01/2023,2301-00775,0.00,45.85,R,Allpay,No
Http://opendatacommunities.org/id/metropolitan-district-council/leeds,Leeds City Council,31/01/2023,Children and Families,Social Care,Agency Payments,Placement Support,550,16/01/2023,2301-00776,0.00,36.00,R,Allpay,No
Http://opendatacommunities.org/id/metropolitan-district-council/leeds,Leeds City Council,31/01/2023,Children and Families,Social Care,Appropriations,Leaving Care Allowances,634,16/01/2023,2301-00777,0.00,120.00,R,Allpay,No
Http://opendatacommunities.org/id/metropolitan-district-council/leeds,Leeds City Council,31/01/2023,Children and Families,Social Care,Agency Payments,Allowances,546,16/01/2023,2301-00778,0.00,150.00,R,Allpay,No
Http://opendatacommunities.org/id/metropolitan-district-council/leeds,Leeds City Council,31/01/2023,Children and Families,Social Care,Appropriations,Leaving Care Allowances,634,17/01/2023,2301-00779,0.00,51.05,R,Allpay,No
Http://opendatacommunities.org/id/metropolitan-district-council/leeds,Leeds City Council,31/01/2023,Children and Families,Social Care,Agency Payments,Allowances,546,17/01/2023,2301-00780,0.00,200.00,R,Allpay,No
Http://opendatacommunities.org/id/metropolitan-district-council/leeds,Leeds City Council,31/01/2023,Children and Families,Social Care,Appropriations,16 Plus Top Up Allowance,625,17/01/2023,2301-00781,0.00,240.00,R,Allpay,No
Http://opendatacommunities.org/id/metropolitan-district-council/leeds,Leeds City Council,31/01/2023,Children and Families,Social Care,Agency Payments,Section 17,551,17/01/2023,2301-00782,0.00,63.85,R,Allpay,No
Http://opendatacommunities.org/id/metropolitan-district-council/leeds,Leeds City Council,31/01/2023,Children and Families,Social Care,Appropriations,16 Plus Top Up Allowance,625,18/01/2023,2301-00783,0.00,20.00,R,Allpay,No
Http://opendatacommunities.org/id/metropolitan-district-council/leeds,Leeds City Council,31/01/2023,Children and Families,Social Care,Agency Payments,Contact,548,18/01/2023,2301-00784,0.00,20.00,R,Allpay,No
Http://opendatacommunities.org/id/metropolitan-district-council/leeds,Leeds City Council,31/01/2023,Children and Families,Social Care,Agency Payments,Placement Support,550,18/01/2023,2301-00785,0.00,261.05,R,Allpay,No
Http://opendatacommunities.org/id/metropolitan-district-council/leeds,Leeds City Council,31/01/2023,Children and Families,Social Care,Agency Payments,Section 17,551,18/01/2023,2301-00786,0.00,764.01,R,Allpay,No
Http://opendatacommunities.org/id/metropolitan-district-council/leeds,Leeds City Council,31/01/2023,Children and Families,Social Care,Appropriations,16 Plus Top Up Allowance,625,18/01/2023,2301-00787,0.00,340.00,R,Allpay,No
Http://opendatacommunities.org/id/metropolitan-district-council/leeds,Leeds City Council,31/01/2023,Children and Families,Social Care,Appropriations,Leaving Care Allowances,634,18/01/2023,2301-00788,0.00,2706.85,R,Allpay,No
Http://opendatacommunities.org/id/metropolitan-district-council/leeds,Leeds City Council,31/01/2023,Children and Families,Social Care,Agency Payments,Section 17,551,18/01/2023,2301-00789,0.00,10.00,R,Allpay,No
Http://opendatacommunities.org/id/metropolitan-district-council/leeds,Leeds City Council,31/01/2023,Children and Families,Social Care,Agency Payments,Section 17,551,19/01/2023,2301-00790,0.00,20.00,R,Allpay,No
Http://opendatacommunities.org/id/metropolitan-district-council/leeds,Leeds City Council,31/01/2023,Children and Families,Social Care,Agency Payments,Section 17,551,19/01/2023,2301-00791,0.00,30.00,R,Allpay,No
Http://opendatacommunities.org/id/metropolitan-district-council/leeds,Leeds City Council,31/01/2023,Children and Families,Social Care,Appropriations,Leaving Care Allowances,634,19/01/2023,2301-00792,0.00,100.00,R,Allpay,No
Http://opendatacommunities.org/id/metropolitan-district-council/leeds,Leeds City Council,31/01/2023,Children and Families,Social Care,Appropriations,Leaving Care Allowances,634,19/01/2023,2301-00793,0.00,70.00,R,Allpay,No
Http://opendatacommunities.org/id/metropolitan-district-council/leeds,Leeds City Council,31/01/2023,Children and Families,Social Care,Agency Payments,Section 17,551,19/01/2023,2301-00794,0.00,40.00,R,Allpay,No
Http://opendatacommunities.org/id/metropolitan-district-council/leeds,Leeds City Council,31/01/2023,Children and Families,Social Care,Agency Payments,Placement Support,550,19/01/2023,2301-00795,0.00,50.00,R,Allpay,No
Http://opendatacommunities.org/id/metropolitan-district-council/leeds,Leeds City Council,31/01/2023,Children and Families,Social Care,Agency Payments,Section 17,551,19/01/2023,2301-00796,0.00,30.00,R,Allpay,No
Http://opendatacommunities.org/id/metropolitan-district-council/leeds,Leeds City Council,31/01/2023,Children and Families,Social Care,Agency Payments,Allowances,546,23/01/2023,2301-00797,0.00,196.44,R,Allpay,No
Http://opendatacommunities.org/id/metropolitan-district-council/leeds,Leeds City Council,31/01/2023,Children and Families,Social Care,Agency Payments,Allowances,546,23/01/2023,2301-00798,0.00,63.99,R,Allpay,No
Http://opendatacommunities.org/id/metropolitan-district-council/leeds,Leeds City Council,31/01/2023,Children and Families,Social Care,Agency Payments,Section 17,551,23/01/2023,2301-00799,0.00,15.00,R,Allpay,No
Http://opendatacommunities.org/id/metropolitan-district-council/leeds,Leeds City Council,31/01/2023,Children and Families,Social Care,Appropriations,Young Peoples Activities,652,24/01/2023,2301-00800,0.00,110.00,R,Allpay,No
Http://opendatacommunities.org/id/metropolitan-district-council/leeds,Leeds City Council,31/01/2023,Children and Families,Social Care,Agency Payments,Placement Support,550,24/01/2023,2301-00801,0.00,30.00,R,Allpay,No
Http://opendatacommunities.org/id/metropolitan-district-council/leeds,Leeds City Council,31/01/2023,Children and Families,Social Care,Appropriations,Leaving Care Allowances,634,24/01/2023,2301-00802,0.00,40.00,R,Allpay,No
Http://opendatacommunities.org/id/metropolitan-district-council/leeds,Leeds City Council,31/01/2023,Children and Families,Social Care,Appropriations,16 Plus Top Up Allowance,625,24/01/2023,2301-00803,0.00,60.00,R,Allpay,No
Http://opendatacommunities.org/id/metropolitan-district-council/leeds,Leeds City Council,31/01/2023,Children and Families,Social Care,Agency Payments,Contact,548,25/01/2023,2301-00804,0.00,20.00,R,Allpay,No
Http://opendatacommunities.org/id/metropolitan-district-council/leeds,Leeds City Council,31/01/2023,Children and Families,Social Care,Agency Payments,Placement Support,550,25/01/2023,2301-00805,0.00,261.05,R,Allpay,No
Http://opendatacommunities.org/id/metropolitan-district-council/leeds,Leeds City Council,31/01/2023,Children and Families,Social Care,Agency Payments,Section 17,551,25/01/2023,2301-00806,0.00,638.46,R,Allpay,No
Http://opendatacommunities.org/id/metropolitan-district-council/leeds,Leeds City Council,31/01/2023,Children and Families,Social Care,Appropriations,16 Plus Top Up Allowance,625,25/01/2023,2301-00807,0.00,400.00,R,Allpay,No
Http://opendatacommunities.org/id/metropolitan-district-council/leeds,Leeds City Council,31/01/2023,Children and Families,Social Care,Appropriations,Leaving Care Allowances,634,25/01/2023,2301-00808,0.00,2612.92,R,Allpay,No
Http://opendatacommunities.org/id/metropolitan-district-council/leeds,Leeds City Council,31/01/2023,Children and Families,Social Care,Appropriations,16 Plus Top Up Allowance,625,30/01/2023,2301-00809,0.00,100.00,R,Allpay,No
Http://opendatacommunities.org/id/metropolitan-district-council/leeds,Leeds City Council,31/01/2023,Children and Families,Social Care,Appropriations,Leaving Care Allowances,634,31/01/2023,2301-00810,0.00,35.00,R,Allpay,No
Http://opendatacommunities.org/id/metropolitan-district-council/leeds,Leeds City Council,31/01/2023,Children and Families,Social Care,Appropriations,Leaving Care Allowances,634,31/01/2023,2301-00811,0.00,410.00,R,Allpay,No
Http://opendatacommunities.org/id/metropolitan-district-council/leeds,Leeds City Council,31/01/2023,Resources,Finance,Supplies and Services,Bank Charges,263,04/01/2023,2301-00812,0.00,2267.47,R,Allpay Limted,No
Http://opendatacommunities.org/id/metropolitan-district-council/leeds,Leeds City Council,31/01/2023,Adults and Health,Services For Older People Under 65 P/Dis,Supplies and Services,Operational Materials,205,06/01/2023,2301-00813,0.00,454.20,R,Allpay Limted,No
Http://opendatacommunities.org/id/metropolitan-district-council/leeds,Leeds City Council,31/01/2023,City Development,Highways,Transport,Fuel (Non LCC Supplies),321,09/01/2023,2301-00814,0.00,308.24,R,Allstar Business Solutions Ltd,No
Http://opendatacommunities.org/id/metropolitan-district-council/leeds,Leeds City Council,31/01/2023,Communities Housing and Environment,Parks and Countryside,Transport,Fuel (Non LCC Supplies),321,09/01/2023,2301-00815,0.00,740.04,R,Allstar Business Solutions Ltd,No
Http://opendatacommunities.org/id/metropolitan-district-council/leeds,Leeds City Council,31/01/2023,Children and Families,Learning,Transport,Fuel (Non LCC Supplies),321,09/01/2023,2301-00816,0.00,1693.87,R,Allstar Business Solutions Ltd,No
Http://opendatacommunities.org/id/metropolitan-district-council/leeds,Leeds City Council,31/01/2023,Resources,Leeds Building Services,Transport,Fuel (Non LCC Supplies),321,12/01/2023,2301-00817,0.00,109.03,R,Allstar Business Solutions Ltd,No
Http://opendatacommunities.org/id/metropolitan-district-council/leeds,Leeds City Council,31/01/2023,Resources,Commercial Services,Transport,Fuel (Non LCC Supplies),321,16/01/2023,2301-00818,0.00,2275.66,R,Allstar Business Solutions Ltd,No
Http://opendatacommunities.org/id/metropolitan-district-council/leeds,Leeds City Council,31/01/2023,Resources,Commercial Services,Transport,Fuel (Non LCC Supplies),321,30/01/2023,2301-00819,0.00,1940.00,R,Allstar Business Solutions Ltd,No
Http://opendatacommunities.org/id/metropolitan-district-council/leeds,Leeds City Council,31/01/2023,Children and Families,Social Care,Internal Recharges,Legal Disbursements,411,04/01/2023,2301-00820,0.00,489.64,R,Alphabiolabs,No
Http://opendatacommunities.org/id/metropolitan-district-council/leeds,Leeds City Council,31/01/2023,Children and Families,Social Care,Internal Recharges,Legal Disbursements,411,05/01/2023,2301-00821,0.00,116.67,R,Alphabiolabs,No
Http://opendatacommunities.org/id/metropolitan-district-council/leeds,Leeds City Council,31/01/2023,Children and Families,Social Care,Internal Recharges,Legal Disbursements,411,06/01/2023,2301-00822,0.00,116.88,R,Alphabiolabs,No
Http://opendatacommunities.org/id/metropolitan-district-council/leeds,Leeds City Council,31/01/2023,Children and Families,Social Care,Internal Recharges,Legal Disbursements,411,06/01/2023,2301-00823,0.00,242.24,R,Alphabiolabs,No
Http://opendatacommunities.org/id/metropolitan-district-council/leeds,Leeds City Council,31/01/2023,Children and Families,Social Care,Internal Recharges,Legal Disbursements,411,06/01/2023,2301-00824,0.00,312.24,R,Alphabiolabs,No
